Workbook

Sheet Notes
A1: date: | B1: 2018-06-19
A2: author: | B2: Homelessness Statistics, CAD
A3: data source: | B3: PREVENT1 data for 1 April 2014 to 31 March 2018
A4: SAS code at:
A5: notes: | B5: Where potentially disclosive, figures to be rounded to the nearest five.
B6: For use in publication on 19 June 2018.

Sheet Contents
A1: Housing Options (PREVENT1) Statistics in Scotland: 2017/18
A3: Found online at: http://www.gov.scot/Topics/Statistics/Browse/Housing-Regeneration/RefTables
A4: Note: Where potentially disclosive, figures are rounded to the nearest five.
B5: Contents of Tables and Charts
A6: Click here
A7: ► | B7: ='Fig 1 - Households'!A1 -> Figure 1: Number of unique households making a local authority approach for housing or homelessness assistance, 2002/03 to 2017/18
A9: ► | B9: ='Fig 2 - Infographic'!A1 -> Figure 2: Flow diagram of all approaches to Housing Options services in Scotland
A11: ► | B11: ='Table 1 - Approaches'!A1 -> Table 1: Total Housing Options approaches by LA and quarter
A13: ► | B13: ='Chart 1 - Approaches by Month'!A1 -> Chart 1: Number of Housing Options Approaches by Month
A15: ► | B15: ='Table 2 - Unique Households'!A1 -> Table 2: Unique household approaches as a percentage of households in each Local Authority
A17: ► | B17: ='Chart 2 - Rates of Approaches'!A1 -> Chart 2: Rates of Approaches per 10,000 households
A19: ► | B19: ='Table 3 - Open Approaches'!A1 -> Table 3: Open Approaches at the end of each quarter by LA
A21: ► | B21: ='Chart 3a & 3b - Open Approaches'!A1 -> Chart 3a: Open Approaches at the end of each quarter - Scotland
A23: ► | B23: ='Chart 3c'!A1 -> Chart 3c: Distribution of the number of days approaches have been open for
A25: ► | B25: ='Table 4 - Reasons'!A1 -> Table 4a: Reasons for Approach (Number)
A27: ► | B27: ='Chart 4 - Approach Reasons'!A1 -> Chart 4: Number of Approaches by Reason for Approach
A29: ► | B29: ='Table 5 - Maximum Activty Type'!A1 -> Table 5a: Maximum Activity Type (Number)
A31: ► | B31: ='Chart 5 - Activities Type by Q'!A1 -> Chart 5: Number of Approaches with each level of activity type by quarter
A33: ► | B33: ='Table 6 - Activities'!A1 -> Table 6a: Housing Options activities by quarter (number)
A35: ► | B35: ='Chart 6 - Activities'!A1 -> Chart 6: Housing Options Actvities by quarter
A37: ► | B37: ='Table 7 - Activities by LA'!A1 -> Table 7a: Housing Options activities by Local Authority, during 1 April 2017 to 31 March 2018 (number)
A39: ► | B39: ='Chart 7 - Activities by LA'!A1 -> Chart 7:Activities by Local Authority
A41: ► | B41: ='Table 8 - Outcomes by Quarter'!A1 -> Table 8a: Outcomes by Quarter (number)
A43: ► | B43: ='Chart 8 - Outcomes by quarter'!A1 -> Chart 8: Outcome of Housing Options Approaches by quarter
A44: ► | B44: ='Chart 9 - Outcome Durations'!A1 -> Chart 9: Distribution of approach duration by outcome
A46: ► | B46: ='Table 9 - Outcomes by LA'!A1 -> Table 9: Outcomes by LA: 1 April 2017 to 31 March 2018
A48: ► | B48: ='Chart 10 - Outcomes by LA'!A1 -> Chart 10: Variation in outcomes for each Local Authority
A50: ► | B50: ='Chart 11- Lost Contact NK Boxpl'!A1 -> Chart 11: Distribution of the number of days to outcome approach as Lost Contact or Not Known by LA
A52: ► | B52: ='Chart 12 - Homelessness Boxplot'!A1 -> Chart 12: Distribution of the number of days to outcome an approach as a homelessness application
A54: ► | B54: ='Table 10 - Repeat Approaches'!A1 -> Table 10: Households making Repeat Approaches
A56: ► | B56: ='Chart 13- Repeat Approaches'!A1 -> Chart 13: Proportion of Unique Households in each LA area making Repeat Approaches

Sheet Fig 1 - Households
A1: Figure 1: Number of unique households making a local authority approach for housing or homelessness assistance, 2002/03 to 2017/18 | P1: Back to Contents
B61: All Households applying | C61: All Homeless Households
A62: 2002/2003 | B62: 46798 | C62: 36620 | F62: =C62/B62 -> 0.7825120732
A63: 2003/2004 | B63: 52161 | C63: 40033 | F63: 0.7674891202
A64: 2004/2005 | B64: 54208 | C64: 39912 | F64: 0.7362750885
A65: 2005/2006 | B65: 57521 | C65: 42069 | F65: 0.7313676744
A66: 2006/2007 | B66: 56721 | C66: 41400 | F66: 0.7298884011
A67: 2007/2008 | B67: 54361 | C67: 40322 | F67: 0.741745001
A68: 2008/2009 | B68: 56208 | C68: 41216 | F68: 0.7332764019
A69: 2009/2010 | B69: 55632 | C69: 42764 | F69: 0.7686942767
A70: 2010/2011 | B70: 54342 | C70: 41319 | F70: 0.7603511096
A71: 2011/2012 | B71: 44899 | C71: 35231 | F71: 0.7846722644
A72: 2012/2013 | B72: 39216 | C72: 31721 | F72: 0.808879029
A73: 2013/2014 | B73: 35681 | C73: 29232 | F73: 0.8192595499 | K73: \\s0429a\datashare\dd\EAS7\Homelessness\Transition project\VB and SAS Program Files\Analyse HL1 and HL2 Master Datasets.egp
A74: 2014/2015 | B74: 35020 | C74: 29291 | F74: 0.836407767
A75: 2015/2016 | B75: 33696 | C75: 28128 | F75: 0.8347578348
A76: 2016/2017 | B76: 33704 | C76: 28160 | F76: 0.8355091384
A77: 2017/2018 | B77: 34034 | C77: 28379 | F77: 0.833842628 | I77: =B77-C77 -> 5655
B79: Application assessed as not homeless | C79: Homeless or Threatened with Homelessness | D79: Housing Options (No application for homelessness made)
A80: 2002/2003 | B80: =B62-C62 -> 10178 | C80: =C62 -> 36620
A81: 2003/2004 | B81: 12128 | C81: 40033
A82: 2004/2005 | B82: 14296 | C82: 39912
A83: 2005/2006 | B83: 15452 | C83: 42069
A84: 2006/2007 | B84: 15321 | C84: 41400
A85: 2007/2008 | B85: 14039 | C85: 40322
A86: 2008/2009 | B86: 14992 | C86: 41216
A87: 2009/2010 | B87: 12868 | C87: 42764
A88: 2010/2011 | B88: 13023 | C88: 41319
A89: 2011/2012 | B89: 9668 | C89: 35231
A90: 2012/2013 | B90: 7495 | C90: 31721
A91: 2013/2014 | B91: 6449 | C91: 29232
A92: 2014/2015 | B92: 5729 | C92: 29291 | D92: 32919
A93: 2015/2016 | B93: 5568 | C93: 28128 | D93: 29668 | H93: =C94/B76 -> 0.8355091384 | K93: =SUM(B76,D94) -> 62406
A94: 2016/2017 | B94: 5544 | C94: 28160 | D94: 28702 | K94: =SUM(B77,D95) -> 60837 | M94: =(D95-D94)/D94 -> -0.06616263675
A95: 2017/2018 | B95: 5655 | C95: 28379 | D95: 26803 | E95: 14450 | P95: 28809 | Q95: 14964
D96: This column of figures is from Prevent 1 code for publication 'P1 no HL1 - for publication'
A98: This is from 'Analyse HL1 and HL2 master data-set' in program: 'Prevent 1 infographic'
B99: Unqiue Households and their Children by Financial Year of Assessment | G99: Unqiue Households and their Children by Financial Year of Assessment
B100: Obs | C100: fyearass | D100: hhcounter | E100: kidscounter | G100: Obs | H100: fyearass | I100: hhcounter | J100: kidscounter
B101: 1 | C101: 2002/2003 | D101: 36620 | E101: 18955 | G101: 1 | H101: 2002/2003 | I101: 46798 | J101: 25059
B102: 2 | C102: 2003/2004 | D102: 40033 | E102: 20371 | G102: 2 | H102: 2003/2004 | I102: 52161 | J102: 27121
B103: 3 | C103: 2004/2005 | D103: 39912 | E103: 20947 | G103: 3 | H103: 2004/2005 | I103: 54208 | J103: 29067
B104: 4 | C104: 2005/2006 | D104: 42069 | E104: 21827 | G104: 4 | H104: 2005/2006 | I104: 57521 | J104: 30281
B105: 5 | C105: 2006/2007 | D105: 41400 | E105: 21628 | G105: 5 | H105: 2006/2007 | I105: 56721 | J105: 29931
B106: 6 | C106: 2007/2008 | D106: 40322 | E106: 21962 | G106: 6 | H106: 2007/2008 | I106: 54361 | J106: 29137
B107: 7 | C107: 2008/2009 | D107: 41216 | E107: 21866 | G107: 7 | H107: 2008/2009 | I107: 56208 | J107: 29772
B108: 8 | C108: 2009/2010 | D108: 42764 | E108: 22368 | G108: 8 | H108: 2009/2010 | I108: 55632 | J108: 28835
B109: 9 | C109: 2010/2011 | D109: 41319 | E109: 21181 | G109: 9 | H109: 2010/2011 | I109: 54342 | J109: 27341
B110: 10 | C110: 2011/2012 | D110: 35231 | E110: 18005 | G110: 10 | H110: 2011/2012 | I110: 44899 | J110: 22595
B111: 11 | C111: 2012/2013 | D111: 31721 | E111: 16018 | G111: 11 | H111: 2012/2013 | I111: 39216 | J111: 19360
B112: 12 | C112: 2013/2014 | D112: 29232 | E112: 14194 | G112: 12 | H112: 2013/2014 | I112: 35681 | J112: 16887
B113: 13 | C113: 2014/2015 | D113: 29291 | E113: 14279 | G113: 13 | H113: 2014/2015 | I113: 35020 | J113: 16655
B114: 14 | C114: 2015/2016 | D114: 28128 | E114: 13833 | G114: 14 | H114: 2015/2016 | I114: 33696 | J114: 16137
B115: 15 | C115: 2016/2017 | D115: 28160 | E115: 14356 | G115: 15 | H115: 2016/2017 | I115: 33704 | J115: 16702
B116: 16 | C116: 2017/2018 | D116: 28379 | E116: 15154 | G116: 16 | H116: 2017/2018 | I116: 34034 | J116: 17411
B117: Assessed as homeless or threatened with homelessness | G117: All assessments

Sheet Fig 2 - Infographic
A1: Figure 2: Flow diagram of all approaches to Housing Options services in Scotland | N1: Back to Contents
A2: All approaches between 1 April 2017 to 31 March 2018
AB34: Made homelessness application to local authority | AC34: 0.4478484352
AB35: Remained in current accommodation | AC35: 0.218022198
AB36: Lost Contact/ Not known | AC36: 0.1914346798
AB37: Moved into Alternative Accommodation | AC37: 0.142694687
AB38: Total (ALL) | AC38: 1
D82: All others | E82: 0.41242474
D83: Edinburgh | E83: 0.2008757526
D84: North Lanarkshire | E84: 0.158456486
D85: Fife | E85: 0.1425834702
D86: Aberdeen City | E86: 0.08565955118

Sheet Cover diagram
A1: Figure 2: Flow diagram of all approaches to Housing Options services in Scotland | N1: Back to Contents
A2: All approaches between 1 April 2017 to 31 March 2018
AB34: Made homelessness application to local authority | AC34: 0.4478484352
AB35: Remained in current accommodation | AC35: 0.218022198
AB36: Lost Contact/ Not known | AC36: 0.1914346798
AB37: Moved into Alternative Accommodation | AC37: 0.142694687
AB38: Total (ALL) | AC38: 1
D82: All others | E82: 0.41242474
D83: Edinburgh | E83: 0.2008757526
D84: North Lanarkshire | E84: 0.158456486
D85: Fife | E85: 0.1425834702
D86: Aberdeen City | E86: 0.08565955118

Sheet Table 1 - Approaches
A1: Table 1: Total Housing Options approaches by LA and quarter | K1: Back to Contents
A3: Local Authority | T3: Annual change
B4: 2014 Q2 | C4: 2014 Q3 | D4: 2014 Q4 | E4: 2015 Q1 | F4: 2015 Q2 | G4: 2015 Q3 | H4: 2015 Q4 | I4: 2016 Q1 | J4: 2016 Q2 | K4: 2016 Q3 | L4: 2016 Q4 | M4: 2017 Q1 | N4: 2017 Q2 | O4: 2017 Q3 | P4: 2017 Q4 | Q4: 2018 Q1 | R4: Total | T4: 2016/17 | U4: 2017/18 | V4: Change | W4: % change
A5: Scotland | B5: 16025 | C5: 16200 | D5: 13925 | E5: 16950 | F5: 14675 | G5: 14600 | H5: 12380 | I5: 14850 | J5: 13570 | K5: 13365 | L5: 11390 | M5: 13760 | N5: 12440 | O5: 11845 | P5: 9140 | Q5: 10475 | R5: 215585 | T5: =SUM(J5:M5) -> 52085 | U5: =SUM(N5:Q5) -> 43900 | V5: =U5-T5 -> -8185 | W5: =V5/T5 -> -0.1571469713
A6: Aberdeen City | B6: 1165 | C6: 1595 | D6: 1615 | E6: 1910 | F6: 1710 | G6: 1580 | H6: 1330 | I6: 1515 | J6: 1415 | K6: 1415 | L6: 1035 | M6: 1375 | N6: 1265 | O6: 1150 | P6: 870 | Q6: 1110 | R6: 22065 | T6: =SUM(J6:M6) -> 5240 | U6: =SUM(N6:Q6) -> 4395 | V6: =U6-T6 -> -845 | W6: =V6/T6 -> -0.161259542
A7: Aberdeenshire | B7: 575 | C7: 480 | D7: 420 | E7: 615 | F7: 560 | G7: 530 | H7: 435 | I7: 575 | J7: 480 | K7: 460 | L7: 390 | M7: 460 | N7: 405 | O7: 425 | P7: 275 | Q7: 335 | R7: 7420 | T7: 1790 | U7: 1440 | V7: -350 | W7: -0.1955307263
A8: Angus | B8: 275 | C8: 275 | D8: 240 | E8: 295 | F8: 260 | G8: 255 | H8: 180 | I8: 215 | J8: 295 | K8: 325 | L8: 205 | M8: 300 | N8: 220 | O8: 280 | P8: 220 | Q8: 195 | R8: 4020 | T8: 1125 | U8: 915 | V8: -210 | W8: -0.1866666667
A9: Argyll & Bute | B9: 130 | C9: 100 | D9: 260 | E9: 640 | F9: 580 | G9: 455 | H9: 400 | I9: 465 | J9: 435 | K9: 490 | L9: 375 | M9: 485 | N9: 520 | O9: 480 | P9: 425 | Q9: 495 | R9: 6735 | T9: 1785 | U9: 1920 | V9: 135 | W9: 0.0756302521
A10: Clackmannanshire | B10: 30 | C10: 45 | D10: 30 | E10: 25 | F10: 15 | G10: 50 | H10: 30 | I10: 25 | J10: 115 | K10: 100 | L10: 90 | M10: 180 | N10: 150 | O10: 125 | P10: 125 | Q10: 135 | R10: 1265 | T10: 485 | U10: 535 | V10: 50 | W10: 0.1030927835
A11: Dumfries & Galloway | B11: 240 | C11: 250 | D11: 195 | E11: 210 | F11: 230 | G11: 200 | H11: 190 | I11: 235 | J11: 220 | K11: 255 | L11: 205 | M11: 300 | N11: 240 | O11: 255 | P11: 105 | Q11: 95 | R11: 3420 | T11: 980 | U11: 695 | V11: -285 | W11: -0.2908163265
A12: Dundee City | B12: 765 | C12: 785 | D12: 440 | E12: 480 | F12: 545 | G12: 550 | H12: 490 | I12: 615 | J12: 530 | K12: 500 | L12: 465 | M12: 660 | N12: 365 | O12: 285 | P12: 260 | Q12: 255 | R12: 7995 | T12: 2155 | U12: 1165 | V12: -990 | W12: -0.4593967517
A13: East Ayrshire | B13: 65 | C13: 45 | D13: 20 | E13: 25 | F13: 5 | G13: 5 | H13: 0 | I13: 30 | J13: 15 | K13: 30 | L13: 25 | M13: 30 | N13: 20 | O13: 15 | P13: 15 | Q13: 30 | R13: 380 | T13: 100 | U13: 80 | V13: -20 | W13: -0.2
A14: East Dunbartonshire | B14: 35 | C14: 30 | D14: 35 | E14: 35 | F14: 35 | G14: 40 | H14: 25 | I14: 70 | J14: 60 | K14: 125 | L14: 90 | M14: 150 | N14: 105 | O14: 60 | P14: 25 | Q14: 45 | R14: 955 | T14: 425 | U14: 235 | V14: -190 | W14: -0.4470588235
A15: East Lothian | B15: 125 | C15: 110 | D15: 65 | E15: 135 | F15: 90 | G15: 110 | H15: 95 | I15: 70 | J15: 55 | K15: 45 | L15: 50 | M15: 55 | N15: 25 | O15: 25 | P15: 15 | Q15: 20 | R15: 1085 | T15: 205 | U15: 85 | V15: -120 | W15: -0.5853658537
A16: East Renfrewshire | B16: 40 | C16: 50 | D16: 45 | E16: 25 | F16: 45 | G16: 50 | H16: 45 | I16: 50 | J16: 55 | K16: 45 | L16: 40 | M16: 45 | N16: 35 | O16: 30 | P16: 40 | Q16: 20 | R16: 655 | T16: 185 | U16: 125 | V16: -60 | W16: -0.3243243243
A17: Edinburgh | B17: 1940 | C17: 2105 | D17: 1960 | E17: 2170 | F17: 2045 | G17: 1930 | H17: 1785 | I17: 1845 | J17: 1760 | K17: 1605 | L17: 1470 | M17: 1600 | N17: 1470 | O17: 1375 | P17: 1240 | Q17: 1280 | R17: 27575 | T17: 6435 | U17: 5365 | V17: -1070 | W17: -0.1662781663
A18: Eilean Siar | B18: 5 | C18: 5 | D18: 0 | E18: 5 | F18: 0 | G18: 0 | H18: 5 | I18: 5 | J18: 0 | K18: 0 | L18: 0 | M18: 10 | N18: 0 | O18: 5 | P18: 5 | Q18: 0 | R18: 60 | T18: 10 | U18: 10 | V18: 0 | W18: 0
A19: Falkirk | B19: 565 | C19: 580 | D19: 435 | E19: 475 | F19: 440 | G19: 470 | H19: 395 | I19: 520 | J19: 485 | K19: 515 | L19: 450 | M19: 540 | N19: 505 | O19: 465 | P19: 385 | Q19: 395 | R19: 7625 | T19: 1990 | U19: 1750 | V19: -240 | W19: -0.1206030151
A20: Fife | B20: 805 | C20: 830 | D20: 650 | E20: 905 | F20: 845 | G20: 715 | H20: 560 | I20: 695 | J20: 700 | K20: 690 | L20: 570 | M20: 740 | N20: 720 | O20: 630 | P20: 465 | Q20: 415 | R20: 10935 | T20: 2700 | U20: 2230 | V20: -470 | W20: -0.1740740741
A21: Glasgow City | B21: 3685 | C21: 3210 | D21: 2845 | E21: 3325 | F21: 2115 | G21: 2720 | H21: 2385 | I21: 2890 | J21: 2525 | K21: 2520 | L21: 2085 | M21: 2600 | N21: 2530 | O21: 2460 | P21: 2020 | Q21: 2000 | R21: 41925 | T21: 9730 | U21: 9010 | V21: -720 | W21: -0.0739979445
A22: Highland | B22: 490 | C22: 490 | D22: 345 | E22: 405 | F22: 465 | G22: 435 | H22: 330 | I22: 325 | J22: 165 | K22: 130 | L22: 80 | M22: 125 | N22: 115 | O22: 65 | P22: 30 | Q22: 30 | R22: 4020 | T22: 500 | U22: 240 | V22: -260 | W22: -0.52
A23: Inverclyde | B23: 225 | C23: 305 | D23: 215 | E23: 250 | F23: 240 | G23: 215 | H23: 205 | I23: 265 | J23: 235 | K23: 210 | L23: 225 | M23: 280 | N23: 220 | O23: 255 | P23: 210 | Q23: 215 | R23: 3760 | T23: 950 | U23: 900 | V23: -50 | W23: -0.05263157895
A24: Midlothian | B24: 160 | C24: 130 | D24: 90 | E24: 125 | F24: 125 | G24: 90 | H24: 85 | I24: 115 | J24: 100 | K24: 110 | L24: 90 | M24: 90 | N24: 65 | O24: 75 | P24: 65 | Q24: 65 | R24: 1585 | T24: 390 | U24: 270 | V24: -120 | W24: -0.3076923077
A25: Moray | B25: 325 | C25: 305 | D25: 270 | E25: 340 | F25: 315 | G25: 230 | H25: 225 | I25: 325 | J25: 255 | K25: 265 | L25: 240 | M25: 320 | N25: 280 | O25: 285 | P25: 200 | Q25: 290 | R25: 4480 | T25: 1080 | U25: 1055 | V25: -25 | W25: -0.02314814815
A26: North Ayrshire | B26: 470 | C26: 480 | D26: 410 | E26: 565 | F26: 470 | G26: 480 | H26: 380 | I26: 470 | J26: 435 | K26: 380 | L26: 320 | M26: 435 | N26: 425 | O26: 440 | P26: 50 | Q26: 380 | R26: 6590 | T26: 1570 | U26: 1295 | V26: -275 | W26: -0.1751592357
A27: North Lanarkshire | B27: 920 | C27: 875 | D27: 740 | E27: 995 | F27: 900 | G27: 925 | H27: 725 | I27: 875 | J27: 835 | K27: 830 | L27: 915 | M27: 635 | N27: 475 | O27: 445 | P27: 340 | Q27: 350 | R27: 11770 | T27: 3215 | U27: 1610 | V27: -1605 | W27: -0.499222395
A28: Orkney | B28: 10 | C28: 15 | D28: 15 | E28: 15 | F28: 10 | G28: 20 | H28: 10 | I28: 20 | J28: 10 | K28: 10 | L28: 5 | M28: 5 | N28: 10 | O28: 5 | P28: 5 | Q28: 5 | R28: 170 | T28: 30 | U28: 25 | V28: -5 | W28: -0.1666666667
A29: Perth & Kinross | B29: 565 | C29: 535 | D29: 485 | E29: 550 | F29: 460 | G29: 545 | H29: 435 | I29: 555 | J29: 575 | K29: 590 | L29: 525 | M29: 690 | N29: 650 | O29: 660 | P29: 440 | Q29: 735 | R29: 9000 | T29: 2380 | U29: 2485 | V29: 105 | W29: 0.04411764706
A30: Renfrewshire | B30: 460 | C30: 520 | D30: 460 | E30: 550 | F30: 535 | G30: 520 | H30: 470 | I30: 585 | J30: 530 | K30: 540 | L30: 485 | M30: 560 | N30: 530 | O30: 505 | P30: 440 | Q30: 490 | R30: 8175 | T30: 2115 | U30: 1965 | V30: -150 | W30: -0.07092198582
A31: Scottish Borders | B31: 275 | C31: 255 | D31: 200 | E31: 270 | F31: 260 | G31: 240 | H31: 160 | I31: 205 | J31: 210 | K31: 220 | L31: 165 | M31: 255 | N31: 190 | O31: 200 | P31: 150 | Q31: 140 | R31: 3395 | T31: 850 | U31: 680 | V31: -170 | W31: -0.2
A32: Shetland | B32: 100 | C32: 65 | D32: 75 | E32: 65 | F32: 40 | G32: 40 | H32: 45 | I32: 40 | J32: 50 | K32: 45 | L32: 55 | M32: 50 | N32: 45 | O32: 65 | P32: 45 | Q32: 45 | R32: 870 | T32: 200 | U32: 200 | V32: 0 | W32: 0
A33: South Ayrshire | B33: 240 | C33: 230 | D33: 245 | E33: 350 | F33: 365 | G33: 395 | H33: 355 | I33: 450 | J33: 310 | K33: 260 | L33: 225 | M33: 230 | N33: 260 | O33: 275 | P33: 220 | Q33: 340 | R33: 4755 | T33: 1025 | U33: 1095 | V33: 70 | W33: 0.06829268293
A34: South Lanarkshire | B34: 345 | C34: 365 | D34: 255 | E34: 335 | F34: 265 | G34: 315 | H34: 235 | I34: 265 | J34: 225 | K34: 195 | L34: 175 | M34: 260 | N34: 225 | O34: 210 | P34: 160 | Q34: 205 | R34: 4035 | T34: 855 | U34: 800 | V34: -55 | W34: -0.06432748538
A35: Stirling | B35: 200 | C35: 235 | D35: 155 | E35: 55 | F35: 100 | G35: 105 | H35: 80 | I35: 130 | J35: 105 | K35: 90 | L35: 50 | M35: 70 | N35: 90 | O35: 90 | P35: 80 | Q35: 75 | R35: 1715 | T35: 315 | U35: 335 | V35: 20 | W35: 0.06349206349
A36: West Dunbartonshire | B36: 420 | C36: 465 | D36: 385 | E36: 385 | F36: 285 | G36: 45 | H36: 20 | I36: 35 | J36: 40 | K36: 60 | L36: 40 | M36: 55 | N36: 60 | O36: 60 | P36: 50 | Q36: 70 | R36: 2485 | T36: 195 | U36: 240 | V36: 45 | W36: 0.2307692308
A37: West Lothian | B37: 370 | C37: 430 | D37: 315 | E37: 430 | F37: 330 | G37: 340 | H37: 275 | I37: 370 | J37: 335 | K37: 300 | L37: 255 | M37: 180 | N37: 225 | O37: 150 | P37: 150 | Q37: 205 | R37: 4660 | T37: 1070 | U37: 730 | V37: -340 | W37: -0.3177570093
A39: Disclosure Control has been applied to this table. All cells have been rounded to the nearest five.
A40: Column totals may not sum to total of individual cells due to rounding.

Sheet Chart 1 - Approaches by Month
A1: Chart 1: Number of Housing Options Approaches by Month | M1: Back to Contents
A48: 2014 | J48: 2015 | V48: 2016 | AH48: 2017 | AT48: 2018
C49: Jun | F49: Sep | I49: Dec | L49: Mar | O49: Jun | R49: Sep | U49: Dec | X49: Mar | AA49: Jun | AD49: Sep | AG49: Dec | AJ49: Mar | AM49: Jun | AP49: Sep | AS49: Dec | AV49: Mar
A50: 5418 | B50: 5127 | C50: 5481 | D50: 5474 | E50: 5286 | F50: 5441 | G50: 5558 | H50: 4697 | I50: 3670 | J50: 5590 | K50: 5515 | L50: 5845 | M50: 4900 | N50: 4800 | O50: 4974 | P50: 4734 | Q50: 4993 | R50: 4872 | S50: 4716 | T50: 4442 | U50: 3222 | V50: 4776 | W50: 4994 | X50: 5082 | Y50: 4559 | Z50: 4406 | AA50: 4607 | AB50: 4063 | AC50: 4725 | AD50: 4575 | AE50: 4304 | AF50: 4168 | AG50: 2916 | AH50: 4524 | AI50: 4341 | AJ50: 4893 | AK50: 3826 | AL50: 4416 | AM50: 4198 | AN50: 3925 | AO50: 4289 | AP50: 3631 | AQ50: 3582 | AR50: 3377 | AS50: 2179 | AT50: 3906 | AU50: 3292 | AV50: 3278
R53: =R50-L50 -> -973 | S53: =S50-M50 -> -184 | T53: =T50-N50 -> -358 | U53: =U50-O50 -> -1752 | V53: 42 | W53: =W50-Q50 -> 1 | X53: =X50-R50 -> 210
R54: =R53/L50 -> -0.1664670659 | S54: =S53/M50 -> -0.03755102041 | T54: =T53/N50 -> -0.07458333333 | U54: =U53/O50 -> -0.3522316043 | V54: 0.008871989861 | W54: =W53/Q50 -> 0.0002002803925 | X54: =X53/R50 -> 0.04310344828

Sheet Table 2 - Unique Households
A1: Table 2: Unique household approaches as a percentage of households in each Local Authority
E2: Back to Contents
A3: Local Authority | B3: Number of households | C3: Unique household approaches for 2017/18 | D3: Unique household approaches as % of households within LA
C4: 1 April 2014 to 31 March 2015
A5: Scotland | B5: 2463569 | C5: 39643 | D5: =C5/B5 -> 0.01609169461
A6: Aberdeen City | B6: 107635 | C6: 4070 | D6: =C6/B6 -> 0.03781297905
A7: Aberdeenshire | B7: 110941 | C7: 1330 | D7: 0.01198835417
A8: Angus | B8: 53627 | C8: 866 | D8: 0.01614858187
A9: Argyll & Bute | B9: 41455 | C9: 1535 | D9: 0.03702810276
A10: Clackmannanshire | B10: 23563 | C10: 495 | D10: 0.02100751178
A11: Dumfries & Galloway | B11: 69503 | C11: 642 | D11: 0.009237011352
A12: Dundee City | B12: 70049 | C12: 1088 | D12: 0.01553198475
A13: East Ayrshire | B13: 54873 | C13: 78 | D13: 0.001421464108
A14: East Dunbartonshire | B14: 45690 | C14: 211 | D14: 0.004618078354
A15: East Lothian | B15: 45301 | C15: 83 | D15: 0.001832189135
A16: East Renfrewshire | B16: 38899 | C16: 125 | D16: 0.003213450217
A17: Edinburgh, City of | B17: 233369 | C17: 4940 | D17: 0.02116819286
A18: Eilean Siar | B18: 12805 | C18: 15 | D18: 0.001171417415
A19: Falkirk | B19: 71800 | C19: 1533 | D19: 0.02135097493
A20: Fife | B20: 166960 | C20: 2040 | D20: 0.01221849545
A21: Glasgow City | B21: 291115 | C21: 7772 | D21: 0.02669735328
A22: Highland | B22: 108319 | C22: 234 | D22: 0.002160285822
A23: Inverclyde | B23: 37651 | C23: 764 | D23: 0.02029162572
A24: Midlothian | B24: 38557 | C24: 256 | D24: 0.00663952071
A25: Moray | B25: 42269 | C25: 980 | D25: 0.02318483995
A26: North Ayrshire | B26: 63756 | C26: 1230 | D26: 0.0192923019
A27: North Lanarkshire | B27: 151155 | C27: 1574 | D27: 0.01041315206
A28: Orkney Islands | B28: 10385 | C28: 25 | D28: 0.002407318247
A29: Perth & Kinross | B29: 67618 | C29: 2127 | D29: 0.03145612115
A30: Renfrewshire | B30: 84938 | C30: 1731 | D30: 0.02037957098
A31: Scottish Borders | B31: 54306 | C31: 648 | D31: 0.01193238316
A32: Shetland Islands | B32: 10341 | C32: 192 | D32: 0.01856686974
A33: South Ayrshire | B33: 52104 | C33: 1024 | D33: 0.01965300169
A34: South Lanarkshire | B34: 145182 | C34: 773 | D34: 0.005324351504
A35: Stirling | B35: 39285 | C35: 314 | D35: 0.007992872598
A36: West Dunbartonshire | B36: 42746 | C36: 238 | D36: 0.005567772423
A37: West Lothian | B37: 77369 | C37: 710 | D37: 0.009176802078
A39: Sources:
A40: 1) National Records of Scotland: Household estimates for Scotland by council area, June 1991 to 2017
A41: http://www.gro-scotland.gov.uk/statistics-and-data/statistics/statistics-by-theme/housholds/household-estimates
A48: Data for chart
A49: Eilean Siar | B49: 11.71417415
A50: East Ayrshire | B50: 14.21464108
A51: East Lothian | B51: 18.32189135
A52: Highland | B52: 21.60285822
A53: Orkney Islands | B53: 24.07318247
A54: East Renfrewshire | B54: 32.13450217
A55: East Dunbartonshire | B55: 46.18078354
A56: South Lanarkshire | B56: 53.24351504
A57: West Dunbartonshire | B57: 55.67772423
A58: Midlothian | B58: 66.3952071
A59: Stirling | B59: 79.92872598
A60: West Lothian | B60: 91.76802078
A61: Dumfries & Galloway | B61: 92.37011352
A62: North Lanarkshire | B62: 104.1315206
A63: Scottish Borders | B63: 119.3238316
A64: Aberdeenshire | B64: 119.8835417
A65: Fife | B65: 122.1849545
A66: Dundee City | B66: 155.3198475
A67: Scotland | B67: 160.9169461
A68: Angus | B68: 161.4858187
A69: Shetland Islands | B69: 185.6686974
A70: North Ayrshire | B70: 192.923019
A71: South Ayrshire | B71: 196.5300169
A72: Inverclyde | B72: 202.9162572
A73: Renfrewshire | B73: 203.7957098
A74: Clackmannanshire | B74: 210.0751178
A75: Edinburgh, City of | B75: 211.6819286
A76: Falkirk | B76: 213.5097493
A77: Moray | B77: 231.8483995
A78: Glasgow City | B78: 266.9735328
A79: Perth & Kinross | B79: 314.5612115
A80: Argyll & Bute | B80: 370.2810276
A81: Aberdeen City | B81: 378.1297905

Sheet Chart 2 - Rates of Approaches
A1: Chart 2: Rates of Approaches per 10,000 households | N1: Back to Contents
A2: Households making approaches between 1 April 2017 and 31 March 2018

Sheet Table 3 - Open Approaches
A1: Table 3: Open Approaches at the end of each quarter by LA | O1: Back to Contents | S1: Back to Contents
A3: Local Authority | T3: Approaches received 1 April 2014 to 31 March 2018 (from Table1) | U3: Open Approaches as a % of all Approaches | W3: Local authority proportions 2017/18
B4: 2014-06-30 | C4: 2014-09-30 | D4: 2014-12-31 | E4: 2015-03-31 | F4: 2015-06-30 | G4: 2015-09-30 | H4: 2015-12-31 | I4: 2016-03-31 | J4: 2016-06-30 | K4: 2016-09-30 | L4: 2016-12-31 | M4: 2017-03-31 | N4: 2017-06-30 | O4: 2017-09-30 | P4: 2017-12-31 | Q4: 2018-03-31
A5: Scotland | B5: 7430 | C5: 9615 | D5: 10190 | E5: 13720 | F5: 15630 | G5: 17000 | H5: 16490 | I5: 18200 | J5: 18780 | K5: 19735 | L5: 19485 | M5: 18340 | N5: 16620 | O5: 17365 | P5: 17495 | Q5: 18270 | T5: 215585 | U5: =Q5/T5 -> 0.08474615581 | W5: =Q5/$Q$5 -> 1
A6: Aberdeen City | B6: 710 | C6: 1155 | D6: 1390 | E6: 2445 | F6: 3480 | G6: 4165 | H6: 4675 | I6: 5340 | J6: 5630 | K6: 5680 | L6: 5540 | M6: 4220 | N6: 1775 | O6: 1735 | P6: 1490 | Q6: 1565 | T6: 22065 | U6: =Q6/T6 -> 0.07092680716 | W6: =Q6/$Q$5 -> 0.08565955118
A7: Aberdeenshire | B7: 125 | C7: 150 | D7: 190 | E7: 235 | F7: 240 | G7: 275 | H7: 235 | I7: 370 | J7: 365 | K7: 240 | L7: 220 | M7: 220 | N7: 240 | O7: 225 | P7: 300 | Q7: 425 | T7: 7420 | U7: 0.05727762803 | W7: 0.02326217843 | Y7: Edinburgh | Z7: 0.2008757526
A8: Angus | B8: 85 | C8: 105 | D8: 105 | E8: 150 | F8: 195 | G8: 200 | H8: 180 | I8: 185 | J8: 245 | K8: 315 | L8: 290 | M8: 320 | N8: 275 | O8: 265 | P8: 190 | Q8: 80 | T8: 4020 | U8: 0.01990049751 | W8: 0.004378762999 | Y8: Fife | Z8: 0.1425834702
A9: Argyll & Bute | B9: 45 | C9: 15 | D9: 115 | E9: 270 | F9: 315 | G9: 275 | H9: 335 | I9: 340 | J9: 415 | K9: 495 | L9: 435 | M9: 460 | N9: 565 | O9: 620 | P9: 620 | Q9: 705 | T9: 6735 | U9: 0.1046770601 | W9: 0.03858784893 | Y9: North Lanarkshire | Z9: 0.158456486
A10: Clackmannanshire | B10: 10 | C10: 25 | D10: 25 | E10: 25 | F10: 15 | G10: 25 | H10: 35 | I10: 10 | J10: 30 | K10: 15 | L10: 15 | M10: 75 | N10: 100 | O10: 95 | P10: 120 | Q10: 125 | T10: 1265 | U10: 0.09881422925 | W10: 0.006841817187 | Y10: Aberdeen City | Z10: 0.08565955118
A11: Dumfries & Galloway | B11: 165 | C11: 190 | D11: 180 | E11: 225 | F11: 250 | G11: 240 | H11: 255 | I11: 240 | J11: 180 | K11: 200 | L11: 35 | M11: 30 | N11: 15 | O11: 20 | P11: 30 | Q11: 65 | T11: 3420 | U11: 0.01900584795 | W11: 0.003557744937 | Y11: All others | Z11: =SUM(W7:W16,W18:W19,W21:W26,W28:W37) -> 0.41242474
A12: Dundee City | B12: 175 | C12: 215 | D12: 60 | E12: 105 | F12: 275 | G12: 255 | H12: 145 | I12: 220 | J12: 170 | K12: 145 | L12: 120 | M12: 180 | N12: 130 | O12: 120 | P12: 120 | Q12: 60 | T12: 7995 | U12: 0.007504690432 | W12: 0.00328407225
A13: East Ayrshire | B13: 50 | C13: 70 | D13: 55 | E13: 45 | F13: 30 | G13: 20 | H13: 5 | I13: 20 | J13: 25 | K13: 35 | L13: 40 | M13: 30 | N13: 25 | O13: 25 | P13: 20 | Q13: 30 | T13: 380 | U13: 0.07894736842 | W13: 0.001642036125
A14: East Dunbartonshire | B14: 10 | C14: 20 | D14: 25 | E14: 20 | F14: 30 | G14: 20 | H14: 20 | I14: 30 | J14: 30 | K14: 35 | L14: 35 | M14: 55 | N14: 55 | O14: 65 | P14: 75 | Q14: 105 | T14: 955 | U14: 0.109947644 | W14: 0.005747126437
A15: East Lothian | B15: 80 | C15: 95 | D15: 35 | E15: 80 | F15: 55 | G15: 65 | H15: 45 | I15: 45 | J15: 25 | K15: 30 | L15: 30 | M15: 40 | N15: 40 | O15: 50 | P15: 55 | Q15: 60 | T15: 1085 | U15: 0.05529953917 | W15: 0.00328407225
A16: East Renfrewshire | B16: 35 | C16: 85 | D16: 55 | E16: 50 | F16: 55 | G16: 85 | H16: 90 | I16: 105 | J16: 95 | K16: 85 | L16: 100 | M16: 90 | N16: 115 | O16: 110 | P16: 95 | Q16: 65 | T16: 655 | U16: 0.09923664122 | W16: 0.003557744937
A17: Edinburgh | B17: 1050 | C17: 1725 | D17: 2015 | E17: 2555 | F17: 2785 | G17: 2835 | H17: 2805 | I17: 2875 | J17: 2960 | K17: 3080 | L17: 3085 | M17: 3210 | N17: 3370 | O17: 3505 | P17: 3480 | Q17: 3670 | T17: 27575 | U17: 0.1330915684 | W17: 0.2008757526
A18: Eilean Siar | B18: 10 | C18: 10 | D18: 5 | E18: 10 | F18: 5 | G18: 5 | H18: 10 | I18: 10 | J18: 5 | K18: 5 | L18: 5 | M18: 15 | N18: 10 | O18: 10 | P18: 15 | Q18: 10 | T18: 60 | U18: 0.1666666667 | W18: 0.0005473453749
A19: Falkirk | B19: 430 | C19: 665 | D19: 840 | E19: 290 | F19: 245 | G19: 265 | H19: 190 | I19: 130 | J19: 100 | K19: 90 | L19: 80 | M19: 40 | N19: 235 | O19: 325 | P19: 370 | Q19: 580 | T19: 7625 | U19: 0.07606557377 | W19: 0.03174603175
A20: Fife | B20: 230 | C20: 335 | D20: 185 | E20: 435 | F20: 400 | G20: 460 | H20: 500 | I20: 840 | J20: 925 | K20: 1200 | L20: 1340 | M20: 1655 | N20: 1850 | O20: 2085 | P20: 2370 | Q20: 2605 | T20: 10935 | U20: 0.2382258802 | W20: 0.1425834702
A21: Glasgow City | B21: 1245 | C21: 1150 | D21: 1160 | E21: 1765 | F21: 1825 | G21: 2290 | H21: 1795 | I21: 1410 | J21: 1435 | K21: 1725 | L21: 1315 | M21: 760 | N21: 765 | O21: 1015 | P21: 1070 | Q21: 1120 | T21: 41925 | U21: 0.0267143709 | W21: 0.06130268199
A22: Highland | B22: 240 | C22: 265 | D22: 210 | E22: 490 | F22: 390 | G22: 285 | H22: 250 | I22: 330 | J22: 195 | K22: 215 | L22: 205 | M22: 185 | N22: 190 | O22: 200 | P22: 145 | Q22: 110 | T22: 4020 | U22: 0.02736318408 | W22: 0.006020799124
A23: Inverclyde | B23: 170 | C23: 325 | D23: 335 | E23: 320 | F23: 335 | G23: 340 | H23: 300 | I23: 310 | J23: 325 | K23: 310 | L23: 340 | M23: 395 | N23: 385 | O23: 455 | P23: 535 | Q23: 595 | T23: 3760 | U23: 0.1582446809 | W23: 0.03256704981
A24: Midlothian | B24: 125 | C24: 185 | D24: 155 | E24: 140 | F24: 170 | G24: 195 | H24: 235 | I24: 350 | J24: 405 | K24: 475 | L24: 495 | M24: 540 | N24: 575 | O24: 620 | P24: 660 | Q24: 470 | T24: 1585 | U24: 0.2965299685 | W24: 0.02572523262
A25: Moray | B25: 170 | C25: 190 | D25: 170 | E25: 220 | F25: 225 | G25: 150 | H25: 110 | I25: 200 | J25: 155 | K25: 165 | L25: 115 | M25: 190 | N25: 190 | O25: 215 | P25: 115 | Q25: 185 | T25: 4480 | U25: 0.04129464286 | W25: 0.01012588944
A26: North Ayrshire | B26: 220 | C26: 500 | D26: 605 | E26: 815 | F26: 880 | G26: 1045 | H26: 1090 | I26: 1030 | J26: 1030 | K26: 705 | L26: 590 | M26: 565 | N26: 570 | O26: 590 | P26: 630 | Q26: 640 | T26: 6590 | U26: 0.0971168437 | W26: 0.035030104
A27: North Lanarkshire | B27: 385 | C27: 445 | D27: 355 | E27: 550 | F27: 760 | G27: 635 | H27: 500 | I27: 685 | J27: 920 | K27: 1340 | L27: 2070 | M27: 2450 | N27: 2585 | O27: 2605 | P27: 2685 | Q27: 2895 | T27: 11770 | U27: 0.2459643161 | W27: 0.158456486
A28: Orkney | B28: 10 | C28: 25 | D28: 20 | E28: 20 | F28: 25 | G28: 25 | H28: 20 | I28: 20 | J28: 15 | K28: 25 | L28: 15 | M28: 5 | N28: 15 | O28: 10 | P28: 5 | Q28: 5 | T28: 170 | U28: 0.02941176471 | W28: 0.0002736726875
A29: Perth & Kinross | B29: 300 | C29: 350 | D29: 400 | E29: 560 | F29: 515 | G29: 655 | H29: 720 | I29: 740 | J29: 775 | K29: 905 | L29: 995 | M29: 730 | N29: 570 | O29: 585 | P29: 590 | Q29: 350 | T29: 9000 | U29: 0.03888888889 | W29: 0.01915708812
A30: Renfrewshire | B30: 270 | C30: 235 | D30: 280 | E30: 300 | F30: 330 | G30: 315 | H30: 290 | I30: 365 | J30: 365 | K30: 425 | L30: 410 | M30: 395 | N30: 375 | O30: 330 | P30: 345 | Q30: 365 | T30: 8175 | U30: 0.04464831804 | W30: 0.01997810619
A31: Scottish Borders | B31: 120 | C31: 135 | D31: 110 | E31: 165 | F31: 175 | G31: 150 | H31: 125 | I31: 150 | J31: 160 | K31: 145 | L31: 120 | M31: 145 | N31: 130 | O31: 95 | P31: 95 | Q31: 45 | T31: 3395 | U31: 0.01325478645 | W31: 0.002463054187
A32: Shetland | B32: 45 | C32: 60 | D32: 85 | E32: 70 | F32: 65 | G32: 70 | H32: 75 | I32: 70 | J32: 60 | K32: 40 | L32: 50 | M32: 55 | N32: 35 | O32: 45 | P32: 30 | Q32: 25 | T32: 870 | U32: 0.02873563218 | W32: 0.001368363437
A33: South Ayrshire | B33: 135 | C33: 200 | D33: 220 | E33: 355 | F33: 460 | G33: 535 | H33: 390 | I33: 465 | J33: 450 | K33: 335 | L33: 175 | M33: 40 | N33: 80 | O33: 135 | P33: 175 | Q33: 265 | T33: 4755 | U33: 0.05573080967 | W33: 0.01450465244
A34: South Lanarkshire | B34: 460 | C34: 295 | D34: 435 | E34: 475 | F34: 490 | G34: 590 | H34: 555 | I34: 675 | J34: 675 | K34: 595 | L34: 570 | M34: 655 | N34: 650 | O34: 565 | P34: 535 | Q34: 525 | T34: 4035 | U34: 0.1301115242 | W34: 0.02873563218
A35: Stirling | B35: 125 | C35: 135 | D35: 115 | E35: 155 | F35: 215 | G35: 210 | H35: 190 | I35: 210 | J35: 165 | K35: 170 | L35: 140 | M35: 175 | N35: 185 | O35: 220 | P35: 145 | Q35: 135 | T35: 1715 | U35: 0.07871720117 | W35: 0.007389162562
A36: West Dunbartonshire | B36: 100 | C36: 140 | D36: 135 | E36: 155 | F36: 110 | G36: 45 | H36: 40 | I36: 55 | J36: 60 | K36: 75 | L36: 75 | M36: 75 | N36: 80 | O36: 95 | P36: 75 | Q36: 80 | T36: 2485 | U36: 0.03219315895 | W36: 0.004378762999
A37: West Lothian | B37: 90 | C37: 115 | D37: 130 | E37: 220 | F37: 280 | G37: 280 | H37: 290 | I37: 370 | J37: 390 | K37: 435 | L37: 450 | M37: 345 | N37: 415 | O37: 325 | P37: 320 | Q37: 310 | T37: 4660 | U37: =Q37/T37 -> 0.06652360515 | W37: 0.01696770662
A39: Disclosure Control has been applied to this table. All cells have been rounded to the nearest five.
A40: Column totals may not sum to total of individual cells due to rounding.
A42: Chart Data - Open Cases
B43: =U3 -> Open Approaches as a % of all Approaches
A45: Dundee City | B45: 0.007502813555
A46: Scottish Borders | B46: 0.01325088339
A47: Dumfries & Galloway | B47: 0.01900029231
A48: Angus | B48: 0.01989554837
A49: Glasgow City | B49: 0.02671373372
A50: Highland | B50: 0.02734957732
A51: Shetland | B51: 0.02870264064
A52: Orkney | B52: 0.02941176471
A53: West Dunbartonshire | B53: 0.03221908981
A54: Perth & Kinross | B54: 0.03888888889
A55: Moray | B55: 0.0413130862
A56: Renfrewshire | B56: 0.04464831804
A57: East Lothian | B57: 0.05535055351
A58: South Ayrshire | B58: 0.05573080967
A59: Aberdeenshire | B59: 0.05726990972
A60: West Lothian | B60: 0.06653788367
A61: Aberdeen City | B61: 0.07093002175
A62: Falkirk | B62: 0.07604562738
A63: Stirling | B63: 0.07880910683
A64: East Ayrshire | B64: 0.07936507937
A65: Scotland | B65: 0.08474536962
A66: North Ayrshire | B66: 0.09714632665
A67: Clackmannanshire | B67: 0.09865824783
A68: East Renfrewshire | B68: 0.09908536585
A69: Argyll & Bute | B69: 0.1046926047
A70: East Dunbartonshire | B70: 0.109832636
A71: South Lanarkshire | B71: 0.1300792864
A72: Edinburgh | B72: 0.1330963952
A73: Inverclyde | B73: 0.1581605529
A74: Eilean Siar | B74: 0.1724137931
A75: Fife | B75: 0.2381823169
A76: North Lanarkshire | B76: 0.245922528
A77: Midlothian | B77: 0.2963430013
A79: Note: To calculate these figures, see 'Calculating open approaches.xlsx' in the publication folder

Sheet Chart 3a & 3b - Open Approaches
A1: Chart 3a: Open Approaches at the end of each quarter - Scotland | K1: Back to Contents
A25: Chart 3b: Open approaches as a proportion of all approaches received between 1 April 2014 and 31 March 2018

Sheet Chart 3c
A1: Chart 3c: Distribution of the number of days approaches have been open for | G1: Back to Contents
A63: Working for Chart 15: For Approaches open on 31 March 2018, how long have they been open for?
A65: Local Authority | B65: Number of Open Approaches on 31 March 2018 | C65: Number of days between Approach Date and 31 March 2018
C66: P5 | D66: Q1 | E66: Median | F66: Q3 | G66: P95
A67: Scotland | B67: 18268 | C67: 11 | D67: 72 | E67: 234 | F67: 508 | G67: 1132
A68: Aberdeen City | B68: 1564 | C68: 8 | D68: 40 | E68: 88 | F68: 259 | G68: 705
A69: Aberdeenshire | B69: 423 | C69: 10 | D69: 40 | E69: 75 | F69: 150 | G69: 254
A70: Angus | B70: 82 | C70: 3 | D70: 16 | E70: 43 | F70: 110 | G70: 1277
A71: Argyll & Bute | B71: 703 | C71: 11 | D71: 50 | E71: 155 | F71: 387 | G71: 1114
A72: Clackmannanshire | B72: 126 | C72: 10 | D72: 52 | E72: 115 | F72: 214 | G72: 374
A73: Dumfries & Galloway | B73: 63 | C73: 4 | D73: 17 | E73: 43 | F73: 72 | G73: 134
A74: Dundee City | B74: 62 | C74: 2 | D74: 17 | E74: 64 | F74: 302 | G74: 1121
A75: East Ayrshire | B75: 30 | C75: 9 | D75: 26 | E75: 47 | F75: 82 | G75: 124
A76: East Dunbartonshire | B76: 106 | C76: 16 | D76: 53 | E76: 264 | F76: 625 | G76: 1404
A77: East Lothian | B77: 60 | C77: 9 | D77: 171 | E77: 234 | F77: 384 | G77: 483
A78: East Renfrewshire | B78: 64 | C78: 11 | D78: 90 | E78: 216 | F78: 1234 | G78: 1417
A79: Edinburgh | B79: 3670 | C79: 17 | D79: 86 | E79: 229 | F79: 389 | G79: 641
A80: Eilean Siar | B80: 8 | C80: 178 | D80: 266 | E80: 282 | F80: 370 | G80: 423
A81: Falkirk | B81: 580 | C81: 8 | D81: 40 | E81: 89 | F81: 164 | G81: 248
A82: Fife | B82: 2606 | C82: 40 | D82: 191 | E82: 402 | F82: 655 | G82: 995
A83: Glasgow City | B83: 1120 | C83: 4 | D83: 23 | E83: 75 | F83: 243 | G83: 503
A84: Highland | B84: 109 | C84: 22 | D84: 143 | E84: 302 | F84: 844 | G84: 1208
A85: Inverclyde | B85: 596 | C85: 18 | D85: 109 | E85: 240 | F85: 468 | G85: 1394
A86: Midlothian | B86: 470 | C86: 46 | D86: 228 | E86: 732 | F86: 927 | G86: 1353
A87: Moray | B87: 183 | C87: 3 | D87: 11 | E87: 33 | F87: 68 | G87: 159
A88: North Ayrshire | B88: 641 | C88: 17 | D88: 80 | E88: 268 | F88: 470 | G88: 1097
A89: North Lanarkshire | B89: 2894 | C89: 39 | D89: 213 | E89: 421 | F89: 556 | G89: 729
A90: Orkney | B90: 7 | C90: 19 | D90: 39 | E90: 103 | F90: 409 | G90: 610
A91: Perth & Kinross | B91: 349 | C91: 4 | D91: 19 | E91: 82 | F91: 376 | G91: 998
A92: Renfrewshire | B92: 363 | C92: 4 | D92: 26 | E92: 506 | F92: 1369 | G92: 1409
A93: Scottish Borders | B93: 46 | C93: 5 | D93: 19 | E93: 105 | F93: 204 | G93: 649
A94: Shetland | B94: 24 | C94: 9 | D94: 28 | E94: 64 | F94: 206 | G94: 964
A95: South Ayrshire | B95: 265 | C95: 8 | D95: 38 | E95: 86 | F95: 212 | G95: 897
A96: South Lanarkshire | B96: 525 | C96: 23 | D96: 107 | E96: 907 | F96: 1283 | G96: 1388
A97: Stirling | B97: 136 | C97: 9 | D97: 109 | E97: 1223 | F97: 1265 | G97: 1376
A98: West Dunbartonshire | B98: 82 | C98: 4 | D98: 33 | E98: 110 | F98: 1282 | G98: 1438
A99: West Lothian | B99: 311 | C99: 9 | D99: 114 | E99: 521 | F99: 821 | G99: 1156
A101: Notes
A102: P5 = 5th Percentile. 5% of approaches have been open for this many days.
A103: Q1 = First Quartile. 25% of approaches have been open for this many days.
A104: Median. 50% of approaches have been open for this many days.
A105: Q3 = First Quartile. 75% of approaches have been open for this many days. Conversely, 25% of cases have been open for more than this number of days.
A106: P95 = 95th Percentile. 5% of approaches have been open for more than this number of days.
A109: Data for Box Plot
B111: Number of days between Approach Date and 31 March 2016
A112: Local Authority | B112: P5 | C112: Q1 | D112: Median | E112: Q3 | F112: P95
A113: Scotland | B113: 11 | C113: 72 | D113: 234 | E113: 508 | F113: 1132
A114: Aberdeen City | B114: 8 | C114: 40 | D114: 88 | E114: 259 | F114: 705
A115: Aberdeenshire | B115: 10 | C115: 40 | D115: 75 | E115: 150 | F115: 254
A116: Angus | B116: 3 | C116: 16 | D116: 43 | E116: 110 | F116: 1277
A117: Argyll & Bute | B117: 11 | C117: 50 | D117: 155 | E117: 387 | F117: 1114
A118: Clackmannanshire | B118: 10 | C118: 52 | D118: 115 | E118: 214 | F118: 374
A119: Dumfries & Galloway | B119: 4 | C119: 17 | D119: 43 | E119: 72 | F119: 134
A120: Dundee City | B120: 2 | C120: 17 | D120: 64 | E120: 302 | F120: 1121
A121: East Ayrshire | B121: 9 | C121: 26 | D121: 47 | E121: 82 | F121: 124
A122: East Dunbartonshire | B122: 16 | C122: 53 | D122: 264 | E122: 625 | F122: 1404
A123: East Lothian | B123: 9 | C123: 171 | D123: 234 | E123: 384 | F123: 483
A124: East Renfrewshire | B124: 11 | C124: 90 | D124: 216 | E124: 1234 | F124: 1417
A125: Edinburgh | B125: 17 | C125: 86 | D125: 229 | E125: 389 | F125: 641
A126: Eilean Siar | B126: 178 | C126: 266 | D126: 282 | E126: 370 | F126: 423
A127: Falkirk | B127: 8 | C127: 40 | D127: 89 | E127: 164 | F127: 248
A128: Fife | B128: 40 | C128: 191 | D128: 402 | E128: 655 | F128: 995
A129: Glasgow City | B129: 4 | C129: 23 | D129: 75 | E129: 243 | F129: 503
A130: Highland | B130: 22 | C130: 143 | D130: 302 | E130: 844 | F130: 1208
A131: Inverclyde | B131: 18 | C131: 109 | D131: 240 | E131: 468 | F131: 1394
A132: Midlothian | B132: 46 | C132: 228 | D132: 732 | E132: 927 | F132: 1353
A133: Moray | B133: 3 | C133: 11 | D133: 33 | E133: 68 | F133: 159
A134: North Ayrshire | B134: 17 | C134: 80 | D134: 268 | E134: 470 | F134: 1097
A135: North Lanarkshire | B135: 39 | C135: 213 | D135: 421 | E135: 556 | F135: 729
A136: Orkney | B136: 19 | C136: 39 | D136: 103 | E136: 409 | F136: 610
A137: Perth & Kinross | B137: 4 | C137: 19 | D137: 82 | E137: 376 | F137: 998
A138: Renfrewshire | B138: 4 | C138: 26 | D138: 506 | E138: 1369 | F138: 1409
A139: Scottish Borders | B139: 5 | C139: 19 | D139: 105 | E139: 204 | F139: 649
A140: Shetland | B140: 9 | C140: 28 | D140: 64 | E140: 206 | F140: 964
A141: South Ayrshire | B141: 8 | C141: 38 | D141: 86 | E141: 212 | F141: 897
A142: South Lanarkshire | B142: 23 | C142: 107 | D142: 907 | E142: 1283 | F142: 1388
A143: Stirling | B143: 9 | C143: 109 | D143: 1223 | E143: 1265 | F143: 1376
A144: West Dunbartonshire | B144: 4 | C144: 33 | D144: 110 | E144: 1282 | F144: 1438
A145: West Lothian | B145: 9 | C145: 114 | D145: 521 | E145: 821 | F145: 1156
A147: =A112 -> Local Authority | B147: Q1 | C147: Median-Q1 | D147: Q3-Median | E147: Q1-P5 | F147: P95-Q3 | G147: Median
A148: Moray | B148: 11 | C148: 22 | D148: 35 | E148: 8 | F148: 91 | G148: 33
A149: Angus | B149: 16 | C149: 27 | D149: 67 | E149: 13 | F149: 1167 | G149: 43
A150: Dumfries & Galloway | B150: 17 | C150: 26 | D150: 29 | E150: 13 | F150: 62 | G150: 43
A151: East Ayrshire | B151: 26 | C151: 21 | D151: 35 | E151: 17 | F151: 42 | G151: 47
A152: Dundee City | B152: 17 | C152: 47 | D152: 238 | E152: 15 | F152: 819 | G152: 64
A153: Shetland | B153: 28 | C153: 36 | D153: 142 | E153: 19 | F153: 758 | G153: 64
A154: Aberdeenshire | B154: 40 | C154: 35 | D154: 75 | E154: 30 | F154: 104 | G154: 75
A155: Glasgow City | B155: 23 | C155: 52 | D155: 168 | E155: 19 | F155: 260 | G155: 75
A156: Perth & Kinross | B156: 19 | C156: 63 | D156: 294 | E156: 15 | F156: 622 | G156: 82
A157: South Ayrshire | B157: 38 | C157: 48 | D157: 126 | E157: 30 | F157: 685 | G157: 86
A158: Aberdeen City | B158: 40 | C158: 48 | D158: 171 | E158: 32 | F158: 446 | G158: 88
A159: Falkirk | B159: 40 | C159: 49 | D159: 75 | E159: 32 | F159: 84 | G159: 89
A160: Orkney | B160: 39 | C160: 64 | D160: 306 | E160: 20 | F160: 201 | G160: 103
A161: Scottish Borders | B161: 19 | C161: 86 | D161: 99 | E161: 14 | F161: 445 | G161: 105
A162: West Dunbartonshire | B162: 33 | C162: 77 | D162: 1172 | E162: 29 | F162: 156 | G162: 110
A163: Clackmannanshire | B163: 52 | C163: 63 | D163: 99 | E163: 42 | F163: 160 | G163: 115
A164: Argyll & Bute | B164: 50 | C164: 105 | D164: 232 | E164: 39 | F164: 727 | G164: 155
A165: East Renfrewshire | B165: 90 | C165: 126 | D165: 1018 | E165: 79 | F165: 183 | G165: 216
A166: Edinburgh | B166: 86 | C166: 143 | D166: 160 | E166: 69 | F166: 252 | G166: 229
A167: Scotland | B167: 72 | C167: 162 | D167: 274 | E167: 61 | F167: 624 | G167: 234
A168: East Lothian | B168: 171 | C168: 63 | D168: 150 | E168: 162 | F168: 99 | G168: 234
A169: Inverclyde | B169: 109 | C169: 131 | D169: 228 | E169: 91 | F169: 926 | G169: 240
A170: East Dunbartonshire | B170: 53 | C170: 211 | D170: 361 | E170: 37 | F170: 779 | G170: 264
A171: North Ayrshire | B171: 80 | C171: 188 | D171: 202 | E171: 63 | F171: 627 | G171: 268
A172: Eilean Siar | B172: 266 | C172: 16 | D172: 88 | E172: 88 | F172: 53 | G172: 282
A173: Highland | B173: 143 | C173: 159 | D173: 542 | E173: 121 | F173: 364 | G173: 302
A174: Fife | B174: 191 | C174: 211 | D174: 253 | E174: 151 | F174: 340 | G174: 402
A175: North Lanarkshire | B175: 213 | C175: 208 | D175: 135 | E175: 174 | F175: 173 | G175: 421
A176: Renfrewshire | B176: 26 | C176: 480 | D176: 863 | E176: 22 | F176: 40 | G176: 506
A177: West Lothian | B177: 114 | C177: 407 | D177: 300 | E177: 105 | F177: 335 | G177: 521
A178: Midlothian | B178: 228 | C178: 504 | D178: 195 | E178: 182 | F178: 426 | G178: 732
A179: South Lanarkshire | B179: 107 | C179: 800 | D179: 376 | E179: 84 | F179: 105 | G179: 907
A180: Stirling | B180: 109 | C180: 1114 | D180: 42 | E180: 100 | F180: 111 | G180: 1223

Sheet Table 4 - Reasons
A1: Table 4a: Reasons for Approach (Number) | B1: Back to Contents
B3: Quarter of Approach
B4: 2014 Q2 | C4: 2014 Q3 | D4: 2014 Q4 | E4: 2015 Q1 | F4: 2015 Q2 | G4: 2015 Q3 | H4: 2015 Q4 | I4: 2016 Q1 | J4: 2016 Q2 | K4: 2016 Q3 | L4: 2016 Q4 | M4: 2017 Q1 | N4: 2017 Q2 | O4: 2017 Q3 | P4: 2017 Q4 | Q4: 2018 Q1
A5: General housing options advice | B5: 1710 | C5: 1775 | D5: 1610 | E5: 2130 | F5: 1990 | G5: 2130 | H5: 1825 | I5: 2415 | J5: 2125 | K5: 2125 | L5: 1800 | M5: 2240 | N5: 2295 | O5: 2275 | P5: 1505 | Q5: 1995
A6: Dispute within household / relationship breakdown: non-violent | B6: 2260 | C6: 2270 | D6: 1845 | E6: 2130 | F6: 1845 | G6: 1885 | H6: 1570 | I6: 1870 | J6: 1660 | K6: 1765 | L6: 1530 | M6: 1975 | N6: 1590 | O6: 1515 | P6: 1230 | Q6: 1400
A7: Asked to leave | B7: 2365 | C7: 2470 | D7: 2065 | E7: 2475 | F7: 2130 | G7: 2100 | H7: 1780 | I7: 2120 | J7: 1970 | K7: 1775 | L7: 1470 | M7: 1905 | N7: 1625 | O7: 1575 | P7: 1290 | Q7: 1305
A8: Risk of losing accommodation | B8: 1265 | C8: 1245 | D8: 1215 | E8: 1465 | F8: 1280 | G8: 1125 | H8: 1010 | I8: 1235 | J8: 1080 | K8: 1135 | L8: 935 | M8: 1075 | N8: 1005 | O8: 970 | P8: 800 | Q8: 1000
A9: Other action by landlord resulting in the termination of the tenancy | B9: 1160 | C9: 1010 | D9: 825 | E9: 1205 | F9: 1040 | G9: 1040 | H9: 815 | I9: 1115 | J9: 1115 | K9: 955 | L9: 755 | M9: 1070 | N9: 940 | O9: 790 | P9: 605 | Q9: 735
A10: Dispute within household: violent or abusive | B10: 935 | C10: 1040 | D10: 820 | E10: 940 | F10: 835 | G10: 880 | H10: 775 | I10: 835 | J10: 815 | K10: 785 | L10: 715 | M10: 830 | N10: 800 | O10: 780 | P10: 630 | Q10: 710
A11: Discharge from prison / hospital / care / other institution | B11: 1150 | C11: 950 | D11: 720 | E11: 885 | F11: 675 | G11: 670 | H11: 525 | I11: 585 | J11: 610 | K11: 540 | L11: 550 | M11: 605 | N11: 605 | O11: 530 | P11: 430 | Q11: 440
A12: Accommodation unsuitable | B12: 415 | C12: 560 | D12: 510 | E12: 590 | F12: 615 | G12: 620 | H12: 435 | I12: 535 | J12: 505 | K12: 645 | L12: 525 | M12: 635 | N12: 600 | O12: 520 | P12: 385 | Q12: 435
A13: Other reason for leaving accommodation / household | B13: 630 | C13: 670 | D13: 505 | E13: 555 | F13: 470 | G13: 540 | H13: 505 | I13: 500 | J13: 475 | K13: 555 | L13: 405 | M13: 505 | N13: 410 | O13: 445 | P13: 315 | Q13: 375
A14: Termination of tenancy / mortgage due to rent arrears / default on payments | B14: 885 | C14: 870 | D14: 720 | E14: 900 | F14: 650 | G14: 575 | H14: 560 | I14: 620 | J14: 550 | K14: 440 | L14: 420 | M14: 560 | N14: 465 | O14: 400 | P14: 365 | Q14: 365
A15: Other reason for loss of accommodation | B15: 445 | C15: 395 | D15: 365 | E15: 465 | F15: 305 | G15: 345 | H15: 330 | I15: 410 | J15: 425 | K15: 370 | L15: 370 | M15: 410 | N15: 450 | O15: 385 | P15: 305 | Q15: 315
A16: Personal issues – affordability / financial difficulties | B16: 365 | C16: 375 | D16: 335 | E16: 470 | F16: 390 | G16: 385 | H16: 295 | I16: 375 | J16: 370 | K16: 450 | L16: 485 | M16: 475 | N16: 335 | O16: 325 | P16: 210 | Q16: 285
A17: Other | B17: 545 | C17: 660 | D17: 665 | E17: 735 | F17: 740 | G17: 700 | H17: 590 | I17: 665 | J17: 490 | K17: 410 | L17: 240 | M17: 200 | N17: 195 | O17: 215 | P17: 180 | Q17: 180
A18: Overcrowding | B18: 315 | C18: 310 | D18: 270 | E18: 345 | F18: 255 | G18: 235 | H18: 225 | I18: 255 | J18: 180 | K18: 195 | L18: 155 | M18: 200 | N18: 175 | O18: 145 | P18: 145 | Q18: 150
A19: Harassment | B19: 255 | C19: 275 | D19: 205 | E19: 215 | F19: 225 | G19: 210 | H19: 150 | I19: 160 | J19: 180 | K19: 190 | L19: 145 | M19: 180 | N19: 150 | O19: 160 | P19: 90 | Q19: 125
A20: Fleeing non-domestic violence | B20: 270 | C20: 260 | D20: 210 | E20: 205 | F20: 210 | G20: 215 | H20: 175 | I20: 175 | J20: 200 | K20: 135 | L20: 135 | M20: 160 | N20: 160 | O20: 155 | P20: 130 | Q20: 125
A21: Applicant terminated secure accommodation | B21: 170 | C21: 175 | D21: 160 | E21: 175 | F21: 150 | G21: 155 | H21: 130 | I21: 145 | J21: 110 | K21: 150 | L21: 115 | M21: 150 | N21: 135 | O21: 135 | P21: 100 | Q21: 105
A22: Property condition | B22: 140 | C22: 145 | D22: 145 | E22: 220 | F22: 135 | G22: 125 | H22: 140 | I22: 170 | J22: 105 | K22: 100 | L22: 95 | M22: 125 | N22: 75 | O22: 70 | P22: 80 | Q22: 95
A23: Benefit issues & Welfare Reform | B23: 345 | C23: 215 | D23: 280 | E23: 330 | F23: 250 | G23: 155 | H23: 150 | I23: 185 | J23: 120 | K23: 215 | L23: 190 | M23: 135 | N23: 145 | O23: 135 | P23: 95 | Q23: 85
A24: Household experiencing anti-social behaviour / neighbour problems | B24: 105 | C24: 110 | D24: 85 | E24: 75 | F24: 105 | G24: 105 | H24: 70 | I24: 95 | J24: 115 | K24: 105 | L24: 95 | M24: 100 | N24: 100 | O24: 110 | P24: 85 | Q24: 80
A25: Household member needing care | B25: 70 | C25: 150 | D25: 165 | E25: 210 | F25: 165 | G25: 180 | H25: 140 | I25: 180 | J25: 175 | K25: 170 | L25: 120 | M25: 60 | N25: 45 | O25: 45 | P25: 30 | Q25: 40
A26: Forced division and sale of matrimonial home | B26: 70 | C26: 80 | D26: 60 | E26: 65 | F26: 70 | G26: 70 | H26: 45 | I26: 60 | J26: 55 | K26: 50 | L26: 35 | M26: 45 | N26: 45 | O26: 50 | P26: 30 | Q26: 40
A27: Loss of service / tied accommodation | B27: 80 | C27: 80 | D27: 65 | E27: 70 | F27: 60 | G27: 65 | H27: 65 | I27: 60 | J27: 65 | K27: 50 | L27: 35 | M27: 50 | N27: 40 | O27: 60 | P27: 40 | Q27: 35
A28: Landlord issue | B28: 50 | C28: 55 | D28: 40 | E28: 50 | F28: 50 | G28: 45 | H28: 35 | I28: 45 | J28: 35 | K28: 30 | L28: 35 | M28: 35 | N28: 25 | O28: 30 | P28: 20 | Q28: 30
A29: Emergency (fire, flood, storm, closing order from Environmental Health etc.) | B29: 30 | C29: 50 | D29: 35 | E29: 45 | F29: 40 | G29: 35 | H29: 35 | I29: 45 | J29: 50 | K29: 25 | L29: 40 | M29: 30 | N29: 35 | O29: 25 | P29: 30 | Q29: 25
A30: Total | B30: 16025 | C30: 16200 | D30: 13925 | E30: 16950 | F30: 14675 | G30: 14600 | H30: 12380 | I30: 14850 | J30: 13570 | K30: 13365 | L30: 11390 | M30: 13760 | N30: 12440 | O30: 11845 | P30: 9140 | Q30: 10475
A32: Table 4b: Reasons for Approach (Percent)
B34: Quarter of Approach
B35: 2014 Q2 | C35: 2014 Q3 | D35: 2014 Q4 | E35: 2015 Q1 | F35: 2015 Q2 | G35: 2015 Q3 | H35: 2015 Q4 | I35: 2016 Q1 | J35: 2016 Q2 | K35: 2016 Q3 | L35: 2016 Q4 | M35: 2017 Q1 | N35: 2017 Q2 | O35: 2017 Q3 | P35: 2017 Q4 | Q35: 2018 Q1
A36: General housing options advice | B36: =B5/B$30 -> 0.1067082683 | C36: 0.1095679012 | D36: 0.1156193896 | E36: 0.1256637168 | F36: 0.13560477 | G36: 0.145890411 | H36: 0.1474151858 | I36: 0.1626262626 | J36: 0.1565954311 | K36: 0.1589973812 | L36: 0.1580333626 | M36: 0.1627906977 | N36: 0.1844855305 | O36: 0.1920641621 | P36: 0.1646608315 | Q36: =Q5/Q$30 -> 0.1904534606
A37: Dispute within household / relationship breakdown: non-violent | B37: 0.1410296412 | C37: 0.1401234568 | D37: 0.1324955117 | E37: 0.1256637168 | F37: 0.1257240204 | G37: 0.129109589 | H37: 0.1268174475 | I37: 0.1259259259 | J37: 0.1223286662 | K37: 0.1320613543 | L37: 0.1343283582 | M37: 0.1435319767 | N37: 0.1278135048 | O37: 0.1279020684 | P37: 0.1345733042 | Q37: =Q6/Q$30 -> 0.1336515513
A38: Asked to leave | B38: 0.1475819033 | C38: 0.1524691358 | D38: 0.1482944345 | E38: 0.1460176991 | F38: 0.1451448041 | G38: 0.1438356164 | H38: 0.1437802908 | I38: 0.1427609428 | J38: 0.1451731761 | K38: 0.1328095773 | L38: 0.1290605795 | M38: 0.1384447674 | N38: 0.1306270096 | O38: 0.1329674968 | P38: 0.1411378556 | Q38: 0.1245823389
A39: Risk of losing accommodation | B39: 0.07893915757 | C39: 0.07685185185 | D39: 0.08725314183 | E39: 0.08643067847 | F39: 0.08722316865 | G39: 0.07705479452 | H39: 0.08158319871 | I39: 0.08316498316 | J39: 0.07958732498 | K39: 0.08492330715 | L39: 0.08208955224 | M39: 0.078125 | N39: 0.08078778135 | O39: 0.08189109329 | P39: 0.0875273523 | Q39: 0.09546539379
A40: Other action by landlord resulting in the termination of the tenancy | B40: 0.07238689548 | C40: 0.06234567901 | D40: 0.0592459605 | E40: 0.07109144543 | F40: 0.07086882453 | G40: 0.07123287671 | H40: 0.06583198708 | I40: 0.07508417508 | J40: 0.08216654385 | K40: 0.07145529368 | L40: 0.06628621598 | M40: 0.07776162791 | N40: 0.07556270096 | O40: 0.06669480794 | P40: 0.06619256018 | Q40: 0.07016706444
A41: Dispute within household: violent or abusive | B41: 0.05834633385 | C41: 0.06419753086 | D41: 0.05888689408 | E41: 0.05545722714 | F41: 0.05689948893 | G41: 0.0602739726 | H41: 0.06260096931 | I41: 0.05622895623 | J41: 0.06005895357 | K41: 0.05873550318 | L41: 0.06277436348 | M41: 0.06031976744 | N41: 0.06430868167 | O41: 0.06585056986 | P41: 0.06892778993 | Q41: 0.06778042959
A42: Discharge from prison / hospital / care / other institution | B42: 0.07176287051 | C42: 0.05864197531 | D42: 0.05170556553 | E42: 0.05221238938 | F42: 0.04599659284 | G42: 0.04589041096 | H42: 0.04240710824 | I42: 0.03939393939 | J42: 0.04495210022 | K42: 0.0404040404 | L42: 0.04828797191 | M42: 0.04396802326 | N42: 0.04863344051 | O42: 0.04474461798 | P42: 0.04704595186 | Q42: 0.04200477327
A43: Accommodation unsuitable | B43: 0.02589703588 | C43: 0.03456790123 | D43: 0.03662477558 | E43: 0.03480825959 | F43: 0.04190800681 | G43: 0.04246575342 | H43: 0.03513731826 | I43: 0.03602693603 | J43: 0.03721444363 | K43: 0.04826038159 | L43: 0.04609306409 | M43: 0.04614825581 | N43: 0.04823151125 | O43: 0.04390037991 | P43: 0.04212253829 | Q43: 0.0415274463
A44: Other reason for leaving accommodation / household | B44: 0.03931357254 | C44: 0.04135802469 | D44: 0.03626570916 | E44: 0.03274336283 | F44: 0.03202725724 | G44: 0.03698630137 | H44: 0.04079159935 | I44: 0.03367003367 | J44: 0.0350036846 | K44: 0.04152637486 | L44: 0.03555750658 | M44: 0.0367005814 | N44: 0.03295819936 | O44: 0.03756859434 | P44: 0.03446389497 | Q44: 0.03579952267
A45: Termination of tenancy / mortgage due to rent arrears / default on payments | B45: 0.05522620905 | C45: 0.0537037037 | D45: 0.05170556553 | E45: 0.05309734513 | F45: 0.04429301533 | G45: 0.03938356164 | H45: 0.04523424879 | I45: 0.04175084175 | J45: 0.04053058217 | K45: 0.0329218107 | L45: 0.03687445127 | M45: 0.04069767442 | N45: 0.03737942122 | O45: 0.03376952301 | P45: 0.03993435449 | Q45: 0.03484486874
A46: Other reason for loss of accommodation | B46: 0.02776911076 | C46: 0.02438271605 | D46: 0.02621184919 | E46: 0.02743362832 | F46: 0.02078364566 | G46: 0.02363013699 | H46: 0.02665589661 | I46: 0.02760942761 | J46: 0.03131908622 | K46: 0.02768424991 | L46: 0.03248463565 | M46: 0.02979651163 | N46: 0.03617363344 | O46: 0.03250316589 | P46: 0.03336980306 | Q46: 0.03007159905
A47: Personal issues – affordability / financial difficulties | B47: 0.02277691108 | C47: 0.02314814815 | D47: 0.02405745063 | E47: 0.02772861357 | F47: 0.0265758092 | G47: 0.02636986301 | H47: 0.02382875606 | I47: 0.02525252525 | J47: 0.027266028 | K47: 0.03367003367 | L47: 0.04258121159 | M47: 0.03452034884 | N47: 0.02692926045 | O47: 0.02743773744 | P47: 0.02297592998 | Q47: 0.02720763723
A48: Other | B48: 0.03400936037 | C48: 0.04074074074 | D48: 0.04775583483 | E48: 0.04336283186 | F48: 0.05042589438 | G48: 0.04794520548 | H48: 0.04765751212 | I48: 0.04478114478 | J48: 0.03610906411 | K48: 0.03067714179 | L48: 0.02107111501 | M48: 0.01453488372 | N48: 0.01567524116 | O48: 0.01815111862 | P48: 0.01969365427 | Q48: 0.01718377088
A49: Overcrowding | B49: 0.01965678627 | C49: 0.01913580247 | D49: 0.01938958707 | E49: 0.0203539823 | F49: 0.01737649063 | G49: 0.01609589041 | H49: 0.01817447496 | I49: 0.01717171717 | J49: 0.01326455416 | K49: 0.01459034792 | L49: 0.01360842845 | M49: 0.01453488372 | N49: 0.01406752412 | O49: 0.01224145209 | P49: 0.0158643326 | Q49: 0.01431980907
A50: Harassment | B50: 0.01591263651 | C50: 0.01697530864 | D50: 0.01472172352 | E50: 0.01268436578 | F50: 0.01533219761 | G50: 0.01438356164 | H50: 0.01211631664 | I50: 0.01077441077 | J50: 0.01326455416 | K50: 0.01421623644 | L50: 0.01273046532 | M50: 0.01308139535 | N50: 0.01205787781 | O50: 0.0135078092 | P50: 0.009846827133 | Q50: 0.01193317422
A51: Fleeing non-domestic violence | B51: 0.01684867395 | C51: 0.01604938272 | D51: 0.01508078995 | E51: 0.01209439528 | F51: 0.01431005111 | G51: 0.0147260274 | H51: 0.01413570275 | I51: 0.01178451178 | J51: 0.01473839352 | K51: 0.0101010101 | L51: 0.01185250219 | M51: 0.01162790698 | N51: 0.01286173633 | O51: 0.01308569016 | P51: 0.01422319475 | Q51: 0.01193317422
A52: Applicant terminated secure accommodation | B52: =B21/B$30 -> 0.01060842434 | C52: 0.01080246914 | D52: 0.01149012567 | E52: 0.01032448378 | F52: 0.01022146508 | G52: 0.01061643836 | H52: 0.01050080775 | I52: 0.009764309764 | J52: 0.008106116433 | K52: 0.01122334456 | L52: 0.01009657594 | M52: 0.01090116279 | N52: 0.01085209003 | O52: 0.01139721401 | P52: 0.01094091904 | Q52: 0.01002386635
A53: Property condition | B53: 0.008736349454 | C53: 0.008950617284 | D53: 0.01041292639 | E53: 0.01297935103 | F53: 0.009199318569 | G53: 0.008561643836 | H53: 0.0113085622 | I53: 0.01144781145 | J53: 0.007737656595 | K53: 0.007482229704 | L53: 0.008340649693 | M53: 0.009084302326 | N53: 0.006028938907 | O53: 0.005909666526 | P53: 0.00875273523 | Q53: 0.009069212411
A54: Benefit issues & Welfare Reform | B54: 0.02152886115 | C54: 0.01327160494 | D54: 0.02010771993 | E54: 0.01946902655 | F54: 0.01703577513 | G54: 0.01061643836 | H54: 0.01211631664 | I54: 0.01245791246 | J54: 0.008843036109 | K54: 0.01608679386 | L54: 0.01668129939 | M54: 0.009811046512 | N54: 0.01165594855 | O54: 0.01139721401 | P54: 0.01039387309 | Q54: 0.008114558473
A55: Household experiencing anti-social behaviour / neighbour problems | B55: 0.00655226209 | C55: 0.006790123457 | D55: 0.006104129264 | E55: 0.004424778761 | F55: 0.007155025554 | G55: 0.007191780822 | H55: 0.005654281099 | I55: 0.006397306397 | J55: 0.008474576271 | K55: 0.00785634119 | L55: 0.008340649693 | M55: 0.00726744186 | N55: 0.008038585209 | O55: 0.009286618827 | P55: 0.009299781182 | Q55: 0.007637231504
A56: Household member needing care | B56: 0.004368174727 | C56: 0.009259259259 | D56: 0.0118491921 | E56: 0.01238938053 | F56: 0.01124361158 | G56: 0.01232876712 | H56: 0.0113085622 | I56: 0.01212121212 | J56: 0.01289609433 | K56: 0.0127197905 | L56: 0.01053555751 | M56: 0.004360465116 | N56: 0.003617363344 | O56: 0.003799071338 | P56: 0.003282275711 | Q56: 0.003818615752
A57: Forced division and sale of matrimonial home | B57: 0.004368174727 | C57: 0.004938271605 | D57: 0.004308797127 | E57: 0.00383480826 | F57: 0.004770017036 | G57: 0.004794520548 | H57: 0.003634894992 | I57: 0.00404040404 | J57: 0.004053058217 | K57: 0.003741114852 | L57: 0.003072870939 | M57: 0.003270348837 | N57: 0.003617363344 | O57: 0.004221190376 | P57: 0.003282275711 | Q57: 0.003818615752
A58: Loss of service / tied accommodation | B58: 0.004992199688 | C58: 0.004938271605 | D58: 0.004667863555 | E58: 0.00412979351 | F58: 0.004088586031 | G58: 0.004452054795 | H58: 0.005250403877 | I58: 0.00404040404 | J58: 0.004789977892 | K58: 0.003741114852 | L58: 0.003072870939 | M58: 0.00363372093 | N58: 0.003215434084 | O58: 0.005065428451 | P58: 0.004376367615 | Q58: 0.003341288783
A59: Landlord issue | B59: 0.003120124805 | C59: 0.003395061728 | D59: 0.002872531418 | E59: 0.002949852507 | F59: 0.003407155026 | G59: 0.003082191781 | H59: 0.002827140549 | I59: 0.00303030303 | J59: 0.002579218865 | K59: 0.002244668911 | L59: 0.003072870939 | M59: 0.002543604651 | N59: 0.002009646302 | O59: 0.002532714225 | P59: 0.002188183807 | Q59: 0.002863961814
A60: Emergency (fire, flood, storm, closing order from Environmental Health etc.) | B60: 0.001872074883 | C60: 0.003086419753 | D60: 0.002513464991 | E60: 0.002654867257 | F60: 0.00272572402 | G60: 0.002397260274 | H60: 0.002827140549 | I60: 0.00303030303 | J60: 0.003684598379 | K60: 0.001870557426 | L60: 0.003511852502 | M60: 0.002180232558 | N60: 0.002813504823 | O60: 0.002110595188 | P60: 0.003282275711 | Q60: 0.002386634845
A61: Total | B61: 1 | C61: 1 | D61: 1 | E61: 1 | F61: 1 | G61: 1 | H61: 1 | I61: 1 | J61: 1 | K61: 1 | L61: 1 | M61: 1 | N61: 1 | O61: 1 | P61: 1 | Q61: 1
A63: Table 4c: Reasons for Approach - abbreviated (Number)
B65: Quarter of Approach
B66: 2014 Q2 | C66: 2014 Q3 | D66: 2014 Q4 | E66: 2015 Q1 | F66: 2015 Q2 | G66: 2015 Q3 | H66: 2015 Q4 | I66: 2016 Q1 | J66: 2016 Q2 | K66: 2016 Q3 | L66: 2016 Q4 | M66: 2017 Q1 | N66: 2017 Q2 | O66: 2017 Q3 | P66: 2017 Q4 | Q66: 2018 Q1 | R66: ALL | T66: 2016/17 | U66: 2017/18 | V66: Change | W66: % change
A67: Homelessness Type | B67: 11020 | C67: 10915 | D67: 8875 | E67: 10680 | F67: 8960 | G67: 9025 | H67: 7695 | I67: 8955 | J67: 8465 | K67: 7980 | L67: 6875 | M67: 8675 | N67: 7620 | O67: 7150 | P67: 5745 | Q67: 6245 | R67: 134875 | T67: =SUM(J67:M67) -> 31995 | U67: =SUM(N67:Q67) -> 26760 | V67: =U67-T67 -> -5235 | W67: =U67/T67-1 -> -0.1636193155
A68: Prevention Type | B68: 5005 | C68: 5285 | D68: 5050 | E68: 6270 | F68: 5715 | G68: 5575 | H68: 4685 | I68: 5895 | J68: 5110 | K68: 5385 | L68: 4515 | M68: 5080 | N68: 4820 | O68: 4695 | P68: 3395 | Q68: 4230 | R68: 80710 | T68: =SUM(J68:M68) -> 20090 | U68: =SUM(N68:Q68) -> 17140 | V68: =U68-T68 -> -2950 | W68: =U68/T68-1 -> -0.1468392235
A69: Total | B69: 16025 | C69: 16200 | D69: 13925 | E69: 16950 | F69: 14675 | G69: 14600 | H69: 12380 | I69: 14850 | J69: 13570 | K69: 13365 | L69: 11390 | M69: 13760 | N69: 12440 | O69: 11845 | P69: 9140 | Q69: 10475 | R69: 215585 | T69: =SUM(J69:M69) -> 52085 | U69: =SUM(N69:Q69) -> 43900 | V69: -8185 | W69: -0.1571469713
A71: Table 4d: Reasons for Approach - abbreviated (Percent)
B73: Quarter of Approach
B74: 2014 Q2 | C74: 2014 Q3 | D74: 2014 Q4 | E74: 2015 Q1 | F74: 2015 Q2 | G74: 2015 Q3 | H74: 2015 Q4 | I74: 2016 Q1 | J74: 2016 Q2 | K74: 2016 Q3 | L74: 2016 Q4 | M74: 2017 Q1 | N74: 2017 Q2 | O74: 2017 Q3 | P74: 2017 Q4 | Q74: 2018 Q1 | R74: ALL | T74: 2016/17 | U74: 2017/18
A75: Homelessness Type | B75: =B67/B$69 -> 0.687675507 | C75: =C67/C$69 -> 0.6737654321 | D75: 0.6373429084 | E75: 0.6300884956 | F75: 0.6105621806 | G75: 0.6181506849 | H75: 0.6215670436 | I75: 0.603030303 | J75: 0.6238025055 | K75: 0.5970819304 | L75: 0.6035996488 | M75: 0.6304505814 | N75: 0.6125401929 | O75: 0.6036302237 | P75: 0.6285557987 | Q75: 0.5961813842 | R75: =R67/R$69 -> 0.625623304 | T75: =T67/T69 -> 0.6142843429 | U75: =U67/U69 -> 0.6095671982
A76: Prevention Type | B76: =B68/B$69 -> 0.312324493 | C76: =C68/C$69 -> 0.3262345679 | D76: 0.3626570916 | E76: 0.3699115044 | F76: 0.3894378194 | G76: 0.3818493151 | H76: 0.3784329564 | I76: 0.396969697 | J76: 0.3765659543 | K76: 0.4029180696 | L76: 0.3964003512 | M76: 0.3691860465 | N76: 0.3874598071 | O76: 0.3963697763 | P76: 0.3714442013 | Q76: 0.4038186158 | R76: 0.374376696 | T76: =T68/T69 -> 0.3857156571 | U76: =U68/U69 -> 0.3904328018
A77: Total | B77: 1 | C77: =C69/C$69 -> 1 | D77: 1 | E77: 1 | F77: 1 | G77: 1 | H77: 1 | I77: 1 | J77: 1 | K77: 1 | L77: 1 | M77: 1 | N77: 1 | O77: 1 | P77: 1 | Q77: 1 | R77: 1 | T77: =T69/T69 -> 1 | U77: =U69/U69 -> 1
A79: Notes
A80: Homeless Type Reasons as defined as: | B80: Termination of tenancy / mortgage due to rent arrears / default on payments
B81: Other action by landlord resulting in the termination of the tenancy
B82: Applicant terminated secure accommodation
B83: Loss of service / tied accommodation
B84: Discharge from prison / hospital / care / other institution
B85: Emergency (fire, flood, storm, closing order from Environmental Health etc.)
B86: Forced division and sale of matrimonial home
B87: Other reason for loss of accommodation
B88: Reasons for having to leave accommodation / household
B89: Dispute within household: violent or abusive
B90: Dispute within household / relationship breakdown: non-violent
B91: Fleeing non-domestic violence
B92: Harassment
B93: Overcrowding
B94: Asked to leave
B95: Other reason for leaving accommodation / household
A98: Prevention Type Reasons are defined as: | B98: General housing options advice
B99: Benefit issues (excluding Welfare Reform)
B100: Welfare Reform – Benefit Cap
B101: Welfare Reform – Under-occupancy penalty
B102: Welfare Reform - Other
B103: Property condition - disrepair
B104: Property condition – lacking amenities
B105: Property condition – fire/flood
B106: Accommodation unsuitable - Overcrowded
B107: Accommodation unsuitable – Mobility/ Adaptation Issues
B108: Accommodation unsuitable – Location
B109: Household experiencing anti-social behaviour / neighbour problems
B110: Household experiencing hate crime
B111: Household member needing care
B112: Personal issues – affordability / financial difficulties
B113: Risk of losing accommodation - eviction/ repossession
B114: Risk of losing accommodation - eviction from UK Borders Agency (or successor organisation) accommodation
B115: Risk of losing accommodation - tied/ service tenancy
B116: Risk of losing accommodation - asked to leave - parents
B117: Risk of losing accommodation - asked to leave – other family
B118: Risk of losing accommodation - asked to leave – friends
B119: Landlord issue - Harassment from private sector landlord
B120: Landlord issue - Illegal eviction – private sector landlord
B121: Other

Sheet Chart 4 - Approach Reasons
A1: Chart 4: Number of Approaches by Reason for Approach

Sheet Table 5 - Maximum Activty Type
A1: Table 5a: Maximum Activity Type (Number) | B1: Back to Contents
B3: Quarter of Approach | S3: Annual change
A4: Activity type | B4: 2014 Q2 | C4: 2014 Q3 | D4: 2014 Q4 | E4: 2015 Q1 | F4: 2015 Q2 | G4: 2015 Q3 | H4: 2015 Q4 | I4: 2016 Q1 | J4: 2016 Q2 | K4: 2016 Q3 | L4: 2016 Q4 | M4: 2017 Q1 | N4: 2017 Q2 | O4: 2017 Q3 | P4: 2017 Q4 | Q4: 2018 Q1 | S4: 2016/17 | T4: 2017/18 | U4: Change | V4: % change
A5: Type I – Active Information, Sign-posting and Explanation | B5: 8105 | C5: 8850 | D5: 7885 | E5: 9470 | F5: 8290 | G5: 7935 | H5: 6665 | I5: 8135 | J5: 7430 | K5: 7085 | L5: 6125 | M5: 7520 | N5: 7040 | O5: 6660 | P5: 4895 | Q5: 5620 | S5: =SUM(J5:M5) -> 28160 | T5: =SUM(N5:Q5) -> 24215 | U5: =T5-S5 -> -3945 | V5: =U5/S5 -> -0.1400923295
A6: Type II – Casework | B6: 7835 | C6: 7290 | D6: 5990 | E6: 7440 | F6: 6350 | G6: 6620 | H6: 5690 | I6: 6675 | J6: 6075 | K6: 6210 | L6: 5185 | M6: 6155 | N6: 5320 | O6: 5110 | P6: 4185 | Q6: 4850 | S6: =SUM(J6:M6) -> 23625 | T6: =SUM(N6:Q6) -> 19465 | U6: =T6-S6 -> -4160 | V6: =U6/S6 -> -0.1760846561
A7: Type III – Advocacy, Representation and Mediation at Tribunal or Court Action Level | B7: 85 | C7: 65 | D7: 50 | E7: 40 | F7: 30 | G7: 40 | H7: 25 | I7: 40 | J7: 65 | K7: 70 | L7: 80 | M7: 80 | N7: 75 | O7: 70 | P7: 60 | Q7: 5 | S7: 295 | T7: 210 | U7: -85 | V7: -0.2881355932
A8: Total | B8: 16025 | C8: 16200 | D8: 13925 | E8: 16950 | F8: 14675 | G8: 14600 | H8: 12380 | I8: 14850 | J8: 13570 | K8: 13365 | L8: 11390 | M8: 13760 | N8: 12440 | O8: 11845 | P8: 9140 | Q8: 10475 | S8: 52085 | T8: 43900 | U8: -8185 | V8: -0.1571469713
A10: Table 5b: Maximum Activity Type (Percent)
B12: Quarter of Approach | S12: % summary
A13: Activity type | B13: 2014 Q2 | C13: 2014 Q3 | D13: 2014 Q4 | E13: 2015 Q1 | F13: 2015 Q2 | G13: 2015 Q3 | H13: 2015 Q4 | I13: 2016 Q1 | J13: 2016 Q2 | K13: 2016 Q3 | L13: 2016 Q4 | M13: 2017 Q1 | N13: 2017 Q2 | O13: 2017 Q3 | P13: 2017 Q4 | Q13: 2018 Q1 | S13: 2016/17 | T13: 2017/18
A14: Type I – Active Information, Sign-posting and Explanation | B14: =B5/B$8 -> 0.5057722309 | C14: =C5/C$8 -> 0.5462962963 | D14: 0.5662477558 | E14: 0.5587020649 | F14: 0.5649063032 | G14: 0.5434931507 | H14: =H5/H$8 -> 0.538368336 | I14: 0.5478114478 | J14: =J5/J$8 -> 0.5475313191 | K14: 0.5301159746 | L14: =L5/L$8 -> 0.5377524144 | M14: 0.5465116279 | N14: =N5/N$8 -> 0.5659163987 | O14: 0.562262558 | P14: 0.5355579869 | Q14: 0.5365155131 | S14: =S5/$S$8 -> 0.540654699 | T14: =T5/$T$8 -> 0.551594533
A15: Type II – Casework | B15: =B6/B$8 -> 0.4889235569 | C15: 0.45 | D15: 0.4301615799 | E15: 0.4389380531 | F15: 0.4327086882 | G15: 0.4534246575 | H15: =H6/H$8 -> 0.4596122779 | I15: 0.4494949495 | J15: =J6/J$8 -> 0.447678703 | K15: 0.4646464646 | L15: 0.4552238806 | M15: 0.4473110465 | N15: =N6/N$8 -> 0.4276527331 | O15: 0.4314056564 | P15: 0.4578774617 | Q15: 0.4630071599 | S15: =S6/$S$8 -> 0.4535854853 | T15: 0.4433940774
A16: Type III – Advocacy, Representation and Mediation at Tribunal or Court Action Level | B16: =B7/B$8 -> 0.005304212168 | C16: 0.004012345679 | D16: 0.003590664273 | E16: 0.002359882006 | F16: 0.002044293015 | G16: 0.002739726027 | H16: =H7/H$8 -> 0.002019386107 | I16: 0.002693602694 | J16: =J7/J$8 -> 0.004789977892 | K16: 0.005237560793 | L16: 0.007023705004 | M16: 0.005813953488 | N16: =N7/N$8 -> 0.006028938907 | O16: 0.005909666526 | P16: 0.006564551422 | Q16: 0.000477326969 | S16: 0.005663818758 | T16: 0.004783599089
A17: Total | B17: =B8/B$8 -> 1 | C17: 1 | D17: 1 | E17: 1 | F17: 1 | G17: 1 | H17: =H8/H$8 -> 1 | I17: 1 | J17: =J8/J$8 -> 1 | K17: 1 | L17: 1 | M17: 1 | N17: =N8/N$8 -> 1 | O17: 1 | P17: 1 | Q17: 1 | S17: 1 | T17: =T8/$T$8 -> 1
A19: Disclosure Control has been applied to this table. All cells have been rounded to the nearest five.
A20: Row totals may not sum to total of individual cells due to rounding.
A24: For chart
B25: 2014 | E25: 2015 | I25: 2016 | M25: 2017 | Q25: 2018
B26: Q2 | C26: Q3 | D26: Q4 | E26: Q1 | F26: Q2 | G26: Q3 | H26: Q4 | I26: Q1 | J26: Q2 | K26: Q3 | L26: Q4 | M26: Q1 | N26: Q2 | O26: Q3 | P26: Q4 | Q26: Q1
A27: Type I – Active Information, Sign-posting and Explanation | B27: 8105 | C27: 8850 | D27: 7885 | E27: 9470 | F27: 8290 | G27: 7935 | H27: 6665 | I27: 8135 | J27: 7430 | K27: 7085 | L27: 6125 | M27: 7520 | N27: 7040 | O27: 6660 | P27: 4895 | Q27: 5620
A28: Type II – Casework | B28: 7835 | C28: 7290 | D28: 5990 | E28: 7440 | F28: 6350 | G28: 6620 | H28: 5690 | I28: 6675 | J28: 6075 | K28: 6210 | L28: 5185 | M28: 6155 | N28: 5320 | O28: 5110 | P28: 4185 | Q28: 4850
A29: Type III – Advocacy, Representation and Mediation at Tribunal or Court Action Level | B29: 85 | C29: 65 | D29: 50 | E29: 40 | F29: 30 | G29: 40 | H29: 25 | I29: 40 | J29: 65 | K29: 70 | L29: 80 | M29: 80 | N29: 75 | O29: 70 | P29: 60 | Q29: 5

Sheet Chart 5 - Activities Type by Q
A1: Chart 5: Number of Approaches with each level of activity type by quarter | N1: Back to Contents

Sheet Table 6 - Activities
A1: Table 6a: Housing Options activities by quarter (number) | D1: Back to Contents
B3: Quarter of Approach | R3: All | T3: Annual change
A4: Activity type | B4: 2014 Q2 | C4: 2014 Q3 | D4: 2014 Q4 | E4: 2015 Q1 | F4: 2015 Q2 | G4: 2015 Q3 | H4: 2015 Q4 | I4: 2016 Q1 | J4: 2016 Q2 | K4: 2016 Q3 | L4: 2016 Q4 | M4: 2017 Q1 | N4: 2017 Q2 | O4: 2017 Q3 | P4: 2017 Q4 | Q4: 2018 Q1 | T4: 2016/17 | U4: 2017/18 | V4: Change | W4: % change
A5: General Housing advice/Tenancy rights advice | B5: 12150 | C5: 12300 | D5: 10555 | E5: 13230 | F5: 12465 | G5: 12725 | H5: 10415 | I5: 12620 | J5: 11130 | K5: 10765 | L5: 8995 | M5: 11265 | N5: 10090 | O5: 9275 | P5: 7385 | Q5: 8355 | R5: 173715 | T5: =SUM(J5:M5) -> 42155 | U5: =SUM(N5:Q5) -> 35105 | V5: =U5-T5 -> -7050 | W5: =V5/T5 -> -0.1672399478
A6: Client informed of rights under homelessness legislation | B6: 9135 | C6: 8530 | D6: 6705 | E6: 8680 | F6: 7815 | G6: 7845 | H6: 6835 | I6: 8120 | J6: 7485 | K6: 7180 | L6: 6205 | M6: 8010 | N6: 7010 | O6: 6770 | P6: 4985 | Q6: 5630 | R6: 116940 | T6: =SUM(J6:M6) -> 28880 | U6: =SUM(N6:Q6) -> 24395 | V6: =U6-T6 -> -4485 | W6: =V6/T6 -> -0.1552977839
A7: Help to move property | B7: 1870 | C7: 2010 | D7: 1605 | E7: 1970 | F7: 1875 | G7: 2015 | H7: 1610 | I7: 2000 | J7: 2035 | K7: 2185 | L7: 1725 | M7: 2255 | N7: 2030 | O7: 1645 | P7: 1355 | Q7: 1675 | R7: 29860 | T7: 8200 | U7: 6705 | V7: -1495 | W7: -0.1823170732
A8: Rent/repairs/referrals/negotiation with landlords | B8: 2315 | C8: 2260 | D8: 1970 | E8: 2625 | F8: 2250 | G8: 2315 | H8: 1770 | I8: 1855 | J8: 1685 | K8: 1800 | L8: 1480 | M8: 1820 | N8: 1640 | O8: 1690 | P8: 1045 | Q8: 1510 | R8: 30030 | T8: 6785 | U8: 5885 | V8: -900 | W8: -0.1326455416
A9: Financial assistance/advice | B9: 2440 | C9: 2830 | D9: 2380 | E9: 2705 | F9: 2440 | G9: 2480 | H9: 2060 | I9: 2145 | J9: 2020 | K9: 2215 | L9: 1860 | M9: 1865 | N9: 1690 | O9: 1540 | P9: 1320 | Q9: 1430 | R9: 33430 | T9: 7960 | U9: 5980 | V9: -1980 | W9: -0.2487437186
A10: Other | B10: 1440 | C10: 2245 | D10: 1620 | E10: 1615 | F10: 1615 | G10: 1645 | H10: 1395 | I10: 1700 | J10: 1570 | K10: 1705 | L10: 1460 | M10: 1540 | N10: 1160 | O10: 1590 | P10: 1265 | Q10: 1360 | R10: 24925 | T10: 6275 | U10: 5375 | V10: -900 | W10: -0.1434262948
A11: Referral to health/Social Work/employment services | B11: 960 | C11: 1025 | D11: 930 | E11: 915 | F11: 795 | G11: 960 | H11: 715 | I11: 840 | J11: 815 | K11: 890 | L11: 740 | M11: 870 | N11: 850 | O11: 810 | P11: 890 | Q11: 1005 | R11: 14010 | T11: 3315 | U11: 3555 | V11: 240 | W11: 0.07239819005
A12: Help to remain in accommodation | B12: 830 | C12: 905 | D12: 710 | E12: 800 | F12: 695 | G12: 775 | H12: 565 | I12: 730 | J12: 615 | K12: 740 | L12: 560 | M12: 570 | N12: 595 | O12: 455 | P12: 445 | Q12: 445 | R12: 10445 | T12: 2485 | U12: 1940 | V12: -545 | W12: -0.2193158954
A13: Tenancy/social care support/adaptations to property | B13: 325 | C13: 340 | D13: 290 | E13: 410 | F13: 370 | G13: 340 | H13: 345 | I13: 425 | J13: 385 | K13: 360 | L13: 275 | M13: 465 | N13: 430 | O13: 420 | P13: 340 | Q13: 340 | R13: 5860 | T13: 1485 | U13: 1530 | V13: 45 | W13: 0.0303030303
A14: Mediation/outreach work | B14: 555 | C14: 665 | D14: 520 | E14: 645 | F14: 400 | G14: 395 | H14: 340 | I14: 440 | J14: 415 | K14: 475 | L14: 340 | M14: 420 | N14: 330 | O14: 280 | P14: 330 | Q14: 300 | R14: 6850 | T14: 1650 | U14: 1240 | V14: -410 | W14: -0.2484848485
A15: Mortgage/home ownership advice | B15: 160 | C15: 205 | D15: 115 | E15: 170 | F15: 165 | G15: 155 | H15: 100 | I15: 130 | J15: 95 | K15: 90 | L15: 70 | M15: 105 | N15: 85 | O15: 75 | P15: 50 | Q15: 75 | R15: 1845 | T15: 360 | U15: 285 | V15: -75 | W15: -0.2083333333
A16: Total (ALL) | B16: 32185 | C16: 33320 | D16: 27400 | E16: 33760 | F16: 30890 | G16: 31645 | H16: 26155 | I16: 31010 | J16: 28255 | K16: 28410 | L16: 23705 | M16: 29180 | N16: 25910 | O16: 24560 | P16: 19400 | Q16: 22125 | R16: 447905 | T16: 109550 | U16: 91995 | V16: -17555 | W16: -0.1602464628
A18: Table 6b: Housing Options activities by quarter (percent)
B20: Quarter of Approach | R20: All | T20: % Summary
A21: Activity Type | B21: 2014 Q2 | C21: 2014 Q3 | D21: 2014 Q4 | E21: 2015 Q1 | F21: 2015 Q2 | G21: 2015 Q3 | H21: 2015 Q4 | I21: 2016 Q1 | J21: 2016 Q2 | K21: 2016 Q3 | L21: 2016 Q4 | M21: 2017 Q1 | N21: 2017 Q2 | O21: 2017 Q3 | P21: 2017 Q4 | Q21: 2018 Q1 | T21: 2016/17 | U21: 2017/18
A22: General Housing advice/Tenancy rights advice | B22: =B5/B$16 -> 0.3775050489 | C22: =C5/C$16 -> 0.3691476591 | D22: 0.3852189781 | E22: 0.3918838863 | F22: 0.40352865 | G22: 0.4021172381 | H22: 0.3982030205 | I22: 0.406965495 | J22: 0.3939125818 | K22: 0.3789158747 | L22: 0.379455811 | M22: 0.3860520905 | N22: 0.3894249325 | O22: 0.3776465798 | P22: 0.3806701031 | Q22: 0.3776271186 | R22: 0.3878389391 | T22: =T5/T$16 -> 0.3848014605 | U22: =U5/U$16 -> 0.3815968259
A23: Client informed of rights under homelessness legislation | B23: =B6/B$16 -> 0.2838278701 | C23: =C6/C$16 -> 0.256002401 | D23: 0.2447080292 | E23: 0.2571090047 | F23: 0.2529944966 | G23: 0.2479064623 | H23: 0.2613267062 | I23: 0.2618510158 | J23: 0.2649088657 | K23: 0.2527279127 | L23: 0.2617591225 | M23: 0.2745030843 | N23: 0.2705519105 | O23: 0.2756514658 | P23: 0.2569587629 | Q23: 0.2544632768 | R23: 0.2610821491 | T23: =T6/T$16 -> 0.263623916 | U23: 0.2651774553
A24: Financial assistance/advice | B24: =B7/B$16 -> 0.05810160012 | C24: =C7/C$16 -> 0.06032412965 | D24: 0.05857664234 | E24: 0.05835308057 | F24: 0.06069925542 | G24: 0.06367514615 | H24: 0.06155610782 | I24: 0.06449532409 | J24: 0.07202265086 | K24: 0.07690953889 | L24: 0.07276945792 | M24: 0.07727895819 | N24: 0.07834812814 | O24: 0.06697882736 | P24: 0.06984536082 | Q24: 0.07570621469 | R24: 0.06666592246 | T24: 0.07485166591 | U24: 0.07288439589
A25: Rent/repairs/referrals/negotiation with landlords | B25: =B8/B$16 -> 0.07192791673 | C25: =C8/C$16 -> 0.06782713085 | D25: 0.07189781022 | E25: 0.07775473934 | F25: 0.07283910651 | G25: 0.0731553168 | H25: 0.06767348499 | I25: 0.05981941309 | J25: 0.05963546275 | K25: 0.06335797254 | L25: 0.06243408564 | M25: 0.06237148732 | N25: 0.0632960247 | O25: 0.06881107492 | P25: 0.05386597938 | Q25: 0.06824858757 | R25: 0.06704546723 | T25: 0.06193518941 | U25: 0.06397086798
A26: Help to move property | B26: =B9/B$16 -> 0.07581171353 | C26: =C9/C$16 -> 0.08493397359 | D26: 0.08686131387 | E26: 0.08012440758 | F26: 0.07898996439 | G26: 0.07836941065 | H26: 0.07876123112 | I26: 0.06917123509 | J26: 0.07149177137 | K26: 0.0779655051 | L26: 0.07846445897 | M26: 0.06391363948 | N26: 0.06522578155 | O26: 0.06270358306 | P26: 0.06804123711 | Q26: 0.06463276836 | R26: 0.07463636262 | T26: 0.07266088544 | U26: 0.0650035328
A27: Other | B27: =B10/B$16 -> 0.04474133913 | C27: =C10/C$16 -> 0.06737695078 | D27: 0.05912408759 | E27: 0.04783767773 | F27: 0.052282292 | G27: 0.05198293569 | H27: 0.05333588224 | I27: 0.05482102548 | J27: 0.05556538666 | K27: 0.06001407955 | L27: 0.06159038178 | M27: 0.05277587389 | N27: 0.04477035893 | O27: 0.06473941368 | P27: 0.06520618557 | Q27: 0.06146892655 | R27: 0.05564796106 | T27: 0.05727978092 | U27: 0.05842708843
A28: Referral to health/Social Work/employment services | B28: =B11/B$16 -> 0.02982755942 | C28: =C11/C$16 -> 0.03076230492 | D28: 0.03394160584 | E28: 0.02710308057 | F28: 0.0257364843 | G28: 0.03033654606 | H28: 0.02733702925 | I28: 0.02708803612 | J28: 0.02884445231 | K28: 0.03132699754 | L28: 0.03121704282 | M28: 0.02981494174 | N28: 0.03280586646 | O28: 0.03298045603 | P28: 0.04587628866 | Q28: 0.04542372881 | R28: 0.03127895424 | T28: 0.03026015518 | U28: 0.03864340453
A29: Help to remain in accommodation | B29: =B12/B$16 -> 0.02578841075 | C29: =C12/C$16 -> 0.02716086435 | D29: 0.02591240876 | E29: 0.02369668246 | F29: 0.02249919068 | G29: 0.02449044083 | H29: 0.02160198815 | I29: 0.02354079329 | J29: 0.0217660591 | K29: 0.02604716649 | L29: 0.02362370808 | M29: 0.01953392735 | N29: 0.02296410652 | O29: 0.01852605863 | P29: 0.02293814433 | Q29: 0.02011299435 | R29: 0.02331967716 | T29: 0.02268370607 | U29: 0.02108810261
A30: Mediation/outreach work | B30: =B13/B$16 -> 0.01009787168 | C30: =C13/C$16 -> 0.01020408163 | D30: 0.01058394161 | E30: 0.01214454976 | F30: 0.0119779864 | G30: 0.0107441934 | H30: 0.01319059453 | I30: 0.01370525637 | J30: 0.01362590692 | K30: 0.01267159451 | L30: 0.01160092807 | M30: 0.01593557231 | N30: 0.01659590892 | O30: 0.0171009772 | P30: 0.0175257732 | Q30: 0.01536723164 | R30: 0.01308313147 | T30: 0.01355545413 | U30: 0.01663133866
A31: Tenancy/social care support/adaptations to property | B31: =B14/B$16 -> 0.01724405779 | C31: =C14/C$16 -> 0.01995798319 | D31: 0.01897810219 | E31: 0.01910545024 | F31: 0.01294917449 | G31: 0.01248222468 | H31: 0.0129994265 | I31: 0.0141889713 | J31: 0.0146876659 | K31: 0.01671946498 | L31: 0.01434296562 | M31: 0.01439342015 | N31: 0.01273639521 | O31: 0.01140065147 | P31: 0.01701030928 | Q31: 0.01355932203 | R31: 0.0152934216 | T31: 0.0150616157 | U31: 0.01347899342
A32: Mortgage/home ownership advice | B32: =B15/B$16 -> 0.004971259904 | C32: =C15/C$16 -> 0.006152460984 | D32: 0.004197080292 | E32: 0.005035545024 | F32: 0.005341534477 | G32: 0.004898088166 | H32: 0.003823360734 | I32: 0.004192196066 | J32: 0.003362236772 | K32: 0.003167898627 | L32: 0.00295296351 | M32: 0.003598355038 | N32: 0.003280586646 | O32: 0.003053745928 | P32: 0.002577319588 | Q32: 0.003389830508 | R32: 0.004119177058 | T32: 0.003286170698 | U32: 0.003097994456
A33: Total (ALL) | B33: =B16/B$16 -> 1 | C33: =C16/C$16 -> 1 | D33: 1 | E33: 1 | F33: 1 | G33: 1 | H33: 1 | I33: 1 | J33: 1 | K33: 1 | L33: 1 | M33: 1 | N33: 1 | O33: 1 | P33: 1 | Q33: 1 | R33: 1 | T33: 1 | U33: 1
A46: Info for charts | B46: Quarter of Approach
B47: 2014 | E47: 2015 | I47: 2016 | M47: 2017 | Q47: 2018
B48: Q2 | C48: Q3 | D48: Q4 | E48: Q1 | F48: Q2 | G48: Q3 | H48: Q4 | I48: Q1 | J48: Q2 | K48: Q3 | L48: Q4 | M48: Q1 | N48: Q2 | O48: Q3 | P48: Q4 | Q48: Q1
A49: =A22 -> General Housing advice/Tenancy rights advice | B49: =B22 -> 0.3775050489 | C49: =C22 -> 0.3691476591 | D49: 0.3852189781 | E49: 0.3918838863 | F49: 0.40352865 | G49: 0.4021172381 | H49: 0.3982030205 | I49: 0.406965495 | J49: 0.3939125818 | K49: 0.3789158747 | L49: 0.379455811 | M49: 0.3860520905 | N49: 0.3894249325 | O49: 0.3776465798 | P49: 0.3806701031 | Q49: 0.3776271186
A50: =A23 -> Client informed of rights under homelessness legislation | B50: =B23 -> 0.2838278701 | C50: =C23 -> 0.256002401 | D50: 0.2447080292 | E50: 0.2571090047 | F50: 0.2529944966 | G50: 0.2479064623 | H50: 0.2613267062 | I50: 0.2618510158 | J50: 0.2649088657 | K50: 0.2527279127 | L50: 0.2617591225 | M50: 0.2745030843 | N50: 0.2705519105 | O50: 0.2756514658 | P50: 0.2569587629 | Q50: 0.2544632768
A51: Other Activity | B51: =SUM(B24:B32) -> 0.3385117291 | C51: =SUM(C24:C32) -> 0.37469988 | D51: 0.3700729927 | E51: 0.3511552133 | F51: 0.3433149887 | G51: 0.3501343024 | H51: 0.3402791053 | I51: 0.3310222509 | J51: 0.3410015926 | K51: 0.3681802182 | L51: 0.3589959924 | M51: 0.3396161755 | N51: 0.3400231571 | O51: 0.3462947883 | P51: 0.3628865979 | Q51: 0.3679096045

Sheet Chart 6 - Activities
A1: Chart 6: Housing Options Actvities by quarter | N1: Back to Contents

Sheet Table 7 - Activities by LA
A1: Table 7a: Housing Options activities by Local Authority, during 1 April 2017 to 31 March 2018 (number) | J1: Back to Contents
A3: Local Authority | B3: ACTIVITY | M3: All
B4: Mediation/ outreach work | C4: Financial assistance/ advice | D4: Rent/repairs/ referrals/ negotiation with landlords | E4: Help to remain in accommodation | F4: Mortgage/ home ownership advice | G4: Tenancy/ social care support/ adaptations to property | H4: Referral to health/Social Work/ employment services | I4: Client informed of rights under homelessness legislation | J4: General Housing advice/ Tenancy rights advice | K4: Help to move property | L4: Other
A5: Scotland | B5: 1235 | C5: 5980 | D5: 5885 | E5: 1945 | F5: 285 | G5: 1530 | H5: 3555 | I5: 24395 | J5: 35100 | K5: 6705 | L5: 5370 | M5: 91995
A6: Aberdeen City | B6: 35 | C6: 80 | D6: 55 | E6: 115 | F6: 15 | G6: 20 | H6: 45 | I6: 1495 | J6: 2265 | K6: 445 | L6: 0 | M6: 4570
A7: Aberdeenshire | B7: 25 | C7: 265 | D7: 395 | E7: 25 | F7: 15 | G7: 10 | H7: 25 | I7: 1040 | J7: 1460 | K7: 10 | L7: 30 | M7: 3295
A8: Angus | B8: 10 | C8: 620 | D8: 185 | E8: 50 | F8: 5 | G8: 85 | H8: 30 | I8: 640 | J8: 1070 | K8: 645 | L8: 5 | M8: 3345
A9: Argyll & Bute | B9: 10 | C9: 55 | D9: 105 | E9: 235 | F9: 0 | G9: 65 | H9: 15 | I9: 885 | J9: 1270 | K9: 160 | L9: 15 | M9: 2810
A10: Clackmannanshire | B10: 0 | C10: 10 | D10: 20 | E10: 0 | F10: 0 | G10: 0 | H10: 0 | I10: 540 | J10: 445 | K10: 40 | L10: 0 | M10: 1060
A11: Dumfries & Galloway | B11: 0 | C11: 50 | D11: 80 | E11: 20 | F11: 0 | G11: 115 | H11: 35 | I11: 575 | J11: 660 | K11: 195 | L11: 30 | M11: 1765
A12: Dundee City | B12: 35 | C12: 25 | D12: 50 | E12: 25 | F12: 0 | G12: 5 | H12: 15 | I12: 1165 | J12: 1240 | K12: 105 | L12: 30 | M12: 2695
A13: East Ayrshire | B13: 5 | C13: 115 | D13: 85 | E13: 25 | F13: 40 | G13: 35 | H13: 30 | I13: 80 | J13: 105 | K13: 20 | L13: 0 | M13: 540
A14: East Dunbartonshire | B14: 0 | C14: 140 | D14: 135 | E14: 15 | F14: 10 | G14: 5 | H14: 5 | I14: 195 | J14: 205 | K14: 220 | L14: 0 | M14: 930
A15: East Lothian | B15: 0 | C15: 35 | D15: 115 | E15: 25 | F15: 5 | G15: 0 | H15: 0 | I15: 80 | J15: 135 | K15: 105 | L15: 15 | M15: 515
A16: East Renfrewshire | B16: 0 | C16: 50 | D16: 60 | E16: 15 | F16: 10 | G16: 5 | H16: 10 | I16: 115 | J16: 120 | K16: 5 | L16: 5 | M16: 400
A17: Edinburgh | B17: 10 | C17: 195 | D17: 70 | E17: 10 | F17: 5 | G17: 5 | H17: 80 | I17: 1610 | J17: 3330 | K17: 50 | L17: 25 | M17: 5390
A18: Eilean Siar | B18: 0 | C18: 10 | D18: 5 | E18: 0 | F18: 0 | G18: 0 | H18: 0 | I18: 15 | J18: 10 | K18: 5 | L18: 0 | M18: 50
A19: Falkirk | B19: 750 | C19: 2180 | D19: 175 | E19: 970 | F19: 0 | G19: 70 | H19: 965 | I19: 1860 | J19: 2295 | K19: 1550 | L19: 3275 | M19: 14090
A20: Fife | B20: 65 | C20: 295 | D20: 685 | E20: 70 | F20: 110 | G20: 60 | H20: 145 | I20: 1825 | J20: 2575 | K20: 515 | L20: 80 | M20: 6425
A21: Glasgow City | B21: 25 | C21: 75 | D21: 365 | E21: 125 | F21: 0 | G21: 5 | H21: 1645 | I21: 3365 | J21: 3820 | K21: 50 | L21: 0 | M21: 9475
A22: Highland | B22: 0 | C22: 20 | D22: 10 | E22: 15 | F22: 10 | G22: 0 | H22: 0 | I22: 160 | J22: 215 | K22: 0 | L22: 0 | M22: 430
A23: Inverclyde | B23: 15 | C23: 5 | D23: 55 | E23: 10 | F23: 0 | G23: 0 | H23: 5 | I23: 465 | J23: 1515 | K23: 20 | L23: 5 | M23: 2095
A24: Midlothian | B24: 25 | C24: 30 | D24: 20 | E24: 5 | F24: 0 | G24: 10 | H24: 5 | I24: 255 | J24: 460 | K24: 60 | L24: 210 | M24: 1085
A25: Moray | B25: 35 | C25: 170 | D25: 75 | E25: 10 | F25: 0 | G25: 25 | H25: 30 | I25: 845 | J25: 1010 | K25: 195 | L25: 235 | M25: 2625
A26: North Ayrshire | B26: 0 | C26: 85 | D26: 1125 | E26: 15 | F26: 5 | G26: 0 | H26: 5 | I26: 1215 | J26: 1285 | K26: 10 | L26: 5 | M26: 3750
A27: North Lanarkshire | B27: 5 | C27: 440 | D27: 305 | E27: 60 | F27: 10 | G27: 155 | H27: 65 | I27: 365 | J27: 1695 | K27: 55 | L27: 145 | M27: 3305
A28: Orkney | B28: 0 | C28: 0 | D28: 5 | E28: 0 | F28: 0 | G28: 0 | H28: 0 | I28: 15 | J28: 35 | K28: 0 | L28: 0 | M28: 50
A29: Perth & Kinross | B29: 15 | C29: 25 | D29: 440 | E29: 0 | F29: 5 | G29: 0 | H29: 10 | I29: 890 | J29: 1660 | K29: 15 | L29: 80 | M29: 3135
A30: Renfrewshire | B30: 140 | C30: 665 | D30: 310 | E30: 20 | F30: 10 | G30: 195 | H30: 120 | I30: 1485 | J30: 1915 | K30: 635 | L30: 125 | M30: 5630
A31: Scottish Borders | B31: 0 | C31: 45 | D31: 90 | E31: 5 | F31: 5 | G31: 70 | H31: 5 | I31: 415 | J31: 420 | K31: 140 | L31: 0 | M31: 1190
A32: Shetland | B32: 0 | C32: 10 | D32: 0 | E32: 0 | F32: 0 | G32: 0 | H32: 0 | I32: 190 | J32: 190 | K32: 5 | L32: 5 | M32: 405
A33: South Ayrshire | B33: 15 | C33: 85 | D33: 545 | E33: 25 | F33: 5 | G33: 585 | H33: 250 | I33: 825 | J33: 1325 | K33: 460 | L33: 1025 | M33: 5145
A34: South Lanarkshire | B34: 5 | C34: 105 | D34: 185 | E34: 20 | F34: 5 | G34: 0 | H34: 0 | I34: 755 | J34: 1030 | K34: 815 | L34: 10 | M34: 2925
A35: Stirling | B35: 0 | C35: 5 | D35: 15 | E35: 0 | F35: 0 | G35: 0 | H35: 0 | I35: 70 | J35: 315 | K35: 25 | L35: 0 | M35: 435
A36: West Dunbartonshire | B36: 10 | C36: 65 | D36: 75 | E36: 25 | F36: 5 | G36: 0 | H36: 5 | I36: 230 | J36: 190 | K36: 130 | L36: 5 | M36: 730
A37: West Lothian | B37: 0 | C37: 30 | D37: 40 | E37: 10 | F37: 15 | G37: 0 | H37: 5 | I37: 735 | J37: 840 | K37: 25 | L37: 5 | M37: 1710
A39: Disclosure Control has been applied to this table. All cells have been rounded to the nearest five.
A40: Column totals may not sum to total of individual cells due to rounding.
A42: Table 7b: Housing Options activities by Local Authority, during 1 April 2016 to 31 March 2017 (percent)
A44: Local Authority | B44: ACTIVITY | M44: All
B45: Mediation/ outreach work | C45: Financial assistance/ advice | D45: Rent/repairs/ referrals/ negotiation with landlords | E45: Help to remain in accommodation | F45: Mortgage/ home ownership advice | G45: Tenancy/ social care support/ adaptations to property | H45: Referral to health/Social Work/ employment services | I45: Client informed of rights under homelessness legislation | J45: General Housing advice/ Tenancy rights advice | K45: Help to move property | L45: Other
A46: Scotland | B46: =B5/$M5 -> 0.01342464264 | C46: =C5/$M5 -> 0.0650035328 | D46: 0.06397086798 | E46: 0.02114245339 | F46: 0.003097994456 | G46: 0.01663133866 | H46: 0.03864340453 | I46: 0.2651774553 | J46: 0.3815424751 | K46: 0.07288439589 | L46: 0.05837273765 | M46: 1
A47: Aberdeen City | B47: =B6/$M6 -> 0.007658643326 | C47: 0.01750547046 | D47: 0.01203501094 | E47: 0.02516411379 | F47: 0.003282275711 | G47: 0.004376367615 | H47: 0.009846827133 | I47: 0.3271334792 | J47: 0.4956236324 | K47: 0.09737417943 | L47: 0 | M47: 1
A48: Aberdeenshire | B48: =B7/$M7 -> 0.007587253414 | C48: 0.08042488619 | D48: 0.1198786039 | E48: 0.007587253414 | F48: 0.004552352049 | G48: 0.003034901366 | H48: 0.007587253414 | I48: 0.315629742 | J48: 0.4430955994 | K48: 0.003034901366 | L48: 0.009104704097 | M48: 1
A49: Angus | B49: =B8/$M8 -> 0.002989536622 | C49: 0.1853512706 | D49: 0.0553064275 | E49: 0.01494768311 | F49: 0.001494768311 | G49: 0.02541106129 | H49: 0.008968609865 | I49: 0.1913303438 | J49: 0.3198804185 | K49: 0.1928251121 | L49: 0.001494768311 | M49: 1
A50: Argyll & Bute | B50: =B9/$M9 -> 0.003558718861 | C50: 0.01957295374 | D50: 0.03736654804 | E50: 0.08362989324 | F50: 0 | G50: 0.0231316726 | H50: 0.005338078292 | I50: 0.3149466192 | J50: 0.4519572954 | K50: 0.05693950178 | L50: 0.005338078292 | M50: 1
A51: Clackmannanshire | B51: =B10/$M10 -> 0 | C51: 0.009433962264 | D51: 0.01886792453 | E51: 0 | F51: 0 | G51: 0 | H51: 0 | I51: 0.5094339623 | J51: 0.4198113208 | K51: 0.03773584906 | L51: 0 | M51: 1
A52: Dumfries & Galloway | B52: =B11/$M11 -> 0 | C52: 0.0283286119 | D52: 0.04532577904 | E52: 0.01133144476 | F52: 0 | G52: 0.06515580737 | H52: 0.01983002833 | I52: 0.3257790368 | J52: 0.3739376771 | K52: 0.1104815864 | L52: 0.01699716714 | M52: 1
A53: Dundee City | B53: =B12/$M12 -> 0.01298701299 | C53: 0.009276437848 | D53: 0.0185528757 | E53: 0.009276437848 | F53: 0 | G53: 0.00185528757 | H53: 0.005565862709 | I53: 0.4322820037 | J53: 0.4601113173 | K53: 0.03896103896 | L53: 0.01113172542 | M53: 1
A54: East Ayrshire | B54: =B13/$M13 -> 0.009259259259 | C54: 0.212962963 | D54: 0.1574074074 | E54: 0.0462962963 | F54: 0.07407407407 | G54: 0.06481481481 | H54: 0.05555555556 | I54: 0.1481481481 | J54: 0.1944444444 | K54: 0.03703703704 | L54: 0 | M54: 1
A55: East Dunbartonshire | B55: =B14/$M14 -> 0 | C55: 0.1505376344 | D55: 0.1451612903 | E55: 0.01612903226 | F55: 0.01075268817 | G55: 0.005376344086 | H55: 0.005376344086 | I55: 0.2096774194 | J55: 0.2204301075 | K55: 0.2365591398 | L55: 0 | M55: 1
A56: East Lothian | B56: =B15/$M15 -> 0 | C56: 0.06796116505 | D56: 0.2233009709 | E56: 0.04854368932 | F56: 0.009708737864 | G56: 0 | H56: 0 | I56: 0.1553398058 | J56: 0.2621359223 | K56: 0.2038834951 | L56: 0.02912621359 | M56: 1
A57: East Renfrewshire | B57: =B16/$M16 -> 0 | C57: 0.125 | D57: 0.15 | E57: 0.0375 | F57: 0.025 | G57: 0.0125 | H57: 0.025 | I57: 0.2875 | J57: 0.3 | K57: 0.0125 | L57: 0.0125 | M57: 1
A58: Edinburgh | B58: =B17/$M17 -> 0.00185528757 | C58: 0.03617810761 | D58: 0.01298701299 | E58: 0.00185528757 | F58: 0.0009276437848 | G58: 0.0009276437848 | H58: 0.01484230056 | I58: 0.2987012987 | J58: 0.6178107607 | K58: 0.009276437848 | L58: 0.004638218924 | M58: 1
A59: Eilean Siar | B59: =B18/$M18 -> 0 | C59: 0.2 | D59: 0.1 | E59: 0 | F59: 0 | G59: 0 | H59: 0 | I59: 0.3 | J59: 0.2 | K59: 0.1 | L59: 0 | M59: 1
A60: Falkirk | B60: =B19/$M19 -> 0.0532292406 | C60: 0.1547196593 | D60: 0.01242015614 | E60: 0.06884315117 | F60: 0 | G60: 0.004968062456 | H60: 0.06848828957 | I60: 0.1320085167 | J60: 0.1628814762 | K60: 0.1100070972 | L60: 0.2324343506 | M60: 1
A61: Fife | B61: =B20/$M20 -> 0.01011673152 | C61: 0.04591439689 | D61: 0.106614786 | E61: 0.01089494163 | F61: 0.01712062257 | G61: 0.009338521401 | H61: 0.02256809339 | I61: 0.2840466926 | J61: 0.4007782101 | K61: 0.08015564202 | L61: 0.01245136187 | M61: 1
A62: Glasgow City | B62: =B21/$M21 -> 0.002638522427 | C62: 0.007915567282 | D62: 0.03852242744 | E62: 0.01319261214 | F62: 0 | G62: 0.0005277044855 | H62: 0.1736147757 | I62: 0.3551451187 | J62: 0.4031662269 | K62: 0.005277044855 | L62: 0 | M62: 1
A63: Highland | B63: =B22/$M22 -> 0 | C63: 0.04651162791 | D63: 0.02325581395 | E63: 0.03488372093 | F63: 0.02325581395 | G63: 0 | H63: 0 | I63: 0.3720930233 | J63: 0.5 | K63: 0 | L63: 0 | M63: 1
A64: Inverclyde | B64: =B23/$M23 -> 0.007159904535 | C64: 0.002386634845 | D64: 0.02625298329 | E64: 0.00477326969 | F64: 0 | G64: 0 | H64: 0.002386634845 | I64: 0.2219570406 | J64: 0.723150358 | K64: 0.009546539379 | L64: 0.002386634845 | M64: 1
A65: Midlothian | B65: =B24/$M24 -> 0.02304147465 | C65: 0.02764976959 | D65: 0.01843317972 | E65: 0.004608294931 | F65: 0 | G65: 0.009216589862 | H65: 0.004608294931 | I65: 0.2350230415 | J65: 0.4239631336 | K65: 0.05529953917 | L65: 0.1935483871 | M65: 1
A66: Moray | B66: =B25/$M25 -> 0.01333333333 | C66: 0.06476190476 | D66: 0.02857142857 | E66: 0.00380952381 | F66: 0 | G66: 0.009523809524 | H66: 0.01142857143 | I66: 0.3219047619 | J66: 0.3847619048 | K66: 0.07428571429 | L66: 0.08952380952 | M66: 1
A67: North Ayrshire | B67: =B26/$M26 -> 0 | C67: 0.02266666667 | D67: 0.3 | E67: 0.004 | F67: 0.001333333333 | G67: 0 | H67: 0.001333333333 | I67: 0.324 | J67: 0.3426666667 | K67: 0.002666666667 | L67: 0.001333333333 | M67: 1
A68: North Lanarkshire | B68: =B27/$M27 -> 0.001512859304 | C68: 0.1331316188 | D68: 0.09228441755 | E68: 0.01815431165 | F68: 0.003025718608 | G68: 0.04689863843 | H68: 0.01966717095 | I68: 0.1104387292 | J68: 0.5128593041 | K68: 0.01664145234 | L68: 0.04387291982 | M68: 1
A69: Orkney | B69: =B28/$M28 -> 0 | C69: 0 | D69: 0.1 | E69: 0 | F69: 0 | G69: 0 | H69: 0 | I69: 0.3 | J69: 0.7 | K69: 0 | L69: 0 | M69: 1
A70: Perth & Kinross | B70: =B29/$M29 -> 0.004784688995 | C70: 0.007974481659 | D70: 0.1403508772 | E70: 0 | F70: 0.001594896332 | G70: 0 | H70: 0.003189792663 | I70: 0.283891547 | J70: 0.5295055821 | K70: 0.004784688995 | L70: 0.02551834131 | M70: 1
A71: Renfrewshire | B71: =B30/$M30 -> 0.02486678508 | C71: 0.1181172291 | D71: 0.05506216696 | E71: 0.003552397869 | F71: 0.001776198934 | G71: 0.03463587922 | H71: 0.02131438721 | I71: 0.2637655417 | J71: 0.3401420959 | K71: 0.1127886323 | L71: 0.02220248668 | M71: 1
A72: Scottish Borders | B72: =B31/$M31 -> 0 | C72: 0.03781512605 | D72: 0.0756302521 | E72: 0.004201680672 | F72: 0.004201680672 | G72: 0.05882352941 | H72: 0.004201680672 | I72: 0.3487394958 | J72: 0.3529411765 | K72: 0.1176470588 | L72: 0 | M72: 1
A73: Shetland | B73: =B32/$M32 -> 0 | C73: 0.02469135802 | D73: 0 | E73: 0 | F73: 0 | G73: 0 | H73: 0 | I73: 0.4691358025 | J73: 0.4691358025 | K73: 0.01234567901 | L73: 0.01234567901 | M73: 1
A74: South Ayrshire | B74: =B33/$M33 -> 0.002915451895 | C74: 0.01652089407 | D74: 0.1059280855 | E74: 0.004859086492 | F74: 0.0009718172983 | G74: 0.1137026239 | H74: 0.04859086492 | I74: 0.1603498542 | J74: 0.2575315841 | K74: 0.08940719145 | L74: 0.1992225462 | M74: 1
A75: South Lanarkshire | B75: =B34/$M34 -> 0.001709401709 | C75: 0.0358974359 | D75: 0.06324786325 | E75: 0.006837606838 | F75: 0.001709401709 | G75: 0 | H75: 0 | I75: 0.2581196581 | J75: 0.3521367521 | K75: 0.2786324786 | L75: 0.003418803419 | M75: 1
A76: Stirling | B76: =B35/$M35 -> 0 | C76: 0.01149425287 | D76: 0.03448275862 | E76: 0 | F76: 0 | G76: 0 | H76: 0 | I76: 0.1609195402 | J76: 0.724137931 | K76: 0.05747126437 | L76: 0 | M76: 1
A77: West Dunbartonshire | B77: =B36/$M36 -> 0.01369863014 | C77: 0.08904109589 | D77: 0.102739726 | E77: 0.03424657534 | F77: 0.006849315068 | G77: 0 | H77: 0.006849315068 | I77: 0.3150684932 | J77: 0.2602739726 | K77: 0.1780821918 | L77: 0.006849315068 | M77: 1
A78: West Lothian | B78: =B37/$M37 -> 0 | C78: 0.01754385965 | D78: 0.02339181287 | E78: 0.005847953216 | F78: 0.008771929825 | G78: 0 | H78: 0.002923976608 | I78: 0.4298245614 | J78: 0.4912280702 | K78: 0.01461988304 | L78: 0.002923976608 | M78: 1
B87: Chart Data
C88: Client informed of rights under homelessness legislation | D88: General Housing advice/ Tenancy rights advice | E88: Other
B89: Clackmannanshire | C89: 0.5094339623 | D89: 0.4198113208 | E89: 0.06603773585
B90: Shetland | C90: 0.4691358025 | D90: 0.4691358025 | E90: 0.04938271605
B91: Dundee City | C91: 0.4322820037 | D91: 0.4601113173 | E91: 0.107606679
B92: West Lothian | C92: 0.4298245614 | D92: 0.4912280702 | E92: 0.07602339181
B93: Highland | C93: 0.3720930233 | D93: 0.5 | E93: 0.1279069767
B94: Glasgow City | C94: 0.3551451187 | D94: 0.4031662269 | E94: 0.2416886544
B95: Scottish Borders | C95: 0.3487394958 | D95: 0.3529411765 | E95: 0.3025210084
B96: Aberdeen City | C96: 0.3271334792 | D96: 0.4956236324 | E96: 0.1772428884
B97: Dumfries & Galloway | C97: 0.3257790368 | D97: 0.3739376771 | E97: 0.2974504249
B98: North Ayrshire | C98: 0.324 | D98: 0.3426666667 | E98: 0.3333333333
B99: Moray | C99: 0.3219047619 | D99: 0.3847619048 | E99: 0.2952380952
B100: Aberdeenshire | C100: 0.315629742 | D100: 0.4430955994 | E100: 0.2427921093
B101: West Dunbartonshire | C101: 0.3150684932 | D101: 0.2602739726 | E101: 0.4383561644
B102: Argyll & Bute | C102: 0.3149466192 | D102: 0.4519572954 | E102: 0.2348754448
B103: Eilean Siar | C103: 0.3 | D103: 0.2 | E103: 0.4
B104: Orkney | C104: 0.3 | D104: 0.7 | E104: 0.1
B105: Edinburgh | C105: 0.2987012987 | D105: 0.6178107607 | E105: 0.08348794063
B106: East Renfrewshire | C106: 0.2875 | D106: 0.3 | E106: 0.4
B107: Fife | C107: 0.2840466926 | D107: 0.4007782101 | E107: 0.3151750973
B108: Perth & Kinross | C108: 0.283891547 | D108: 0.5295055821 | E108: 0.1881977671
B109: Scotland | C109: 0.2651774553 | D109: 0.3815424751 | E109: 0.353171368
B110: Renfrewshire | C110: 0.2637655417 | D110: 0.3401420959 | E110: 0.3943161634
B111: South Lanarkshire | C111: 0.2581196581 | D111: 0.3521367521 | E111: 0.3914529915
B112: Midlothian | C112: 0.2350230415 | D112: 0.4239631336 | E112: 0.33640553
B113: Inverclyde | C113: 0.2219570406 | D113: 0.723150358 | E113: 0.05489260143
B114: East Dunbartonshire | C114: 0.2096774194 | D114: 0.2204301075 | E114: 0.5698924731
B115: Angus | C115: 0.1913303438 | D115: 0.3198804185 | E115: 0.4887892377
B116: Stirling | C116: 0.1609195402 | D116: 0.724137931 | E116: 0.1034482759
B117: South Ayrshire | C117: 0.1603498542 | D117: 0.2575315841 | E117: 0.5821185617
B118: East Lothian | C118: 0.1553398058 | D118: 0.2621359223 | E118: 0.5825242718
B119: East Ayrshire | C119: 0.1481481481 | D119: 0.1944444444 | E119: 0.6574074074
B120: Falkirk | C120: 0.1320085167 | D120: 0.1628814762 | E120: 0.7051100071
B121: North Lanarkshire | C121: 0.1104387292 | D121: 0.5128593041 | E121: 0.3751891074

Sheet Chart 7 - Activities by LA
A1: Chart 7:Activities by Local Authority | N1: Back to Contents
A2: Data from 1 April 2017 to 31 March 2018

Sheet Table 8 - Outcomes by Quarter
A1: Table 8a: Outcomes by Quarter (number) | F1: Back to Contents
B3: Quarter of Approach Closure | R3: All | T3: Annual change
A4: Outcomes | B4: 2014 Q2 | C4: 2014 Q3 | D4: 2014 Q4 | E4: 2015 Q1 | F4: 2015 Q2 | G4: 2015 Q3 | H4: 2015 Q4 | I4: 2016 Q1 | J4: 2016 Q2 | K4: 2016 Q3 | L4: 2016 Q4 | M4: 2017 Q1 | N4: 2017 Q2 | O4: 2017 Q3 | P4: 2017 Q4 | Q4: 2018 Q1 | T4: 2016/17 | U4: 2017/18 | V4: Change | W4: % change
A5: Made homelessness application to local authority | B5: 5015 | C5: 6790 | D5: 6160 | E5: 7300 | F5: 6685 | G5: 6820 | H5: 6280 | I5: 6630 | J5: 6580 | K5: 5525 | L5: 5635 | M5: 6610 | N5: 5670 | O5: 5290 | P5: 4235 | Q5: 4495 | R5: 95725 | T5: =SUM(J5:M5) -> 24350 | U5: =SUM(N5:Q5) -> 19690 | V5: =U5-T5 -> -4660 | W5: =V5/T5 -> -0.19137577
A6: Remained in current accommodation | B6: 1635 | C6: 2575 | D6: 2935 | E6: 2695 | F6: 2570 | G6: 2800 | H6: 2670 | I6: 2700 | J6: 2585 | K6: 2670 | L6: 2340 | M6: 3250 | N6: 2765 | O6: 2565 | P6: 2080 | Q6: 2175 | R6: 41010 | T6: =SUM(J6:M6) -> 10845 | U6: =SUM(N6:Q6) -> 9585 | V6: =U6-T6 -> -1260 | W6: =V6/T6 -> -0.1161825726
A7: Lost Contact/ Not known | B7: 1065 | C7: 2520 | D7: 2380 | E7: 1765 | F7: 1680 | G7: 1785 | H7: 2185 | I7: 1885 | J7: 2050 | K7: 1890 | L7: 1835 | M7: 2985 | N7: 3975 | O7: 1560 | P7: 1405 | Q7: 1475 | R7: 32445 | T7: 8760 | U7: 8415 | V7: -345 | W7: -0.03938356164
A8: Other (known) | B8: 455 | C8: 710 | D8: 655 | E8: 470 | F8: 515 | G8: 575 | H8: 435 | I8: 675 | J8: 540 | K8: 725 | L8: 705 | M8: 870 | N8: 665 | O8: 605 | P8: 435 | Q8: 660 | R8: 9695 | T8: 2840 | U8: 2365 | V8: -475 | W8: -0.1672535211
A9: LA/RSL Tenancy | B9: 225 | C9: 405 | D9: 500 | E9: 485 | F9: 580 | G9: 540 | H9: 560 | I9: 585 | J9: 520 | K9: 800 | L9: 510 | M9: 515 | N9: 435 | O9: 445 | P9: 400 | Q9: 395 | R9: 7890 | T9: 2345 | U9: 1675 | V9: -670 | W9: -0.2857142857
A10: PRS Tenancy | B10: 265 | C10: 455 | D10: 410 | E10: 450 | F10: 485 | G10: 460 | H10: 460 | I10: 400 | J10: 455 | K10: 495 | L10: 385 | M10: 415 | N10: 395 | O10: 395 | P10: 260 | Q10: 295 | R10: 6485 | T10: 1750 | U10: 1345 | V10: -405 | W10: -0.2314285714
A11: Moved-in with friends/ relatives | B11: 185 | C11: 340 | D11: 295 | E11: 255 | F11: 245 | G11: 250 | H11: 295 | I11: 265 | J11: 260 | K11: 305 | L11: 230 | M11: 260 | N11: 250 | O11: 240 | P11: 190 | Q11: 205 | R11: 4070 | T11: 1055 | U11: 885 | V11: -170 | W11: -0.1611374408
A12: Total (ALL) | B12: 8840 | C12: 13790 | D12: 13335 | E12: 13425 | F12: 12760 | G12: 13225 | H12: 12895 | I12: 13140 | J12: 12990 | K12: 12410 | L12: 11640 | M12: 14900 | N12: 14160 | O12: 11100 | P12: 9005 | Q12: 9700 | R12: 197320 | T12: 51940 | U12: 43965 | V12: -7975 | W12: -0.1535425491
A13: Disclosure Control has been applied to this table. All cells have been rounded to the nearest five.
A14: Table 8b: Outcomes by Quarter (percent)
B16: Quarter of Approach Closure | R16: All
A17: Outcomes | B17: 2014 Q2 | C17: 2014 Q3 | D17: 2014 Q4 | E17: 2015 Q1 | F17: 2015 Q2 | G17: 2015 Q3 | H17: 2015 Q4 | I17: 2016 Q1 | J17: 2016 Q2 | K17: 2016 Q3 | L17: 2016 Q4 | M17: 2017 Q1 | N17: 2017 Q2 | O17: 2017 Q3 | P17: 2017 Q4 | Q17: 2018 Q1 | T17: 2016/17 | U17: 2017/18
A18: Made homelessness application to local authority | B18: =B5/B$12 -> 0.5673076923 | C18: =C5/C$12 -> 0.4923857868 | D18: 0.4619422572 | E18: 0.5437616387 | F18: 0.5239028213 | G18: 0.5156899811 | H18: 0.4870104692 | I18: 0.50456621 | J18: 0.506543495 | K18: 0.4452054795 | L18: 0.4841065292 | M18: 0.4436241611 | N18: 0.4004237288 | O18: 0.4765765766 | P18: 0.470294281 | Q18: 0.4634020619 | R18: 0.4851256842 | T18: =T5/$T$12 -> 0.4688101656 | U18: =U5/$U$12 -> 0.4478562493
A19: Remained in current accommodation | B19: =B6/B$12 -> 0.1849547511 | C19: =C6/C$12 -> 0.1867295141 | D19: 0.2200974878 | E19: 0.200744879 | F19: 0.2014106583 | G19: 0.2117202268 | H19: 0.2070569988 | I19: 0.2054794521 | J19: 0.1989992302 | K19: 0.2151490733 | L19: 0.2010309278 | M19: 0.2181208054 | N19: 0.1952683616 | O19: 0.2310810811 | P19: 0.2309827873 | Q19: 0.2242268041 | R19: 0.2078349889 | T19: =T6/$T$12 -> 0.2087986138 | U19: =U6/$U$12 -> 0.2180143296
A20: Lost Contact/ Not known | B20: 0.1204751131 | C20: =C7/C$12 -> 0.1827411168 | D20: 0.1784776903 | E20: 0.1314711359 | F20: 0.131661442 | G20: 0.1349716446 | H20: 0.1694455215 | I20: 0.1434550989 | J20: 0.1578137028 | K20: 0.1522965351 | L20: 0.1576460481 | M20: 0.2003355705 | N20: 0.280720339 | O20: 0.1405405405 | P20: 0.1560244309 | Q20: 0.1520618557 | R20: 0.1644283398 | T20: 0.1686561417 | U20: 0.1914022518
A21: Other (known) | B21: 0.05147058824 | C21: =C8/C$12 -> 0.05148658448 | D21: 0.04911886014 | E21: 0.03500931099 | F21: 0.04036050157 | G21: 0.04347826087 | H21: 0.03373400543 | I21: 0.05136986301 | J21: 0.0415704388 | K21: 0.05842062853 | L21: 0.06056701031 | M21: 0.05838926174 | N21: 0.04696327684 | O21: 0.0545045045 | P21: 0.04830649639 | Q21: 0.06804123711 | R21: 0.04913338739 | T21: 0.05467847516 | U21: 0.05379278972
A22: LA/RSL Tenancy | B22: 0.02545248869 | C22: =C9/C$12 -> 0.02936910805 | D22: 0.03749531309 | E22: 0.03612662942 | F22: 0.04545454545 | G22: 0.04083175803 | H22: 0.04342768515 | I22: 0.04452054795 | J22: 0.04003079292 | K22: 0.06446414182 | L22: 0.04381443299 | M22: 0.03456375839 | N22: 0.03072033898 | O22: 0.04009009009 | P22: 0.0444197668 | Q22: 0.04072164948 | R22: 0.03998580985 | T22: 0.04514824798 | U22: 0.03809848743
A23: PRS Tenancy | B23: 0.02997737557 | C23: =C10/C$12 -> 0.03299492386 | D23: 0.03074615673 | E23: 0.03351955307 | F23: 0.03800940439 | G23: 0.0347826087 | H23: 0.03567274137 | I23: 0.0304414003 | J23: 0.0350269438 | K23: 0.03988718775 | L23: 0.03307560137 | M23: 0.02785234899 | N23: 0.02789548023 | O23: 0.03558558559 | P23: 0.02887284842 | Q23: 0.03041237113 | R23: 0.03286539631 | T23: 0.03369272237 | U23: 0.03059251677
A24: Moved-in with friends/ relatives | B24: 0.02092760181 | C24: =C11/C$12 -> 0.0246555475 | D24: 0.02212223472 | E24: 0.01899441341 | F24: 0.01920062696 | G24: 0.01890359168 | H24: 0.02287708414 | I24: 0.0201674277 | J24: 0.02001539646 | K24: 0.02457695407 | L24: 0.01975945017 | M24: 0.01744966443 | N24: 0.01765536723 | O24: 0.02162162162 | P24: 0.02109938923 | Q24: 0.02113402062 | R24: 0.02062639368 | T24: 0.02031189834 | U24: 0.02012964858
A25: Total (ALL) | B25: 1 | C25: =C12/C$12 -> 1 | D25: 1 | E25: 1 | F25: 1 | G25: 1 | H25: 1 | I25: 1 | J25: 1 | K25: 1 | L25: 1 | M25: 1 | N25: 1 | O25: 1 | P25: 1 | Q25: 1 | R25: 1 | T25: =T12/$T$12 -> 1 | U25: 1
A35: Data for chart
B36: Quarter of Approach Closure
B37: 2014 | E37: 2015 | I37: 2016 | M37: 2017 | Q37: 2018 | R37: All
B38: Q2 | C38: Q3 | D38: Q4 | E38: Q1 | F38: Q2 | G38: Q3 | H38: Q4 | I38: Q1 | J38: Q2 | K38: Q3 | L38: Q4 | M38: Q1 | N38: Q2 | O38: Q3 | P38: Q4 | Q38: Q1 | T38: 2017/18
A39: Made homelessness application to local authority | B39: =B5 -> 5015 | C39: =C5 -> 6790 | D39: 6160 | E39: 7300 | F39: 6685 | G39: 6820 | H39: 6280 | I39: 6630 | J39: 6580 | K39: 5525 | L39: 5635 | M39: 6610 | N39: 5670 | O39: 5290 | P39: 4235 | Q39: 4495 | R39: 95725 | T39: =SUM(N39:Q39) -> 19690
A40: Remained in current accommodation | B40: =B6 -> 1635 | C40: =C6 -> 2575 | D40: 2935 | E40: 2695 | F40: 2570 | G40: 2800 | H40: 2670 | I40: 2700 | J40: 2585 | K40: 2670 | L40: 2340 | M40: 3250 | N40: 2765 | O40: 2565 | P40: 2080 | Q40: 2175 | R40: 41010 | T40: =SUM(N40:Q40) -> 9585
A41: Lost Contact/ Not known | B41: =B7 -> 1065 | C41: =C7 -> 2520 | D41: 2380 | E41: 1765 | F41: 1680 | G41: 1785 | H41: 2185 | I41: 1885 | J41: 2050 | K41: 1890 | L41: 1835 | M41: 2985 | N41: 3975 | O41: 1560 | P41: 1405 | Q41: 1475 | R41: 32445 | T41: 8415
A42: Moved into Alternative Accommodation | B42: =SUM(B8:B11) -> 1130 | C42: =SUM(C8:C11) -> 1910 | D42: 1860 | E42: 1660 | F42: 1825 | G42: 1825 | H42: 1750 | I42: 1925 | J42: 1775 | K42: 2325 | L42: 1830 | M42: 2060 | N42: 1745 | O42: 1685 | P42: 1285 | Q42: 1555 | R42: 28140 | T42: 6270
A43: Total (ALL) | B43: =SUM(B39:B42) -> 8845 | C43: =SUM(C39:C42) -> 13795 | D43: 13335 | E43: 13420 | F43: 12760 | G43: 13230 | H43: 12885 | I43: 13140 | J43: 12990 | K43: 12410 | L43: 11640 | M43: 14905 | N43: 14155 | O43: 11100 | P43: 9005 | Q43: 9700 | R43: 197320 | T43: 43960
B45: Quarter of Approach Closure | R45: All
B46: 2014 Q2 | C46: 2014 Q3 | D46: 2014 Q4 | E46: 2015 Q1 | F46: 2015 Q2 | G46: 2015 Q3 | H46: 2015 Q4 | I46: 2016 Q1 | J46: 2016 Q2 | K46: 2016 Q3 | L46: 2016 Q4 | M46: 2017 Q1 | N46: 2017 Q2 | O46: 2017 Q3 | P46: 2017 Q4 | Q46: 2018 Q1 | T46: 2017/18
A47: Made homelessness application to local authority | B47: =B39/B$43 -> 0.5669869983 | C47: =C39/C$43 -> 0.4922073215 | D47: 0.4619422572 | E47: 0.5439642325 | F47: 0.5239028213 | G47: 0.5154950869 | H47: 0.4873884362 | I47: 0.50456621 | J47: 0.506543495 | K47: 0.4452054795 | L47: 0.4841065292 | M47: 0.4434753438 | N47: 0.4005651713 | O47: 0.4765765766 | P47: 0.470294281 | Q47: 0.4634020619 | R47: 0.4851256842 | T47: =T39/$T$43 -> 0.4479071884
A48: Remained in current accommodation | B48: =B40/B$43 -> 0.1848501979 | C48: =C40/C$43 -> 0.186661834 | D48: 0.2200974878 | E48: 0.2008196721 | F48: 0.2014106583 | G48: 0.2116402116 | H48: 0.207217695 | I48: 0.2054794521 | J48: 0.1989992302 | K48: 0.2151490733 | L48: 0.2010309278 | M48: 0.218047635 | N48: 0.1953373366 | O48: 0.2310810811 | P48: 0.2309827873 | Q48: 0.2242268041 | R48: 0.2078349889 | T48: =T40/$T$43 -> 0.2180391265
A49: Lost Contact/ Not known | B49: 0.1204070096 | C49: =C41/C$43 -> 0.1826748822 | D49: 0.1784776903 | E49: 0.1315201192 | F49: 0.131661442 | G49: 0.1349206349 | H49: 0.1695770276 | I49: 0.1434550989 | J49: 0.1578137028 | K49: 0.1522965351 | L49: 0.1576460481 | M49: 0.2002683663 | N49: 0.2808194984 | O49: 0.1405405405 | P49: 0.1560244309 | Q49: 0.1520618557 | R49: 0.1644283398 | T49: 0.1914240218
A50: Moved into Alternative Accommodation | B50: 0.1277557942 | C50: =C42/C$43 -> 0.1384559623 | D50: 0.1394825647 | E50: 0.1236959762 | F50: 0.1430250784 | G50: 0.1379440665 | H50: 0.1358168413 | I50: 0.146499239 | J50: 0.136643572 | K50: 0.1873489122 | L50: 0.1572164948 | M50: 0.1382086548 | N50: 0.1232779936 | O50: 0.1518018018 | P50: 0.1426985008 | Q50: 0.1603092784 | R50: 0.1426109872 | T50: 0.1426296633
A51: Total (ALL) | B51: 1 | C51: =C43/C$43 -> 1 | D51: 1 | E51: 1 | F51: 1 | G51: 1 | H51: 1 | I51: 1 | J51: 1 | K51: 1 | L51: 1 | M51: 1 | N51: 1 | O51: 1 | P51: 1 | Q51: 1 | R51: 1 | T51: 1

Sheet Chart 8 - Outcomes by quarter
A1: Chart 8: Outcome of Housing Options Approaches by quarter | N1: Back to Contents
A2: Data from 1 April 2014 to 31 March 2018

Sheet Chart 9 - Outcome Durations
A1: Chart 9: Distribution of approach duration by outcome | H1: Back to Contents
A2: All approaches closed between 1 April 2014 and 31 March 2018
A36: Workings for Chart XX: Distribution of approach duration by outcome
A37: All approaches closed between 1 April 2014 and 31 March 2017
A39: Outcome | B39: Number | C39: Number of days between Approach Date and Outcome Date
C40: P5 | D40: Q1 | E40: Median | F40: Q3 | G40: P95
A41: LA/RSL Tenancy | B41: 7892 | C41: 0 | D41: 27 | E41: 70 | F41: 145 | G41: 392
A42: PRS Tenancy | B42: 6487 | C42: 1 | D42: 23 | E42: 51 | F42: 110 | G42: 331
A43: Other (known) | B43: 9695 | C43: 0 | D43: 3 | E43: 32 | F43: 100 | G43: 368
A44: Moved-in with friends/ relatives | B44: 4069 | C44: 0 | D44: 10 | E44: 35 | F44: 80 | G44: 256
A45: Lost Contact/ Not known | B45: 32447 | C45: 0 | D45: 15 | E45: 48 | F45: 128 | G45: 641
A46: Remained in current accommodation | B46: 41008 | C46: 0 | D46: 6 | E46: 33 | F46: 90 | G46: 322
A47: Made homelessness application to local authority | B47: 95723 | C47: 0 | D47: 0 | E47: 1 | F47: 21 | G47: 444
A48: All Outcomes | B48: 197321 | C48: 0 | D48: 0 | E48: 17 | F48: 73 | G48: 442
A50: Notes
A51: P5 = 5th Percentile. 5% of approaches have been open for this many days.
A52: Q1 = First Quartile. 25% of approaches have been open for this many days.
A53: Median. 50% of approaches have been open for this many days.
A54: Q3 = First Quartile. 75% of approaches have been open for this many days. Conversely, 25% of cases have been open for more than this number of days.
A55: P95 = 95th Percentile. 5% of approaches have been open for more than this number of days.
A58: Data for Box Plot
A59: Outcome | B59: P5 | C59: Q1 | D59: Median | E59: Q3 | F59: P95
A60: LA/RSL Tenancy | B60: 0 | C60: 27 | D60: 70 | E60: 145 | F60: 392
A61: PRS Tenancy | B61: 1 | C61: 23 | D61: 51 | E61: 110 | F61: 331
A62: Other (known) | B62: 0 | C62: 3 | D62: 32 | E62: 100 | F62: 368
A63: Moved-in with friends/ relatives | B63: 0 | C63: 10 | D63: 35 | E63: 80 | F63: 256
A64: Lost Contact/ Not known | B64: 0 | C64: 15 | D64: 48 | E64: 128 | F64: 641
A65: Remained in current accommodation | B65: 0 | C65: 6 | D65: 33 | E65: 90 | F65: 322
A66: Made homelessness application to local authority | B66: 0 | C66: 0 | D66: 1 | E66: 21 | F66: 444
A68: =A59 -> Outcome | B68: Q1 | C68: Median-Q1 | D68: Q3-Median | E68: Q1-P5 | F68: P95-Q3 | G68: Median
A69: =A60 -> LA/RSL Tenancy | B69: =B60 -> 0 | C69: =D60-C60 -> 43 | D69: =E60-D60 -> 75 | E69: =C60-B60 -> 27 | F69: =F60-E60 -> 247 | G69: =D60 -> 70
A70: PRS Tenancy | B70: 1 | C70: =D61-C61 -> 28 | D70: 59 | E70: =C61-B61 -> 22 | F70: =F61-E61 -> 221 | G70: =D61 -> 51
A71: Other (known) | B71: 0 | C71: 29 | D71: 68 | E71: 3 | F71: 268 | G71: 32
A72: Moved-in with friends/ relatives | B72: 0 | C72: 25 | D72: 45 | E72: 10 | F72: 176 | G72: 35
A73: Lost Contact/ Not known | B73: 0 | C73: 33 | D73: 80 | E73: 15 | F73: 513 | G73: 48
A74: Remained in current accommodation | B74: 0 | C74: 27 | D74: 57 | E74: 6 | F74: 232 | G74: 33
A75: Made homelessness application to local authority | B75: 0 | C75: 1 | D75: 20 | E75: 0 | F75: 423 | G75: 1
A78: Outcome | B78: Q1 | C78: Median-Q1 | D78: Q3-Median | E78: Q1-P5 | F78: P95-Q3 | G78: Median
A79: Made homelessness application to local authority | B79: 0 | C79: 1 | D79: 20 | E79: 0 | F79: 423 | G79: 1
A80: Other (known) | B80: 0 | C80: 29 | D80: 68 | E80: 3 | F80: 268 | G80: 32
A81: Remained in current accommodation | B81: 0 | C81: 27 | D81: 57 | E81: 6 | F81: 232 | G81: 33
A82: Moved-in with friends/ relatives | B82: 0 | C82: 25 | D82: 45 | E82: 10 | F82: 176 | G82: 35
A83: Lost Contact/ Not known | B83: 0 | C83: 33 | D83: 80 | E83: 15 | F83: 513 | G83: 48
A84: PRS Tenancy | B84: 1 | C84: 28 | D84: 59 | E84: 22 | F84: 221 | G84: 51
A85: LA/RSL Tenancy | B85: 0 | C85: 43 | D85: 75 | E85: 27 | F85: 247 | G85: 70

Sheet Table 9 - Outcomes by LA
A1: Table 9: Outcomes by LA: 1 April 2017 to 31 March 2018 | G1: Back to Contents
A3: Local Authority | B3: LA/RSL Tenancy | C3: PRS Tenancy | D3: Other (known) | E3: Moved-in with friends/ relatives | F3: Lost Contact/ Not known | G3: Remained in current accommodation | H3: Made homelessness application to local authority | I3: All
A4: Scotland | B4: 1675 | C4: 1345 | D4: 2365 | E4: 890 | F4: 8415 | G4: 9585 | H4: 19690 | I4: 43970
A5: Aberdeen City | B5: 440 | C5: 195 | D5: 210 | E5: 60 | F5: 3025 | G5: 1695 | H5: 1425 | I5: 7055
A6: Aberdeenshire | B6: 35 | C6: 75 | D6: 40 | E6: 35 | F6: 315 | G6: 250 | H6: 495 | I6: 1240
A7: Angus | B7: 25 | C7: 25 | D7: 50 | E7: 5 | F7: 85 | G7: 340 | H7: 615 | I7: 1150
A8: Argyll & Bute | B8: 75 | C8: 55 | D8: 90 | E8: 25 | F8: 205 | G8: 800 | H8: 435 | I8: 1680
A9: Clackmannanshire | B9: 0 | C9: 0 | D9: 0 | E9: 0 | F9: 0 | G9: 10 | H9: 460 | I9: 480
A10: Dumfries & Galloway | B10: 15 | C10: 15 | D10: 5 | E10: 5 | F10: 115 | G10: 85 | H10: 425 | I10: 660
A11: Dundee City | B11: 50 | C11: 35 | D11: 45 | E11: 25 | F11: 265 | G11: 305 | H11: 560 | I11: 1280
A12: East Ayrshire | B12: 10 | C12: 10 | D12: 0 | E12: 5 | F12: 5 | G12: 30 | H12: 15 | I12: 80
A13: East Dunbartonshire | B13: 0 | C13: 5 | D13: 5 | E13: 0 | F13: 30 | G13: 40 | H13: 105 | I13: 185
A14: East Lothian | B14: 0 | C14: 5 | D14: 0 | E14: 0 | F14: 25 | G14: 10 | H14: 20 | I14: 65
A15: East Renfrewshire | B15: 5 | C15: 15 | D15: 10 | E15: 5 | F15: 25 | G15: 50 | H15: 40 | I15: 150
A16: Edinburgh | B16: 75 | C16: 70 | D16: 115 | E16: 100 | F16: 925 | G16: 760 | H16: 2860 | I16: 4905
A17: Eilean Siar | B17: 0 | C17: 0 | D17: 0 | E17: 0 | F17: 5 | G17: 5 | H17: 5 | I17: 20
A18: Falkirk | B18: 45 | C18: 5 | D18: 40 | E18: 40 | F18: 55 | G18: 185 | H18: 840 | I18: 1215
A19: Fife | B19: 95 | C19: 130 | D19: 50 | E19: 10 | F19: 280 | G19: 175 | H19: 540 | I19: 1280
A20: Glasgow City | B20: 65 | C20: 20 | D20: 695 | E20: 180 | F20: 1175 | G20: 1300 | H20: 5220 | I20: 8655
A21: Highland | B21: 20 | C21: 25 | D21: 15 | E21: 25 | F21: 45 | G21: 100 | H21: 90 | I21: 315
A22: Inverclyde | B22: 30 | C22: 35 | D22: 55 | E22: 40 | F22: 225 | G22: 160 | H22: 145 | I22: 695
A23: Midlothian | B23: 10 | C23: 10 | D23: 20 | E23: 10 | F23: 165 | G23: 85 | H23: 50 | I23: 345
A24: Moray | B24: 45 | C24: 80 | D24: 35 | E24: 90 | F24: 110 | G24: 240 | H24: 460 | I24: 1060
A25: North Ayrshire | B25: 105 | C25: 115 | D25: 75 | E25: 40 | F25: 45 | G25: 130 | H25: 715 | I25: 1220
A26: North Lanarkshire | B26: 80 | C26: 10 | D26: 50 | E26: 15 | F26: 60 | G26: 645 | H26: 305 | I26: 1165
A27: Orkney | B27: 5 | C27: 5 | D27: 0 | E27: 0 | F27: 10 | G27: 0 | H27: 10 | I27: 25
A28: Perth & Kinross | B28: 70 | C28: 140 | D28: 510 | E28: 20 | F28: 395 | G28: 780 | H28: 950 | I28: 2865
A29: Renfrewshire | B29: 70 | C29: 25 | D29: 120 | E29: 45 | F29: 175 | G29: 665 | H29: 890 | I29: 1995
A30: Scottish Borders | B30: 60 | C30: 45 | D30: 30 | E30: 5 | F30: 195 | G30: 105 | H30: 335 | I30: 775
A31: Shetland | B31: 25 | C31: 0 | D31: 5 | E31: 5 | F31: 35 | G31: 45 | H31: 120 | I31: 230
A32: South Ayrshire | B32: 50 | C32: 5 | D32: 5 | E32: 0 | F32: 25 | G32: 25 | H32: 755 | I32: 865
A33: South Lanarkshire | B33: 65 | C33: 125 | D33: 40 | E33: 35 | F33: 235 | G33: 145 | H33: 295 | I33: 935
A34: Stirling | B34: 10 | C34: 25 | D34: 15 | E34: 20 | F34: 60 | G34: 175 | H34: 75 | I34: 375
A35: West Dunbartonshire | B35: 60 | C35: 10 | D35: 10 | E35: 5 | F35: 45 | G35: 60 | H35: 55 | I35: 240
A36: West Lothian | B36: 35 | C36: 30 | D36: 35 | E36: 35 | F36: 75 | G36: 200 | H36: 370 | I36: 765
A38: Disclosure Control has been applied to this table. All cells have been rounded to the nearest five.
A39: Row totals may not sum to total of individual cells due to rounding.
A41: Table 9: Outcomes by LA: 1 April 2017 to 31 March 2018
A43: Local Authority | B43: LA/RSL Tenancy | C43: PRS Tenancy | D43: Other (known) | E43: Moved-in with friends/ relatives | F43: Lost Contact/ Not known | G43: Remained in current accommodation | H43: Made homelessness application to local authority | I43: All
A44: Scotland | B44: =B4/$I4 -> 0.03809415511 | C44: =C4/$I4 -> 0.03058903798 | D44: 0.05378667273 | E44: 0.02024107346 | F44: 0.1913804867 | G44: 0.2179895383 | H44: 0.4478053218 | I44: =SUM(B44,C44,D44,E44,F44,G44,H44) -> 0.9998862861 | K44: =SUM(B44:E44) -> 0.1427109393
A45: Aberdeen City | B45: =B5/$I5 -> 0.06236711552 | C45: 0.02763997165 | D45: 0.02976612332 | E45: 0.008504606662 | F45: 0.4287739192 | G45: 0.2402551382 | H45: 0.2019844082 | I45: 1 | K45: =SUM(B45:E45) -> 0.1282778172
A46: Aberdeenshire | B46: =B6/$I6 -> 0.02822580645 | C46: 0.06048387097 | D46: 0.03225806452 | E46: 0.02822580645 | F46: 0.2540322581 | G46: 0.2016129032 | H46: 0.3991935484 | I46: 1 | K46: 0.1491935484
A47: Angus | B47: =B7/$I7 -> 0.02173913043 | C47: 0.02173913043 | D47: 0.04347826087 | E47: 0.004347826087 | F47: 0.07391304348 | G47: 0.2956521739 | H47: 0.5347826087 | I47: 1 | K47: 0.09130434783
A48: Argyll & Bute | B48: =B8/$I8 -> 0.04464285714 | C48: 0.03273809524 | D48: 0.05357142857 | E48: 0.01488095238 | F48: 0.1220238095 | G48: 0.4761904762 | H48: 0.2589285714 | I48: 1 | K48: 0.1458333333
A49: Clackmannanshire | B49: =B9/$I9 -> 0 | C49: 0 | D49: 0 | E49: 0 | F49: 0 | G49: 0.02083333333 | H49: 0.9583333333 | I49: 1 | K49: 0
A50: Dumfries & Galloway | B50: =B10/$I10 -> 0.02272727273 | C50: 0.02272727273 | D50: 0.007575757576 | E50: 0.007575757576 | F50: 0.1742424242 | G50: 0.1287878788 | H50: 0.6439393939 | I50: 1 | K50: 0.06060606061
A51: Dundee City | B51: =B11/$I11 -> 0.0390625 | C51: 0.02734375 | D51: 0.03515625 | E51: 0.01953125 | F51: 0.20703125 | G51: 0.23828125 | H51: 0.4375 | I51: 1 | K51: 0.12109375
A52: East Ayrshire | B52: =B12/$I12 -> 0.125 | C52: 0.125 | D52: 0 | E52: 0.0625 | F52: 0.0625 | G52: 0.375 | H52: 0.1875 | I52: 1 | K52: 0.3125
A53: East Dunbartonshire | B53: =B13/$I13 -> 0 | C53: 0.02702702703 | D53: 0.02702702703 | E53: 0 | F53: 0.1621621622 | G53: 0.2162162162 | H53: 0.5675675676 | I53: 1 | K53: 0.05405405405
A54: East Lothian | B54: =B14/$I14 -> 0 | C54: 0.07692307692 | D54: 0 | E54: 0 | F54: 0.3846153846 | G54: 0.1538461538 | H54: 0.3076923077 | I54: 1 | K54: 0.07692307692
A55: East Renfrewshire | B55: =B15/$I15 -> 0.03333333333 | C55: 0.1 | D55: 0.06666666667 | E55: 0.03333333333 | F55: 0.1666666667 | G55: 0.3333333333 | H55: 0.2666666667 | I55: 1 | K55: 0.2333333333
A56: Edinburgh | B56: =B16/$I16 -> 0.01529051988 | C56: 0.01427115189 | D56: 0.02344546381 | E56: 0.02038735984 | F56: 0.1885830785 | G56: 0.1549439348 | H56: 0.5830784913 | I56: 1 | K56: 0.07339449541
A57: Eilean Siar | B57: =B17/$I17 -> 0 | C57: 0 | D57: 0 | E57: 0 | F57: 0.25 | G57: 0.25 | H57: 0.25 | I57: 1 | K57: 0
A58: Falkirk | B58: =B18/$I18 -> 0.03703703704 | C58: 0.004115226337 | D58: 0.0329218107 | E58: 0.0329218107 | F58: 0.04526748971 | G58: 0.1522633745 | H58: 0.6913580247 | I58: 1 | K58: 0.1069958848
A59: Fife | B59: =B19/$I19 -> 0.07421875 | C59: 0.1015625 | D59: 0.0390625 | E59: 0.0078125 | F59: 0.21875 | G59: 0.13671875 | H59: 0.421875 | I59: 1 | K59: 0.22265625
A60: Glasgow City | B60: =B20/$I20 -> 0.007510109763 | C60: 0.002310803004 | D60: 0.08030040439 | E60: 0.02079722704 | F60: 0.1357596765 | G60: 0.1502021953 | H60: 0.6031195841 | I60: 1 | K60: 0.1109185442
A61: Highland | B61: =B21/$I21 -> 0.06349206349 | C61: 0.07936507937 | D61: 0.04761904762 | E61: 0.07936507937 | F61: 0.1428571429 | G61: 0.3174603175 | H61: 0.2857142857 | I61: 1 | K61: 0.2698412698
A62: Inverclyde | B62: =B22/$I22 -> 0.04316546763 | C62: 0.05035971223 | D62: 0.07913669065 | E62: 0.05755395683 | F62: 0.3237410072 | G62: 0.2302158273 | H62: 0.2086330935 | I62: 1 | K62: 0.2302158273
A63: Midlothian | B63: =B23/$I23 -> 0.02898550725 | C63: 0.02898550725 | D63: 0.05797101449 | E63: 0.02898550725 | F63: 0.4782608696 | G63: 0.2463768116 | H63: 0.1449275362 | I63: 1 | K63: 0.1449275362
A64: Moray | B64: =B24/$I24 -> 0.04245283019 | C64: 0.07547169811 | D64: 0.03301886792 | E64: 0.08490566038 | F64: 0.1037735849 | G64: 0.2264150943 | H64: 0.4339622642 | I64: 1 | K64: 0.2358490566
A65: North Ayrshire | B65: =B25/$I25 -> 0.08606557377 | C65: 0.09426229508 | D65: 0.06147540984 | E65: 0.03278688525 | F65: 0.0368852459 | G65: 0.106557377 | H65: 0.5860655738 | I65: 1 | K65: 0.2745901639
A66: North Lanarkshire | B66: =B26/$I26 -> 0.0686695279 | C66: 0.008583690987 | D66: 0.04291845494 | E66: 0.01287553648 | F66: 0.05150214592 | G66: 0.5536480687 | H66: 0.2618025751 | I66: 1 | K66: 0.1330472103
A67: Orkney | B67: =B27/$I27 -> 0.2 | C67: 0.2 | D67: 0 | E67: 0 | F67: 0.4 | G67: 0 | H67: 0.4 | I67: 1 | K67: 0.4
A68: Perth & Kinross | B68: =B28/$I28 -> 0.02443280977 | C68: 0.04886561955 | D68: 0.1780104712 | E68: 0.006980802792 | F68: 0.1378708551 | G68: 0.2722513089 | H68: 0.3315881326 | I68: 1 | K68: 0.2582897033
A69: Renfrewshire | B69: =B29/$I29 -> 0.0350877193 | C69: 0.01253132832 | D69: 0.06015037594 | E69: 0.02255639098 | F69: 0.08771929825 | G69: 0.3333333333 | H69: 0.4461152882 | I69: 1 | K69: 0.1303258145
A70: Scottish Borders | B70: =B30/$I30 -> 0.07741935484 | C70: 0.05806451613 | D70: 0.03870967742 | E70: 0.006451612903 | F70: 0.2516129032 | G70: 0.135483871 | H70: 0.4322580645 | I70: 1 | K70: 0.1806451613
A71: Shetland | B71: =B31/$I31 -> 0.1086956522 | C71: 0 | D71: 0.02173913043 | E71: 0.02173913043 | F71: 0.152173913 | G71: 0.1956521739 | H71: 0.5217391304 | I71: 1 | K71: 0.152173913
A72: South Ayrshire | B72: =B32/$I32 -> 0.05780346821 | C72: 0.005780346821 | D72: 0.005780346821 | E72: 0 | F72: 0.0289017341 | G72: 0.0289017341 | H72: 0.8728323699 | I72: 1 | K72: 0.06936416185
A73: South Lanarkshire | B73: =B33/$I33 -> 0.06951871658 | C73: 0.1336898396 | D73: 0.04278074866 | E73: 0.03743315508 | F73: 0.2513368984 | G73: 0.1550802139 | H73: 0.3155080214 | I73: 1 | K73: 0.2834224599
A74: Stirling | B74: =B34/$I34 -> 0.02666666667 | C74: 0.06666666667 | D74: 0.04 | E74: 0.05333333333 | F74: 0.16 | G74: 0.4666666667 | H74: 0.2 | I74: 1 | K74: 0.1866666667
A75: West Dunbartonshire | B75: =B35/$I35 -> 0.25 | C75: 0.04166666667 | D75: 0.04166666667 | E75: 0.02083333333 | F75: 0.1875 | G75: 0.25 | H75: 0.2291666667 | I75: 1 | K75: 0.3541666667
A76: West Lothian | B76: =B36/$I36 -> 0.04575163399 | C76: 0.03921568627 | D76: 0.04575163399 | E76: 0.04575163399 | F76: 0.09803921569 | G76: 0.2614379085 | H76: 0.4836601307 | I76: 1 | K76: 0.1764705882
A78: Disclosure Control has been applied to this table. All cells have been rounded to the nearest five.
A79: Row totals may not sum to total of individual cells due to rounding.
A82: Chart Data - Remained in Current Accommodation
B83: Made homelessness application to local authority | C83: Remained in current accommodation | D83: Not Known/Lost Contact | E83: Found Alternative Accommodation
A84: Midlothian | B84: 0.1449275362 | C84: 0.2463768116 | D84: 0.4782608696 | E84: 0.1449275362
A85: East Ayrshire | B85: 0.1875 | C85: 0.375 | D85: 0.0625 | E85: 0.3125
A86: Stirling | B86: 0.2 | C86: 0.4666666667 | D86: 0.16 | E86: 0.1866666667
A87: Aberdeen City | B87: 0.2019844082 | C87: 0.2402551382 | D87: 0.4287739192 | E87: 0.1282778172
A88: Inverclyde | B88: 0.2086330935 | C88: 0.2302158273 | D88: 0.3237410072 | E88: 0.2302158273
A89: West Dunbartonshire | B89: 0.2291666667 | C89: 0.25 | D89: 0.1875 | E89: 0.3541666667
A90: Eilean Siar | B90: 0.25 | C90: 0.25 | D90: 0.25 | E90: 0
A91: Argyll & Bute | B91: 0.2589285714 | C91: 0.4761904762 | D91: 0.1220238095 | E91: 0.1458333333
A92: North Lanarkshire | B92: 0.2618025751 | C92: 0.5536480687 | D92: 0.05150214592 | E92: 0.1330472103
A93: East Renfrewshire | B93: 0.2666666667 | C93: 0.3333333333 | D93: 0.1666666667 | E93: 0.2333333333
A94: Highland | B94: 0.2857142857 | C94: 0.3174603175 | D94: 0.1428571429 | E94: 0.2698412698
A95: East Lothian | B95: 0.3076923077 | C95: 0.1538461538 | D95: 0.3846153846 | E95: 0.07692307692
A96: South Lanarkshire | B96: 0.3155080214 | C96: 0.1550802139 | D96: 0.2513368984 | E96: 0.2834224599
A97: Perth & Kinross | B97: 0.3315881326 | C97: 0.2722513089 | D97: 0.1378708551 | E97: 0.2582897033
A98: Aberdeenshire | B98: 0.3991935484 | C98: 0.2016129032 | D98: 0.2540322581 | E98: 0.1491935484
A99: Orkney | B99: 0.4 | C99: 0 | D99: 0.4 | E99: 0.4
A100: Fife | B100: 0.421875 | C100: 0.13671875 | D100: 0.21875 | E100: 0.22265625
A101: Scottish Borders | B101: 0.4322580645 | C101: 0.135483871 | D101: 0.2516129032 | E101: 0.1806451613
A102: Moray | B102: 0.4339622642 | C102: 0.2264150943 | D102: 0.1037735849 | E102: 0.2358490566
A103: Dundee City | B103: 0.4375 | C103: 0.23828125 | D103: 0.20703125 | E103: 0.12109375
A104: Renfrewshire | B104: 0.4461152882 | C104: 0.3333333333 | D104: 0.08771929825 | E104: 0.1303258145
A105: Scotland | B105: 0.4478053218 | C105: 0.2179895383 | D105: 0.1913804867 | E105: 0.1427109393
A106: West Lothian | B106: 0.4836601307 | C106: 0.2614379085 | D106: 0.09803921569 | E106: 0.1764705882
A107: Shetland | B107: 0.5217391304 | C107: 0.1956521739 | D107: 0.152173913 | E107: 0.152173913
A108: Angus | B108: 0.5347826087 | C108: 0.2956521739 | D108: 0.07391304348 | E108: 0.09130434783
A109: East Dunbartonshire | B109: 0.5675675676 | C109: 0.2162162162 | D109: 0.1621621622 | E109: 0.05405405405
A110: Edinburgh | B110: 0.5830784913 | C110: 0.1549439348 | D110: 0.1885830785 | E110: 0.07339449541
A111: North Ayrshire | B111: 0.5860655738 | C111: 0.106557377 | D111: 0.0368852459 | E111: 0.2745901639
A112: Glasgow City | B112: 0.6031195841 | C112: 0.1502021953 | D112: 0.1357596765 | E112: 0.1109185442
A113: Dumfries & Galloway | B113: 0.6439393939 | C113: 0.1287878788 | D113: 0.1742424242 | E113: 0.06060606061
A114: Falkirk | B114: 0.6913580247 | C114: 0.1522633745 | D114: 0.04526748971 | E114: 0.1069958848
A115: South Ayrshire | B115: 0.8728323699 | C115: 0.0289017341 | D115: 0.0289017341 | E115: 0.06936416185
A116: Clackmannanshire | B116: 0.9583333333 | C116: 0.02083333333 | D116: 0 | E116: 0

Sheet Chart 10 - Outcomes by LA
A1: Chart 10: Variation in outcomes for each Local Authority | N1: Back to Contents
A2: All apporaches closed between 1 April 2017 and 31 March 2018

Sheet Chart 11- Lost Contact NK Boxpl
A1: Chart 11: Distribution of the number of days to outcome approach as Lost Contact or Not Known by LA | I1: Back to Contents
A2: All approaches closed between 1 April 2017 and 31 March 2018 where the outcome was lost contact or not known.
A64: Working for Chart XX: Distribution of the number of days to outcome approach as Lost Contact or Not Known by LA
A66: Local Authority | B66: Number of approaches with an outcomes of not known/ lost contact | C66: Number of days between Approach Date and Outcome Date
C67: P5 | D67: Q1 | E67: Median | F67: Q3 | G67: P95
A68: Scotland | B68: 8417 | C68: 0 | D68: 28 | E68: 81 | F68: 477 | G68: 800
A69: Aberdeen City | B69: 3026 | C69: 48 | D69: 389 | E69: 562 | F69: 715 | G69: 901
A70: Aberdeenshire | B70: 316 | C70: 1 | D70: 26 | E70: 52 | F70: 75 | G70: 151
A71: Angus | B71: 87 | C71: 0 | D71: 27 | E71: 41 | F71: 92 | G71: 312
A72: Argyll & Bute | B72: 205 | C72: 7 | D72: 29 | E72: 37 | F72: 61 | G72: 172
A73: Clackmannanshire | B73: 2 | C73: 0 | D73: 0 | E73: 0 | F73: 0 | G73: 0
A74: Dumfries & Galloway | B74: 113 | C74: 0 | D74: 0 | E74: 0 | F74: 0 | G74: 132
A75: Dundee City | B75: 263 | C75: 0 | D75: 0 | E75: 13 | F75: 45 | G75: 152
A76: East Ayrshire | B76: 4 | C76: 106 | D76: 107 | E76: 114 | F76: 176 | G76: 233
A77: East Dunbartonshire | B77: 30 | C77: 0 | D77: 0 | E77: 0 | F77: 0 | G77: 78
A78: East Lothian | B78: 23 | C78: 28 | D78: 40 | E78: 64 | F78: 88 | G78: 185
A79: East Renfrewshire | B79: 24 | C79: 79 | D79: 145 | E79: 175 | F79: 235 | G79: 332
A80: Edinburgh | B80: 925 | C80: 0 | D80: 28 | E80: 31 | F80: 61 | G80: 168
A81: Eilean Siar | B81: 5 | C81: 112 | D81: 145 | E81: 167 | F81: 177 | G81: 231
A82: Falkirk | B82: 55 | C82: 8 | D82: 61 | E82: 75 | F82: 103 | G82: 164
A83: Fife | B83: 278 | C83: 1 | D83: 23 | E83: 41 | F83: 63 | G83: 185
A84: Glasgow City | B84: 1177 | C84: 0 | D84: 9 | E84: 21 | F84: 61 | G84: 146
A85: Highland | B85: 43 | C85: 26 | D85: 89 | E85: 188 | F85: 225 | G85: 303
A86: Inverclyde | B86: 227 | C86: 0 | D86: 29 | E86: 54 | F86: 116 | G86: 507
A87: Midlothian | B87: 163 | C87: 235 | D87: 432 | E87: 607 | F87: 656 | G87: 971
A88: Moray | B88: 111 | C88: 16 | D88: 36 | E88: 57 | F88: 90 | G88: 152
A89: North Ayrshire | B89: 43 | C89: 0 | D89: 0 | E89: 0 | F89: 362 | G89: 389
A90: North Lanarkshire | B90: 60 | C90: 0 | D90: 227 | E90: 470 | F90: 561 | G90: 934
A91: Orkney | B91: 9 | C91: 29 | D91: 56 | E91: 67 | F91: 115 | G91: 148
A92: Perth & Kinross | B92: 395 | C92: 0 | D92: 6 | E92: 29 | F92: 95 | G92: 624
A93: Renfrewshire | B93: 175 | C93: 4 | D93: 20 | E93: 24 | F93: 33 | G93: 126
A94: Scottish Borders | B94: 194 | C94: 8 | D94: 18 | E94: 46 | F94: 100 | G94: 172
A95: Shetland | B95: 33 | C95: 0 | D95: 33 | E95: 88 | F95: 133 | G95: 248
A96: South Ayrshire | B96: 23 | C96: 0 | D96: 0 | E96: 21 | F96: 193 | G96: 250
A97: South Lanarkshire | B97: 233 | C97: 22 | D97: 56 | E97: 84 | F97: 141 | G97: 303
A98: Stirling | B98: 58 | C98: 17 | D98: 53 | E98: 113 | F98: 194 | G98: 433
A99: West Dunbartonshire | B99: 44 | C99: 31 | D99: 58 | E99: 109 | F99: 156 | G99: 238
A100: West Lothian | B100: 73 | C100: 7 | D100: 66 | E100: 110 | F100: 153 | G100: 341
A102: Notes
A103: P5 = 5th Percentile. 5% of approaches have been open for this many days.
A104: Q1 = First Quartile. 25% of approaches have been open for this many days.
A105: Median. 50% of approaches have been open for this many days.
A106: Q3 = First Quartile. 75% of approaches have been open for this many days. Conversely, 25% of cases have been open for more than this number of days.
A107: P95 = 95th Percentile. 5% of approaches have been open for more than this number of days.
A110: Data for Box Plot
B112: Number of days between Approach Date and 30 September 2015
A113: Local Authority | B113: P5 | C113: Q1 | D113: Median | E113: Q3 | F113: P95
A114: Clackmannanshire | B114: 0 | C114: 0 | D114: 0 | E114: 0 | F114: 0
A115: Dumfries & Galloway | B115: 0 | C115: 0 | D115: 0 | E115: 0 | F115: 132
A116: East Dunbartonshire | B116: 0 | C116: 0 | D116: 0 | E116: 0 | F116: 78
A117: North Ayrshire | B117: 0 | C117: 0 | D117: 0 | E117: 362 | F117: 389
A118: Dundee City | B118: 0 | C118: 0 | D118: 13 | E118: 45 | F118: 152
A119: Glasgow City | B119: 0 | C119: 9 | D119: 21 | E119: 61 | F119: 146
A120: South Ayrshire | B120: 0 | C120: 0 | D120: 21 | E120: 193 | F120: 250
A121: Renfrewshire | B121: 4 | C121: 20 | D121: 24 | E121: 33 | F121: 126
A122: Perth & Kinross | B122: 0 | C122: 6 | D122: 29 | E122: 95 | F122: 624
A123: Edinburgh | B123: 0 | C123: 28 | D123: 31 | E123: 61 | F123: 168
A124: Argyll & Bute | B124: 7 | C124: 29 | D124: 37 | E124: 61 | F124: 172
A125: Angus | B125: 0 | C125: 27 | D125: 41 | E125: 92 | F125: 312
A126: Fife | B126: 1 | C126: 23 | D126: 41 | E126: 63 | F126: 185
A127: Scottish Borders | B127: 8 | C127: 18 | D127: 46 | E127: 100 | F127: 172
A128: Aberdeenshire | B128: 1 | C128: 26 | D128: 52 | E128: 75 | F128: 151
A129: Inverclyde | B129: 0 | C129: 29 | D129: 54 | E129: 116 | F129: 507
A130: Moray | B130: 16 | C130: 36 | D130: 57 | E130: 90 | F130: 152
A131: East Lothian | B131: 28 | C131: 40 | D131: 64 | E131: 88 | F131: 185
A132: Orkney | B132: 29 | C132: 56 | D132: 67 | E132: 115 | F132: 148
A133: Falkirk | B133: 8 | C133: 61 | D133: 75 | E133: 103 | F133: 164
A134: Scotland | B134: 0 | C134: 28 | D134: 81 | E134: 477 | F134: 800
A135: South Lanarkshire | B135: 22 | C135: 56 | D135: 84 | E135: 141 | F135: 303
A136: Shetland | B136: 0 | C136: 33 | D136: 88 | E136: 133 | F136: 248
A137: West Dunbartonshire | B137: 31 | C137: 58 | D137: 109 | E137: 156 | F137: 238
A138: West Lothian | B138: 7 | C138: 66 | D138: 110 | E138: 153 | F138: 341
A139: Stirling | B139: 17 | C139: 53 | D139: 113 | E139: 194 | F139: 433
A140: East Ayrshire | B140: 106 | C140: 107 | D140: 114 | E140: 176 | F140: 233
A141: Eilean Siar | B141: 112 | C141: 145 | D141: 167 | E141: 177 | F141: 231
A142: East Renfrewshire | B142: 79 | C142: 145 | D142: 175 | E142: 235 | F142: 332
A143: Highland | B143: 26 | C143: 89 | D143: 188 | E143: 225 | F143: 303
A144: North Lanarkshire | B144: 0 | C144: 227 | D144: 470 | E144: 561 | F144: 934
A145: Aberdeen City | B145: 48 | C145: 389 | D145: 562 | E145: 715 | F145: 901
A146: Midlothian | B146: 235 | C146: 432 | D146: 607 | E146: 656 | F146: 971
A148: =A113 -> Local Authority | B148: Q1 | C148: Median-Q1 | D148: Q3-Median | E148: Q1-P5 | F148: P95-Q3 | G148: Median
A149: Clackmannanshire | B149: =C114 -> 0 | C149: =D114-C114 -> 0 | D149: =E114-D114 -> 0 | E149: =C114-B114 -> 0 | F149: =F114-E114 -> 0 | G149: =D114 -> 0
A150: Dumfries & Galloway | B150: =C115 -> 0 | C150: =D115-C115 -> 0 | D150: 0 | E150: =C115-B115 -> 0 | F150: =F115-E115 -> 132 | G150: =D115 -> 0
A151: East Dunbartonshire | B151: 0 | C151: =D116-C116 -> 0 | D151: 0 | E151: 0 | F151: 78 | G151: 0
A152: North Ayrshire | B152: 0 | C152: =D117-C117 -> 0 | D152: 362 | E152: 0 | F152: 27 | G152: 0
A153: Dundee City | B153: 0 | C153: =D118-C118 -> 13 | D153: 32 | E153: 0 | F153: 107 | G153: 13
A154: Glasgow City | B154: 9 | C154: =D119-C119 -> 12 | D154: 40 | E154: 9 | F154: 85 | G154: 21
A155: South Ayrshire | B155: 0 | C155: =D120-C120 -> 21 | D155: 172 | E155: 0 | F155: 57 | G155: 21
A156: Renfrewshire | B156: 20 | C156: =D121-C121 -> 4 | D156: 9 | E156: 16 | F156: 93 | G156: 24
A157: Perth & Kinross | B157: 6 | C157: =D122-C122 -> 23 | D157: 66 | E157: 6 | F157: 529 | G157: 29
A158: Edinburgh | B158: 28 | C158: =D123-C123 -> 3 | D158: 30 | E158: 28 | F158: 107 | G158: 31
A159: Argyll & Bute | B159: 29 | C159: =D124-C124 -> 8 | D159: 24 | E159: 22 | F159: 111 | G159: 37
A160: Angus | B160: 27 | C160: =D125-C125 -> 14 | D160: 51 | E160: 27 | F160: 220 | G160: 41
A161: Fife | B161: 23 | C161: =D126-C126 -> 18 | D161: 22 | E161: 22 | F161: 122 | G161: 41
A162: Scottish Borders | B162: 18 | C162: =D127-C127 -> 28 | D162: 54 | E162: 10 | F162: 72 | G162: 46
A163: Aberdeenshire | B163: 26 | C163: =D128-C128 -> 26 | D163: 23 | E163: 25 | F163: 76 | G163: 52
A164: Inverclyde | B164: 29 | C164: =D129-C129 -> 25 | D164: 62 | E164: 29 | F164: 391 | G164: 54
A165: Moray | B165: 36 | C165: =D130-C130 -> 21 | D165: 33 | E165: 20 | F165: 62 | G165: 57
A166: East Lothian | B166: 40 | C166: =D131-C131 -> 24 | D166: 24 | E166: 12 | F166: 97 | G166: 64
A167: Orkney | B167: 56 | C167: =D132-C132 -> 11 | D167: 48 | E167: 27 | F167: 33 | G167: 67
A168: Falkirk | B168: 61 | C168: =D133-C133 -> 14 | D168: 28 | E168: 53 | F168: 61 | G168: 75
A169: Scotland | B169: 28 | C169: =D134-C134 -> 53 | D169: 396 | E169: 28 | F169: 323 | G169: 81
A170: South Lanarkshire | B170: 56 | C170: =D135-C135 -> 28 | D170: 57 | E170: 34 | F170: 162 | G170: 84
A171: Shetland | B171: 33 | C171: =D136-C136 -> 55 | D171: 45 | E171: 33 | F171: 115 | G171: 88
A172: West Dunbartonshire | B172: 58 | C172: =D137-C137 -> 51 | D172: 47 | E172: 27 | F172: 82 | G172: 109
A173: West Lothian | B173: 66 | C173: =D138-C138 -> 44 | D173: 43 | E173: 59 | F173: 188 | G173: 110
A174: Stirling | B174: 53 | C174: =D139-C139 -> 60 | D174: 81 | E174: 36 | F174: 239 | G174: 113
A175: East Ayrshire | B175: 107 | C175: =D140-C140 -> 7 | D175: 62 | E175: 1 | F175: 57 | G175: 114
A176: Eilean Siar | B176: 145 | C176: =D141-C141 -> 22 | D176: 10 | E176: 33 | F176: 54 | G176: 167
A177: East Renfrewshire | B177: 145 | C177: =D142-C142 -> 30 | D177: 60 | E177: 66 | F177: 97 | G177: 175
A178: Highland | B178: 89 | C178: =D143-C143 -> 99 | D178: 37 | E178: 63 | F178: 78 | G178: 188
A179: North Lanarkshire | B179: 227 | C179: =D144-C144 -> 243 | D179: 91 | E179: 227 | F179: 373 | G179: 470
A180: Aberdeen City | B180: 389 | C180: =D145-C145 -> 173 | D180: 153 | E180: 341 | F180: 186 | G180: 562
A181: Midlothian | B181: 432 | C181: =D146-C146 -> 175 | D181: 49 | E181: 197 | F181: 315 | G181: 607

Sheet Chart 12 - Homelessness Boxplot
A1: Chart 12: Distribution of the number of days to outcome an approach as a homelessness application | I1: Back to Contents
A2: All approaches closed between 1 April 2017 and 31 March 2018 where the outcome was a homelessness application.
A64: Working for Chart XX: Distribution of the number of days to make a homelessness application
A66: Local Authority | B66: Number of approaches with an outcomes of making a homelessness application | C66: Number of days between Approach Date and date of Homelessness Application
C67: P5 | D67: Q1 | E67: Median | F67: Q3 | G67: P95
A68: Scotland | B68: 19691 | C68: 0 | D68: 0 | E68: 1 | F68: 14 | G68: 155
A69: Aberdeen City | B69: 1425 | C69: 0 | D69: 0 | E69: 2 | F69: 40 | G69: 645
A70: Aberdeenshire | B70: 495 | C70: 0 | D70: 0 | E70: 1 | F70: 8 | G70: 117
A71: Angus | B71: 615 | C71: 0 | D71: 3 | E71: 7 | F71: 17 | G71: 168
A72: Argyll & Bute | B72: 434 | C72: 0 | D72: 1 | E72: 4 | F72: 18 | G72: 161
A73: Clackmannanshire | B73: 462 | C73: 0 | D73: 0 | E73: 0 | F73: 0 | G73: 0
A74: Dumfries & Galloway | B74: 423 | C74: 0 | D74: 0 | E74: 0 | F74: 0 | G74: 15
A75: Dundee City | B75: 562 | C75: 1 | D75: 2 | E75: 5 | F75: 15 | G75: 187
A76: East Ayrshire | B76: 17 | C76: 6 | D76: 15 | E76: 21 | F76: 40 | G76: 184
A77: East Dunbartonshire | B77: 107 | C77: 0 | D77: 0 | E77: 0 | F77: 0 | G77: 175
A78: East Lothian | B78: 22 | C78: 2 | D78: 15 | E78: 44 | F78: 64 | G78: 197
A79: East Renfrewshire | B79: 41 | C79: 2 | D79: 22 | E79: 62 | F79: 191 | G79: 370
A80: Edinburgh | B80: 2860 | C80: 0 | D80: 0 | E80: 0 | F80: 10 | G80: 112
A81: Eilean Siar | B81: 6 | C81: 7 | D81: 15 | E81: 22 | F81: 78 | G81: 116
A82: Falkirk | B82: 841 | C82: 0 | D82: 0 | E82: 0 | F82: 0 | G82: 27
A83: Fife | B83: 541 | C83: 0 | D83: 1 | E83: 7 | F83: 20 | G83: 134
A84: Glasgow City | B84: 5220 | C84: 0 | D84: 0 | E84: 1 | F84: 11 | G84: 69
A85: Highland | B85: 92 | C85: 0 | D85: 22 | E85: 56 | F85: 134 | G85: 304
A86: Inverclyde | B86: 147 | C86: 0 | D86: 1 | E86: 6 | F86: 35 | G86: 125
A87: Midlothian | B87: 50 | C87: 1 | D87: 19 | E87: 76 | F87: 273 | G87: 518
A88: Moray | B88: 461 | C88: 0 | D88: 1 | E88: 9 | F88: 37 | G88: 135
A89: North Ayrshire | B89: 714 | C89: 0 | D89: 0 | E89: 0 | F89: 0 | G89: 146
A90: North Lanarkshire | B90: 304 | C90: 2 | D90: 31 | E90: 133 | F90: 337 | G90: 615
A91: Orkney | B91: 10 | C91: 6 | D91: 30 | E91: 80 | F91: 148 | G91: 185
A92: Perth & Kinross | B92: 952 | C92: 0 | D92: 0 | E92: 2 | F92: 12 | G92: 217
A93: Renfrewshire | B93: 892 | C93: 0 | D93: 0 | E93: 0 | F93: 2 | G93: 49
A94: Scottish Borders | B94: 335 | C94: 5 | D94: 10 | E94: 18 | F94: 31 | G94: 132
A95: Shetland | B95: 120 | C95: 0 | D95: 0 | E95: 0 | F95: 1 | G95: 172
A96: South Ayrshire | B96: 755 | C96: 0 | D96: 0 | E96: 0 | F96: 0 | G96: 11
A97: South Lanarkshire | B97: 294 | C97: 3 | D97: 14 | E97: 22 | F97: 41 | G97: 206
A98: Stirling | B98: 73 | C98: 1 | D98: 10 | E98: 25 | F98: 69 | G98: 204
A99: West Dunbartonshire | B99: 53 | C99: 2 | D99: 19 | E99: 49 | F99: 92 | G99: 325
A100: West Lothian | B100: 368 | C100: 0 | D100: 0 | E100: 14 | F100: 51 | G100: 229
A102: Notes
A103: P5 = 5th Percentile. 5% of approaches have been open for this many days.
A104: Q1 = First Quartile. 25% of approaches have been open for this many days.
A105: Median. 50% of approaches have been open for this many days.
A106: Q3 = First Quartile. 75% of approaches have been open for this many days. Conversely, 25% of cases have been open for more than this number of days.
A107: P95 = 95th Percentile. 5% of approaches have been open for more than this number of days.
A110: Data for Box Plot
B112: Number of days between Approach Date and 31 March 2016
A113: Local Authority | B113: P5 | C113: Q1 | D113: Median | E113: Q3 | F113: P95
A114: Clackmannanshire | B114: 0 | C114: 0 | D114: 0 | E114: 0 | F114: 0
A115: Dumfries & Galloway | B115: 0 | C115: 0 | D115: 0 | E115: 0 | F115: 15
A116: East Dunbartonshire | B116: 0 | C116: 0 | D116: 0 | E116: 0 | F116: 175
A117: Edinburgh | B117: 0 | C117: 0 | D117: 0 | E117: 10 | F117: 112
A118: Falkirk | B118: 0 | C118: 0 | D118: 0 | E118: 0 | F118: 27
A119: North Ayrshire | B119: 0 | C119: 0 | D119: 0 | E119: 0 | F119: 146
A120: Renfrewshire | B120: 0 | C120: 0 | D120: 0 | E120: 2 | F120: 49
A121: Shetland | B121: 0 | C121: 0 | D121: 0 | E121: 1 | F121: 172
A122: South Ayrshire | B122: 0 | C122: 0 | D122: 0 | E122: 0 | F122: 11
A123: Scotland | B123: 0 | C123: 0 | D123: 1 | E123: 14 | F123: 155
A124: Aberdeenshire | B124: 0 | C124: 0 | D124: 1 | E124: 8 | F124: 117
A125: Glasgow City | B125: 0 | C125: 0 | D125: 1 | E125: 11 | F125: 69
A126: Aberdeen City | B126: 0 | C126: 0 | D126: 2 | E126: 40 | F126: 645
A127: Perth & Kinross | B127: 0 | C127: 0 | D127: 2 | E127: 12 | F127: 217
A128: Argyll & Bute | B128: 0 | C128: 1 | D128: 4 | E128: 18 | F128: 161
A129: Dundee City | B129: 1 | C129: 2 | D129: 5 | E129: 15 | F129: 187
A130: Inverclyde | B130: 0 | C130: 1 | D130: 6 | E130: 35 | F130: 125
A131: Angus | B131: 0 | C131: 3 | D131: 7 | E131: 17 | F131: 168
A132: Fife | B132: 0 | C132: 1 | D132: 7 | E132: 20 | F132: 134
A133: Moray | B133: 0 | C133: 1 | D133: 9 | E133: 37 | F133: 135
A134: West Lothian | B134: 0 | C134: 0 | D134: 14 | E134: 51 | F134: 229
A135: Scottish Borders | B135: 5 | C135: 10 | D135: 18 | E135: 31 | F135: 132
A136: East Ayrshire | B136: 6 | C136: 15 | D136: 21 | E136: 40 | F136: 184
A137: Eilean Siar | B137: 7 | C137: 15 | D137: 22 | E137: 78 | F137: 116
A138: South Lanarkshire | B138: 3 | C138: 14 | D138: 22 | E138: 41 | F138: 206
A139: Stirling | B139: 1 | C139: 10 | D139: 25 | E139: 69 | F139: 204
A140: East Lothian | B140: 2 | C140: 15 | D140: 44 | E140: 64 | F140: 197
A141: West Dunbartonshire | B141: 2 | C141: 19 | D141: 49 | E141: 92 | F141: 325
A142: Highland | B142: 0 | C142: 22 | D142: 56 | E142: 134 | F142: 304
A143: East Renfrewshire | B143: 2 | C143: 22 | D143: 62 | E143: 191 | F143: 370
A144: Midlothian | B144: 1 | C144: 19 | D144: 76 | E144: 273 | F144: 518
A145: Orkney | B145: 6 | C145: 30 | D145: 80 | E145: 148 | F145: 185
A146: North Lanarkshire | B146: 2 | C146: 31 | D146: 133 | E146: 337 | F146: 615
A148: =A113 -> Local Authority | B148: Q1 | C148: Median-Q1 | D148: Q3-Median | E148: Q1-P5 | F148: P95-Q3 | G148: Median
A149: Clackmannanshire | B149: =C114 -> 0 | C149: =D114-C114 -> 0 | D149: =E114-D114 -> 0 | E149: =C114-B114 -> 0 | F149: =F114-E114 -> 0 | G149: =D114 -> 0
A150: Dumfries & Galloway | B150: =C115 -> 0 | C150: =D115-C115 -> 0 | D150: 0 | E150: =C115-B115 -> 0 | F150: =F115-E115 -> 15 | G150: =D115 -> 0
A151: East Dunbartonshire | B151: 0 | C151: 0 | D151: 0 | E151: 0 | F151: 175 | G151: 0
A152: Edinburgh | B152: 0 | C152: 0 | D152: 10 | E152: 0 | F152: 102 | G152: 0
A153: Falkirk | B153: 0 | C153: 0 | D153: 0 | E153: 0 | F153: 27 | G153: 0
A154: North Ayrshire | B154: 0 | C154: 0 | D154: 0 | E154: 0 | F154: 146 | G154: 0
A155: Renfrewshire | B155: 0 | C155: 0 | D155: 2 | E155: 0 | F155: 47 | G155: 0
A156: Shetland | B156: 0 | C156: 0 | D156: 1 | E156: 0 | F156: 171 | G156: 0
A157: South Ayrshire | B157: 0 | C157: 0 | D157: 0 | E157: 0 | F157: 11 | G157: 0
A158: Scotland | B158: 0 | C158: 1 | D158: 13 | E158: 0 | F158: 141 | G158: 1
A159: Aberdeenshire | B159: 0 | C159: 1 | D159: 7 | E159: 0 | F159: 109 | G159: 1
A160: Glasgow City | B160: 0 | C160: 1 | D160: 10 | E160: 0 | F160: 58 | G160: 1
A161: Aberdeen City | B161: 0 | C161: 2 | D161: 38 | E161: 0 | F161: 605 | G161: 2
A162: Perth & Kinross | B162: 0 | C162: 2 | D162: 10 | E162: 0 | F162: 205 | G162: 2
A163: Argyll & Bute | B163: 1 | C163: 3 | D163: 14 | E163: 1 | F163: 143 | G163: 4
A164: Dundee City | B164: 2 | C164: 3 | D164: 10 | E164: 1 | F164: 172 | G164: 5
A165: Inverclyde | B165: 1 | C165: 5 | D165: 29 | E165: 1 | F165: 90 | G165: 6
A166: Angus | B166: 3 | C166: =D131-C131 -> 4 | D166: 10 | E166: 3 | F166: 151 | G166: 7
A167: Fife | B167: 1 | C167: 6 | D167: 13 | E167: 1 | F167: 114 | G167: 7
A168: Moray | B168: 1 | C168: 8 | D168: 28 | E168: 1 | F168: 98 | G168: 9
A169: West Lothian | B169: 0 | C169: 14 | D169: 37 | E169: 0 | F169: 178 | G169: 14
A170: Scottish Borders | B170: 10 | C170: 8 | D170: 13 | E170: 5 | F170: 101 | G170: 18
A171: East Ayrshire | B171: 15 | C171: 6 | D171: 19 | E171: 9 | F171: 144 | G171: 21
A172: Eilean Siar | B172: 15 | C172: 7 | D172: 56 | E172: 8 | F172: 38 | G172: 22
A173: South Lanarkshire | B173: 14 | C173: 8 | D173: 19 | E173: 11 | F173: 165 | G173: 22
A174: Stirling | B174: 10 | C174: 15 | D174: 44 | E174: 9 | F174: 135 | G174: 25
A175: East Lothian | B175: 15 | C175: 29 | D175: 20 | E175: 13 | F175: 133 | G175: 44
A176: West Dunbartonshire | B176: 19 | C176: 30 | D176: 43 | E176: 17 | F176: 233 | G176: 49
A177: Highland | B177: 22 | C177: 34 | D177: 78 | E177: 22 | F177: 170 | G177: 56
A178: East Renfrewshire | B178: 22 | C178: 40 | D178: 129 | E178: 20 | F178: 179 | G178: 62
A179: Midlothian | B179: 19 | C179: 57 | D179: 197 | E179: 18 | F179: 245 | G179: 76
A180: Orkney | B180: 30 | C180: 50 | D180: 68 | E180: 24 | F180: 37 | G180: 80
A181: North Lanarkshire | B181: 31 | C181: 102 | D181: 204 | E181: =C146-B146 -> 29 | F181: 278 | G181: =D146 -> 133

Sheet Table 10 - Repeat Approaches
A1: Table 10: Households making Repeat Approaches | E1: Back to Contents
A2: All households making approaches between 1 April 2017 to 31 March 2018
A4: Local Authority | B4: Households Making | E4: All Households | F4: Proportion of Households making Repeat Approaches
B5: One approach only | C5: Two approaches | D5: Three or more approaches
A6: Scotland | B6: 36100 | C6: 3130 | D6: 415 | E6: 39645 | F6: =SUM(C6:D6)/E6 -> 0.08941858999
A7: Aberdeen City | B7: 3785 | C7: 270 | D7: 15 | E7: 4070 | F7: =SUM(C7:D7)/E7 -> 0.07002457002
A8: Aberdeenshire | B8: 1235 | C8: 75 | D8: 15 | E8: 1330 | F8: 0.06766917293
A9: Angus | B9: 825 | C9: 35 | D9: 5 | E9: 865 | F9: 0.04624277457
A10: Argyll & Bute | B10: 1355 | C10: 150 | D10: 30 | E10: 1535 | F10: 0.1172638436
A11: Clackmannanshire | B11: 465 | C11: 30 | D11: 5 | E11: 495 | F11: 0.07070707071
A12: Dumfries & Galloway | B12: 600 | C12: 40 | D12: 5 | E12: 640 | F12: 0.0703125
A13: Dundee City | B13: 1025 | C13: 60 | D13: 5 | E13: 1090 | F13: 0.05963302752
A14: East Ayrshire | B14: 80 | C14: 0 | D14: 0 | E14: 80 | F14: 0
A15: East Dunbartonshire | B15: 190 | C15: 15 | D15: 5 | E15: 210 | F15: 0.09523809524
A16: East Lothian | B16: 80 | C16: 0 | D16: 0 | E16: 85 | F16: 0
A17: East Renfrewshire | B17: 120 | C17: 5 | D17: 0 | E17: 125 | F17: 0.04
A18: Edinburgh | B18: 4560 | C18: 360 | D18: 20 | E18: 4940 | F18: 0.07692307692
A19: Eilean Siar | B19: 15 | C19: 0 | D19: 0 | E19: 15 | F19: 0
A20: Falkirk | B20: 1340 | C20: 175 | D20: 20 | E20: 1535 | F20: 0.1270358306
A21: Fife | B21: 1875 | C21: 140 | D21: 25 | E21: 2040 | F21: 0.08088235294
A22: Glasgow City | B22: 6755 | C22: 860 | D22: 160 | E22: 7770 | F22: 0.1312741313
A23: Highland | B23: 225 | C23: 5 | D23: 0 | E23: 235 | F23: 0.02127659574
A24: Inverclyde | B24: 675 | C24: 70 | D24: 15 | E24: 765 | F24: 0.1111111111
A25: Midlothian | B25: 235 | C25: 20 | D25: 0 | E25: 255 | F25: 0.07843137255
A26: Moray | B26: 900 | C26: 75 | D26: 5 | E26: 980 | F26: 0.08163265306
A27: North Ayrshire | B27: 1155 | C27: 75 | D27: 5 | E27: 1230 | F27: 0.06504065041
A28: North Lanarkshire | B28: 1545 | C28: 25 | D28: 5 | E28: 1575 | F28: 0.01904761905
A29: Orkney | B29: 25 | C29: 0 | D29: 0 | E29: 25 | F29: 0
A30: Perth & Kinross | B30: 1820 | C30: 265 | D30: 40 | E30: 2125 | F30: 0.1435294118
A31: Renfrewshire | B31: 1500 | C31: 205 | D31: 30 | E31: 1730 | F31: 0.1358381503
A32: Scottish Borders | B32: 610 | C32: 35 | D32: 5 | E32: 650 | F32: 0.06153846154
A33: Shetland | B33: 185 | C33: 5 | D33: 0 | E33: 190 | F33: 0.02631578947
A34: South Ayrshire | B34: 970 | C34: 50 | D34: 0 | E34: 1025 | F34: 0.0487804878
A35: South Lanarkshire | B35: 735 | C35: 35 | D35: 5 | E35: 775 | F35: 0.05161290323
A36: Stirling | B36: 290 | C36: 25 | D36: 0 | E36: 315 | F36: 0.07936507937
A37: West Dunbartonshire | B37: 235 | C37: 5 | D37: 0 | E37: 240 | F37: 0.02083333333
A38: West Lothian | B38: 685 | C38: 25 | D38: 0 | E38: 710 | F38: 0.03521126761
A40: Disclosure Control has been applied to this table. All cells have been rounded to the nearest five.
A41: Row totals may not sum to total of individual cells due to rounding.
A49: Chart Data - Repeat approaches
B50: Proportion of Households making Repeat Approaches
A51: East Ayrshire | B51: 0
A52: East Lothian | B52: 0
A53: Eilean Siar | B53: 0
A54: Orkney | B54: 0
A55: North Lanarkshire | B55: 0.01904761905
A56: West Dunbartonshire | B56: 0.02083333333
A57: Highland | B57: 0.02127659574
A58: Shetland | B58: 0.02631578947
A59: West Lothian | B59: 0.03521126761
A60: East Renfrewshire | B60: 0.04
A61: Angus | B61: 0.04624277457
A62: South Ayrshire | B62: 0.0487804878
A63: South Lanarkshire | B63: 0.05161290323
A64: Dundee City | B64: 0.05963302752
A65: Scottish Borders | B65: 0.06153846154
A66: North Ayrshire | B66: 0.06504065041
A67: Aberdeenshire | B67: 0.06766917293
A68: Aberdeen City | B68: 0.07002457002
A69: Dumfries & Galloway | B69: 0.0703125
A70: Clackmannanshire | B70: 0.07070707071
A71: Edinburgh | B71: 0.07692307692
A72: Midlothian | B72: 0.07843137255
A73: Stirling | B73: 0.07936507937
A74: Fife | B74: 0.08088235294
A75: Moray | B75: 0.08163265306
A76: Scotland | B76: 0.08941858999
A77: East Dunbartonshire | B77: 0.09523809524
A78: Inverclyde | B78: 0.1111111111
A79: Argyll & Bute | B79: 0.1172638436
A80: Falkirk | B80: 0.1270358306
A81: Glasgow City | B81: 0.1312741313
A82: Renfrewshire | B82: 0.1358381503
A83: Perth & Kinross | B83: 0.1435294118

Sheet Chart 13- Repeat Approaches
A1: Chart 13: Proportion of Unique Households in each LA area making Repeat Approaches | M1: Back to Contents
A2: All Households making approaches between 1 April 2017 and 31 March 2018
